Workbook

Sheet Main
B10: 2019-03-28
B12: Sheet No. | C12: Template Name | D12: Summary
B13: 1 | C13: Future Intra | D13: For Intraday trading in F&O segment
B14: 2 | C14: Cash Intra | D14: For Intraday trading in cash market segment
B15: 3 | C15: Mid-cap Intra | D15: For Intraday trading in Mid-cap stocks
B16: 4 | C16: Bulk Deals | D16: Reveals Bulk Deals carried on NSE & BSE
B17: 5 | C17: Call Tracker

Sheet Future Intra
M5: Back to Main Page
A6: FOR INTRA DAY TRADING | L6: =Main!B10 -> 2019-03-28
A9: Sr.no | B9: Sector | C9: Scrip | D9: CLOSE RATE | E9: Pivot Point | F9: Supports | I9: Resistances
B10: Sector | D10: Point | E10: Point | F10: S1 | G10: S2 | H10: S3 | I10: R1 | J10: R2 | K10: R3 | L10: HIGH | M10: LOW | N10: OI | O10: % Change in OI
A11: 1 | B11: Index | C11: BANKNIFTY | D11: 30040.90 | E11: 30032.15 | F11: 29789.30 | G11: 29537.70 | H11: 29294.85 | I11: 30283.75 | J11: 30526.60 | K11: 30778.20 | L11: 30275 | M11: 29780.55 | N11: 2727340 | O11: -6.51%
A12: 2 | B12: Index | C12: NIFTY | D12: 11458.10 | E12: 11484.28 | F12: 11394.87 | G12: 11331.63 | H12: 11242.22 | I12: 11547.52 | J12: 11636.93 | K12: 11700.17 | L12: 11573.7 | M12: 11421.05 | N12: 25845225 | O12: 3.37%
A13: 3 | B13: Index | C13: NIFTYIT | D13: 15358.00 | E13: 15386.00 | F13: 15282.00 | G13: 15206.00 | H13: 15102.00 | I13: 15462.00 | J13: 15566.00 | K13: 15642.00 | L13: 15490 | M13: 15310 | N13: 19800 | O13: -3.18%
A14: 4 | B14: Cement | C14: ACC | D14: 1603.45 | E14: 1597.28 | F14: 1578.57 | G14: 1553.68 | H14: 1534.97 | I14: 1622.17 | J14: 1640.88 | K14: 1665.77 | L14: 1616 | M14: 1572.4 | N14: 2552800 | O14: -2.28%
A15: 5 | B15: Others | C15: ADANIENT | D15: 137.95 | E15: 138.52 | F15: 135.58 | G15: 133.22 | H15: 130.28 | I15: 140.88 | J15: 143.82 | K15: 146.18 | L15: 141.45 | M15: 136.15 | N15: 40536000 | O15: -1.47%
A16: 6 | B16: Others | C16: ADANIPORTS | D16: 366.75 | E16: 367.95 | F16: 363.90 | G16: 361.05 | H16: 357.00 | I16: 370.80 | J16: 374.85 | K16: 377.70 | L16: 372 | M16: 365.1 | N16: 24952500 | O16: -2.97%
A17: 7 | B17: Power | C17: ADANIPOWER | D17: 46.95 | E17: 47.38 | F17: 46.07 | G17: 45.18 | H17: 43.87 | I17: 48.27 | J17: 49.58 | K17: 50.47 | L17: 48.7 | M17: 46.5 | N17: 175700000 | O17: 1.19%
A18: 8 | B18: Pharma | C18: AJANTPHARM | D18: 996.70 | E18: 998.13 | F18: 973.57 | G18: 950.43 | H18: 925.87 | I18: 1021.27 | J18: 1045.83 | K18: 1068.97 | L18: 1022.7 | M18: 975 | N18: 885000 | O18: 0.17%
A19: 9 | B19: Banking | C19: ALBK | D19: 52.40 | E19: 52.00 | F19: 51.35 | G19: 50.30 | H19: 49.65 | I19: 53.05 | J19: 53.70 | K19: 54.75 | L19: 52.65 | M19: 50.95 | N19: 25558000 | O19: -0.25%
A20: 10 | B20: Automobile | C20: AMARAJABAT | D20: 724.85 | E20: 721.62 | F20: 711.23 | G20: 697.62 | H20: 687.23 | I20: 735.23 | J20: 745.62 | K20: 759.23 | L20: 732 | M20: 708 | N20: 1665300 | O20: 50.86%
A21: 11 | B21: Cement | C21: AMBUJACEM | D21: 232.65 | E21: 234.13 | F21: 229.57 | G21: 226.48 | H21: 221.92 | I21: 237.22 | J21: 241.78 | K21: 244.87 | L21: 238.7 | M21: 231.05 | N21: 10927500 | O21: -1.73%
A22: 12 | B22: Others | C22: APOLLOHOSP | D22: 1155.35 | E22: 1162.28 | F22: 1145.17 | G22: 1134.98 | H22: 1117.87 | I22: 1172.47 | J22: 1189.58 | K22: 1199.77 | L22: 1179.4 | M22: 1152.1 | N22: 1564000 | O22: 3.23%
A23: 13 | B23: Automobile | C23: APOLLOTYRE | D23: 214.20 | E23: 214.73 | F23: 211.67 | G23: 209.13 | H23: 206.07 | I23: 217.27 | J23: 220.33 | K23: 222.87 | L23: 217.8 | M23: 212.2 | N23: 12573000 | O23: -7.13%
A24: 14 | B24: Textile | C24: ARVIND | D24: 88.25 | E24: 88.98 | F24: 86.97 | G24: 85.68 | H24: 83.67 | I24: 90.27 | J24: 92.28 | K24: 93.57 | L24: 91 | M24: 87.7 | N24: 5630000 | O24: -7.25%
A25: 15 | B25: Automobile | C25: ASHOKLEY | D25: 85.70 | E25: 86.35 | F25: 84.70 | G25: 83.70 | H25: 82.05 | I25: 87.35 | J25: 89.00 | K25: 90.00 | L25: 88 | M25: 85.35 | N25: 72592000 | O25: 3.04%
A26: 16 | B26: FMCG | C26: ASIANPAINT | D26: 1474.15 | E26: 1479.50 | F26: 1461.50 | G26: 1448.85 | H26: 1430.85 | I26: 1492.15 | J26: 1510.15 | K26: 1522.80 | L26: 1497.5 | M26: 1466.85 | N26: 6300000 | O26: -3.86%
A27: 17 | B27: Pharma | C27: AUROPHARMA | D27: 777.35 | E27: 779.65 | F27: 769.70 | G27: 762.05 | H27: 752.10 | I27: 787.30 | J27: 797.25 | K27: 804.90 | L27: 789.6 | M27: 772 | N27: 16425000 | O27: -0.77%
A28: 18 | B28: Banking | C28: AXISBANK | D28: 760.75 | E28: 762.80 | F28: 754.30 | G28: 747.85 | H28: 739.35 | I28: 769.25 | J28: 777.75 | K28: 784.20 | L28: 771.3 | M28: 756.35 | N28: 37128000 | O28: -2.56%
A29: 19 | B29: Automobile | C29: BAJAJ-AUTO | D29: 2976.65 | E29: 2970.63 | F29: 2948.02 | G29: 2919.38 | H29: 2896.77 | I29: 2999.27 | J29: 3021.88 | K29: 3050.52 | L29: 2993.25 | M29: 2942 | N29: 4011250 | O29: -0.10%
A30: 20 | B30: Others | C30: BAJAJFINSV | D30: 7000.15 | E30: 7025.50 | F30: 6961.00 | G30: 6921.85 | H30: 6857.35 | I30: 7064.65 | J30: 7129.15 | K30: 7168.30 | L30: 7090 | M30: 6986.35 | N30: 735125 | O30: -6.93%
A31: 21 | B31: Finance | C31: BAJFINANCE | D31: 2948.60 | E31: 2965.18 | F31: 2916.37 | G31: 2884.13 | H31: 2835.32 | I31: 2997.42 | J31: 3046.23 | K31: 3078.47 | L31: 3014 | M31: 2932.95 | N31: 5817000 | O31: -1.78%
A32: 22 | B32: Others | C32: BALKRISIND | D32: 960.90 | E32: 954.52 | F32: 936.43 | G32: 911.97 | H32: 893.88 | I32: 978.98 | J32: 997.07 | K32: 1021.53 | L32: 972.6 | M32: 930.05 | N32: 1788000 | O32: -0.09%
A33: 23 | B33: Banking | C33: BANKBARODA | D33: 121.75 | E33: 121.97 | F33: 120.23 | G33: 118.72 | H33: 116.98 | I33: 123.48 | J33: 125.22 | K33: 126.73 | L33: 123.7 | M33: 120.45 | N33: 63736000 | O33: -4.15%
A34: 24 | B34: Banking | C34: BANKINDIA | D34: 103.30 | E34: 102.93 | F34: 101.97 | G34: 100.63 | H34: 99.67 | I34: 104.27 | J34: 105.23 | K34: 106.57 | L34: 103.9 | M34: 101.6 | N34: 24588000 | O34: -2.38%
A35: 25 | B35: FMCG | C35: BATAINDIA | D35: 1367.75 | E35: 1368.45 | F35: 1353.50 | G35: 1339.25 | H35: 1324.30 | I35: 1382.70 | J35: 1397.65 | K35: 1411.90 | L35: 1383.4 | M35: 1354.2 | N35: 2284150 | O35: 4.14%
A36: 26 | B36: Capital_Goods | C36: BEL | D36: 92.15 | E36: 92.65 | F36: 90.95 | G36: 89.75 | H36: 88.05 | I36: 93.85 | J36: 95.55 | K36: 96.75 | L36: 94.35 | M36: 91.45 | N36: 36696000 | O36: 2.00%
A37: 27 | B37: Infrastructure | C37: BEML | D37: 961.60 | E37: 967.72 | F37: 947.03 | G37: 932.47 | H37: 911.78 | I37: 982.28 | J37: 1002.97 | K37: 1017.53 | L37: 988.4 | M37: 953.15 | N37: 1792000 | O37: 1.19%
A38: 28 | B38: Others | C38: BERGEPAINT | D38: 322.85 | E38: 323.05 | F38: 319.45 | G38: 316.05 | H38: 312.45 | I38: 326.45 | J38: 330.05 | K38: 333.45 | L38: 326.65 | M38: 319.65 | N38: 3311000 | O38: -1.57%
A39: 29 | B39: Finance | C39: BHARATFIN | D39: 1134.90 | E39: 1122.82 | F39: 1107.43 | G39: 1079.97 | H39: 1064.58 | I39: 1150.28 | J39: 1165.67 | K39: 1193.13 | L39: 1138.2 | M39: 1095.35 | N39: 4475000 | O39: 0.65%
A40: 30 | B40: Automobile | C40: BHARATFORG | D40: 492.45 | E40: 493.43 | F40: 486.12 | G40: 479.78 | H40: 472.47 | I40: 499.77 | J40: 507.08 | K40: 513.42 | L40: 500.75 | M40: 487.1 | N40: 10699200 | O40: -0.41%
A41: 31 | B41: Telecom | C41: BHARTIARTL | D41: 322.60 | E41: 325.72 | F41: 317.88 | G41: 313.17 | H41: 305.33 | I41: 330.43 | J41: 338.27 | K41: 342.98 | L41: 333.55 | M41: 321 | N41: 36065500 | O41: 0.84%
A42: 32 | B42: Capital_Goods | C42: BHEL | D42: 71.45 | E42: 71.50 | F42: 70.15 | G42: 68.85 | H42: 67.50 | I42: 72.80 | J42: 74.15 | K42: 75.45 | L42: 72.85 | M42: 70.2 | N42: 59752500 | O42: 2.05%
A43: 33 | B43: Pharma | C43: BIOCON | D43: 603.15 | E43: 607.38 | F43: 595.77 | G43: 588.38 | H43: 576.77 | I43: 614.77 | J43: 626.38 | K43: 633.77 | L43: 619 | M43: 600 | N43: 6293700 | O43: 10.81%
A44: 34 | B44: Automobile | C44: BOSCHLTD | D44: 17987.05 | E44: 18057.80 | F44: 17841.45 | G44: 17695.85 | H44: 17479.50 | I44: 18203.40 | J44: 18419.75 | K44: 18565.35 | L44: 18274.15 | M44: 17912.2 | N44: 158820 | O44: 5.48%
A45: 35 | B45: Oil_Gas | C45: BPCL | D45: 379.45 | E45: 381.78 | F45: 375.37 | G45: 371.28 | H45: 364.87 | I45: 385.87 | J45: 392.28 | K45: 396.37 | L45: 388.2 | M45: 377.7 | N45: 9343800 | O45: -4.23%
A46: 36 | B46: FMCG | C46: BRITANNIA | D46: 3101.55 | E46: 3097.27 | F46: 3079.58 | G46: 3057.62 | H46: 3039.93 | I46: 3119.23 | J46: 3136.92 | K46: 3158.88 | L46: 3114.95 | M46: 3075.3 | N46: 3236200 | O46: 2.10%
A47: 37 | B47: Pharma | C47: CADILAHC | D47: 331.15 | E47: 334.53 | F47: 327.12 | G47: 323.08 | H47: 315.67 | I47: 338.57 | J47: 345.98 | K47: 350.02 | L47: 341.95 | M47: 330.5 | N47: 12086400 | O47: 1.07%
A48: 38 | B48: Banking | C48: CANBK | D48: 285.80 | E48: 284.40 | F48: 281.05 | G48: 276.30 | H48: 272.95 | I48: 289.15 | J48: 292.50 | K48: 297.25 | L48: 287.75 | M48: 279.65 | N48: 13838000 | O48: -2.48%
A49: 39 | B49: Others | C49: CANFINHOME | D49: 336.50 | E49: 338.97 | F49: 331.93 | G49: 327.37 | H49: 320.33 | I49: 343.53 | J49: 350.57 | K49: 355.13 | L49: 346 | M49: 334.4 | N49: 4669200 | O49: -6.25%
A50: 40 | B50: Oil_Gas | C50: CASTROLIND | D50: 164.60 | E50: 164.58 | F50: 163.12 | G50: 161.63 | H50: 160.17 | I50: 166.07 | J50: 167.53 | K50: 169.02 | L50: 166.05 | M50: 163.1 | N50: 6888400 | O50: -2.03%
A51: 41 | B51: Automobile | C51: CEATLTD | D51: 1084.30 | E51: 1090.92 | F51: 1070.88 | G51: 1057.47 | H51: 1037.43 | I51: 1104.33 | J51: 1124.37 | K51: 1137.78 | L51: 1110.95 | M51: 1077.5 | N51: 1192800 | O51: -9.09%
A52: 42 | B52: Textile | C52: CENTURYTEX | D52: 898.65 | E52: 906.17 | F52: 887.23 | G52: 875.82 | H52: 856.88 | I52: 917.58 | J52: 936.52 | K52: 947.93 | L52: 925.1 | M52: 894.75 | N52: 4293600 | O52: -3.47%
A53: 43 | B53: Power | C53: CESC | D53: 716.25 | E53: 716.10 | F53: 707.20 | G53: 698.15 | H53: 689.25 | I53: 725.15 | J53: 734.05 | K53: 743.10 | L53: 725 | M53: 707.05 | N53: 1566950 | O53: -2.00%
A54: 44 | B54: Power | C54: CGPOWER | D54: 42.95 | E54: 43.35 | F54: 42.30 | G54: 41.65 | H54: 40.60 | I54: 44.00 | J54: 45.05 | K54: 45.70 | L54: 44.4 | M54: 42.7 | N54: 37956000 | O54: -15.18%
A55: 45 | B55: Others | C55: CHENNPETRO | D55: 260.50 | E55: 261.72 | F55: 256.83 | G55: 253.17 | H55: 248.28 | I55: 265.38 | J55: 270.27 | K55: 273.93 | L55: 266.6 | M55: 258.05 | N55: 1564200 | O55: -5.95%
A56: 46 | B56: Others | C56: CHOLAFIN | D56: 1426.40 | E56: 1425.83 | F56: 1387.67 | G56: 1348.93 | H56: 1310.77 | I56: 1464.57 | J56: 1502.73 | K56: 1541.47 | L56: 1464 | M56: 1387.1 | N56: 889000 | O56: 3.61%
A57: 47 | B57: Pharma | C57: CIPLA | D57: 526.30 | E57: 527.98 | F57: 520.42 | G57: 514.53 | H57: 506.97 | I57: 533.87 | J57: 541.43 | K57: 547.32 | L57: 535.55 | M57: 522.1 | N57: 9499000 | O57: -0.47%
A58: 48 | B58: Others | C58: COALINDIA | D58: 234.05 | E58: 235.07 | F58: 232.43 | G58: 230.82 | H58: 228.18 | I58: 236.68 | J58: 239.32 | K58: 240.93 | L58: 237.7 | M58: 233.45 | N58: 47733400 | O58: -1.19%
A59: 49 | B59: FMCG | C59: COLPAL | D59: 1265.20 | E59: 1267.40 | F59: 1258.50 | G59: 1251.80 | H59: 1242.90 | I59: 1274.10 | J59: 1283.00 | K59: 1289.70 | L59: 1276.3 | M59: 1260.7 | N59: 1802500 | O59: 0.82%
A60: 50 | B60: Others | C60: CONCOR | D60: 503.35 | E60: 505.57 | F60: 499.68 | G60: 496.02 | H60: 490.13 | I60: 509.23 | J60: 515.12 | K60: 518.78 | L60: 511.45 | M60: 501.9 | N60: 1597386 | O60: 7.81%
A61: 51 | B61: Capital_Goods | C61: CUMMINSIND | D61: 740.70 | E61: 739.47 | F61: 732.93 | G61: 725.17 | H61: 718.63 | I61: 747.23 | J61: 753.77 | K61: 761.53 | L61: 746 | M61: 731.7 | N61: 1508500 | O61: -7.79%
A62: 52 | B62: FMCG | C62: DABUR | D62: 412.30 | E62: 416.75 | F62: 405.55 | G62: 398.80 | H62: 387.60 | I62: 423.50 | J62: 434.70 | K62: 441.45 | L62: 427.95 | M62: 410 | N62: 11692500 | O62: 6.20%
A63: 53 | B63: Banking | C63: DCBBANK | D63: 203.85 | E63: 203.37 | F63: 200.33 | G63: 196.82 | H63: 193.78 | I63: 206.88 | J63: 209.92 | K63: 213.43 | L63: 206.4 | M63: 199.85 | N63: 6187500 | O63: -6.14%
A64: 54 | B64: Finance | C64: DHFL | D64: 136.85 | E64: 137.62 | F64: 134.53 | G64: 132.22 | H64: 129.13 | I64: 139.93 | J64: 143.02 | K64: 145.33 | L64: 140.7 | M64: 135.3 | N64: 20947500 | O64: -7.61%
A65: 55 | B65: Media | C65: DISHTV | D65: 36.35 | E65: 36.48 | F65: 35.42 | G65: 34.48 | H65: 33.42 | I65: 37.42 | J65: 38.48 | K65: 39.42 | L65: 37.55 | M65: 35.55 | N65: 64648000 | O65: -3.95%
A66: 56 | B66: Pharma | C66: DIVISLAB | D66: 1670.55 | E66: 1686.17 | F66: 1650.78 | G66: 1631.02 | H66: 1595.63 | I66: 1705.93 | J66: 1741.32 | K66: 1761.08 | L66: 1721.55 | M66: 1666.4 | N66: 2849200 | O66: -2.77%
A67: 57 | B67: Realty | C67: DLF | D67: 190.60 | E67: 193.30 | F67: 187.30 | G67: 184.00 | H67: 178.00 | I67: 196.60 | J67: 202.60 | K67: 205.90 | L67: 199.3 | M67: 190 | N67: 32999200 | O67: 7.66%
A68: 58 | B68: Pharma | C68: DRREDDY | D68: 2769.75 | E68: 2779.72 | F68: 2741.13 | G68: 2712.52 | H68: 2673.93 | I68: 2808.33 | J68: 2846.92 | K68: 2875.53 | L68: 2818.3 | M68: 2751.1 | N68: 3585500 | O68: -4.77%
A69: 59 | B69: Automobile | C69: EICHERMOT | D69: 21007.95 | E69: 21134.73 | F69: 20776.02 | G69: 20544.08 | H69: 20185.37 | I69: 21366.67 | J69: 21725.38 | K69: 21957.32 | L69: 21493.45 | M69: 20902.8 | N69: 422600 | O69: -2.07%
A70: 60 | B70: Infrastructure | C70: ENGINERSIN | D70: 116.45 | E70: 116.38 | F70: 114.62 | G70: 112.78 | H70: 111.02 | I70: 118.22 | J70: 119.98 | K70: 121.82 | L70: 118.15 | M70: 114.55 | N70: 9684200 | O70: -3.75%
A71: 61 | B71: Finance | C71: EQUITAS | D71: 134.40 | E71: 134.50 | F71: 132.50 | G71: 130.60 | H71: 128.60 | I71: 136.40 | J71: 138.40 | K71: 140.30 | L71: 136.5 | M71: 132.6 | N71: 13284000 | O71: 0.12%
A72: 62 | B72: Automobile | C72: ESCORTS | D72: 819.40 | E72: 816.03 | F72: 805.17 | G72: 790.93 | H72: 780.07 | I72: 830.27 | J72: 841.13 | K72: 855.37 | L72: 826.9 | M72: 801.8 | N72: 2594900 | O72: -5.75%
A73: 63 | B73: Automobile | C73: EXIDEIND | D73: 226.45 | E73: 226.77 | F73: 224.73 | G73: 223.02 | H73: 220.98 | I73: 228.48 | J73: 230.52 | K73: 232.23 | L73: 228.8 | M73: 225.05 | N73: 6604000 | O73: -1.02%
A74: 64 | B74: Banking | C74: FEDERALBNK | D74: 92.05 | E74: 91.90 | F74: 90.90 | G74: 89.75 | H74: 88.75 | I74: 93.05 | J74: 94.05 | K74: 95.20 | L74: 92.9 | M74: 90.75 | N74: 54530000 | O74: -2.45%
A75: 65 | B75: Oil_Gas | C75: GAIL | D75: 356.00 | E75: 357.68 | F75: 353.37 | G75: 350.73 | H75: 346.42 | I75: 360.32 | J75: 364.63 | K75: 367.27 | L75: 362 | M75: 355.05 | N75: 11574780 | O75: 6.09%
A76: 66 | B76: Pharma | C76: GLENMARK | D76: 642.45 | E76: 645.82 | F76: 638.28 | G76: 634.12 | H76: 626.58 | I76: 649.98 | J76: 657.52 | K76: 661.68 | L76: 653.35 | M76: 641.65 | N76: 4142000 | O76: -0.46%
A77: 67 | B77: Infrastructure | C77: GMRINFRA | D77: 19.60 | E77: 19.97 | F77: 18.93 | G77: 18.27 | H77: 17.23 | I77: 20.63 | J77: 21.67 | K77: 22.33 | L77: 21 | M77: 19.3 | N77: 197955000 | O77: -6.44%
A78: 68 | B78: Others | C78: GODFRYPHLP | D78: 1124.90 | E78: 1131.97 | F78: 1113.93 | G78: 1102.97 | H78: 1084.93 | I78: 1142.93 | J78: 1160.97 | K78: 1171.93 | L78: 1150 | M78: 1121 | N78: 469700 | O78: -2.04%
A79: 69 | B79: FMCG | C79: GODREJCP | D79: 690.90 | E79: 693.12 | F79: 684.48 | G79: 678.07 | H79: 669.43 | I79: 699.53 | J79: 708.17 | K79: 714.58 | L79: 701.75 | M79: 686.7 | N79: 5479200 | O79: -1.47%
A80: 70 | B80: FMCG | C80: GODREJIND | D80: 542.60 | E80: 545.45 | F80: 537.90 | G80: 533.20 | H80: 525.65 | I80: 550.15 | J80: 557.70 | K80: 562.40 | L80: 553 | M80: 540.75 | N80: 1131000 | O80: 0.94%
A81: 71 | B81: Cement | C81: GRASIM | D81: 829.80 | E81: 834.47 | F81: 822.43 | G81: 815.07 | H81: 803.03 | I81: 841.83 | J81: 853.87 | K81: 861.23 | L81: 846.5 | M81: 827.1 | N81: 12348000 | O81: -1.60%
A82: 72 | B82: Others | C82: GSFC | D82: 99.65 | E82: 100.37 | F82: 98.58 | G82: 97.52 | H82: 95.73 | I82: 101.43 | J82: 103.22 | K82: 104.28 | L82: 102.15 | M82: 99.3 | N82: 11035600 | O82: -1.88%
A83: 73 | B83: Others | C83: HAVELLS | D83: 750.85 | E83: 753.82 | F83: 743.18 | G83: 735.52 | H83: 724.88 | I83: 761.48 | J83: 772.12 | K83: 779.78 | L83: 764.45 | M83: 746.15 | N83: 4646000 | O83: -5.68%
A84: 74 | B84: Technology | C84: HCLTECH | D84: 1043.95 | E84: 1043.65 | F84: 1030.65 | G84: 1017.35 | H84: 1004.35 | I84: 1056.95 | J84: 1069.95 | K84: 1083.25 | L84: 1056.65 | M84: 1030.35 | N84: 9569700 | O84: -0.65%
A85: 75 | B85: Finance | C85: HDFC | D85: 1920.40 | E85: 1929.65 | F85: 1899.65 | G85: 1878.90 | H85: 1848.90 | I85: 1950.40 | J85: 1980.40 | K85: 2001.15 | L85: 1959.65 | M85: 1908.9 | N85: 32933500 | O85: 2.82%
A86: 76 | B86: Banking | C86: HDFCBANK | D86: 2300.60 | E86: 2305.05 | F86: 2275.25 | G86: 2249.90 | H86: 2220.10 | I86: 2330.40 | J86: 2360.20 | K86: 2385.55 | L86: 2334.85 | M86: 2279.7 | N86: 14992750 | O86: -4.10%
A87: 77 | B87: Automobile | C87: HEROMOTOCO | D87: 2548.20 | E87: 2560.18 | F87: 2530.47 | G87: 2512.73 | H87: 2483.02 | I87: 2577.92 | J87: 2607.63 | K87: 2625.37 | L87: 2589.9 | M87: 2542.45 | N87: 2935200 | O87: 2.98%
A88: 78 | B88: Technology | C88: HEXAWARE | D88: 336.60 | E88: 334.47 | F88: 331.53 | G88: 326.47 | H88: 323.53 | I88: 339.53 | J88: 342.47 | K88: 347.53 | L88: 337.4 | M88: 329.4 | N88: 2686500 | O88: -4.68%
A89: 79 | B89: Metals | C89: HINDALCO | D89: 207.85 | E89: 208.72 | F89: 206.33 | G89: 204.82 | H89: 202.43 | I89: 210.23 | J89: 212.62 | K89: 214.13 | L89: 211.1 | M89: 207.2 | N89: 34846000 | O89: -6.47%
A90: 80 | B90: Oil_Gas | C90: HINDPETRO | D90: 269.60 | E90: 271.78 | F90: 266.42 | G90: 263.23 | H90: 257.87 | I90: 274.97 | J90: 280.33 | K90: 283.52 | L90: 277.15 | M90: 268.6 | N90: 13773900 | O90: -8.51%
A91: 81 | B91: FMCG | C91: HINDUNILVR | D91: 1681.35 | E91: 1689.58 | F91: 1670.17 | G91: 1658.98 | H91: 1639.57 | I91: 1700.77 | J91: 1720.18 | K91: 1731.37 | L91: 1709 | M91: 1678.4 | N91: 14530200 | O91: -0.75%
A92: 82 | B92: Metals | C92: HINDZINC | D92: 272.60 | E92: 273.60 | F92: 270.45 | G92: 268.30 | H92: 265.15 | I92: 275.75 | J92: 278.90 | K92: 281.05 | L92: 276.75 | M92: 271.45 | N92: 4620800 | O92: 1.55%
A93: 83 | B93: Finance | C93: IBULHSGFIN | D93: 751.45 | E93: 748.57 | F93: 734.88 | G93: 718.32 | H93: 704.63 | I93: 765.13 | J93: 778.82 | K93: 795.38 | L93: 762.25 | M93: 732 | N93: 17777000 | O93: 0.35%
A94: 84 | B94: Banking | C94: ICICIBANK | D94: 393.10 | E94: 393.92 | F94: 389.08 | G94: 385.07 | H94: 380.23 | I94: 397.93 | J94: 402.77 | K94: 406.78 | L94: 398.75 | M94: 389.9 | N94: 107673500 | O94: -4.44%
A95: 85 | B95: Others | C95: ICICIPRULI | D95: 346.80 | E95: 343.87 | F95: 334.28 | G95: 321.77 | H95: 312.18 | I95: 356.38 | J95: 365.97 | K95: 378.48 | L95: 353.45 | M95: 331.35 | N95: 11061000 | O95: -30.14%
A96: 86 | B96: Banking | C96: IDBI | D96: 42.50 | E96: 42.60 | F96: 42.20 | G96: 41.90 | H96: 41.50 | I96: 42.90 | J96: 43.30 | K96: 43.60 | L96: 43 | M96: 42.3 | N96: 25160000 | O96: -1.80%
A97: 87 | B97: Telecom | C97: IDEA | D97: 28.25 | E97: 28.58 | F97: 27.67 | G97: 27.08 | H97: 26.17 | I97: 29.17 | J97: 30.08 | K97: 30.67 | L97: 29.5 | M97: 28 | N97: 219360000 | O97: -5.56%
A98: 88 | B98: Finance | C98: IDFC | D98: 46.20 | E98: 45.82 | F98: 44.73 | G98: 43.27 | H98: 42.18 | I98: 47.28 | J98: 48.37 | K98: 49.83 | L98: 46.9 | M98: 44.35 | N98: 117651600 | O98: -8.73%
A99: 89 | B99: Banking | C99: IDFCFIRSTB | D99: 53.60 | E99: 53.65 | F99: 52.65 | G99: 51.70 | H99: 50.70 | I99: 54.60 | J99: 55.60 | K99: 56.55 | L99: 54.65 | M99: 52.7 | N99: 144516000 | O99: -1.55%
A100: 90 | B100: Finance | C100: IFCI | D100: 13.20 | E100: 13.27 | F100: 13.03 | G100: 12.87 | H100: 12.63 | I100: 13.43 | J100: 13.67 | K100: 13.83 | L100: 13.5 | M100: 13.1 | N100: 54460000 | O100: -3.71%
A101: 91 | B101: Oil_Gas | C101: IGL | D101: 305.80 | E101: 306.48 | F101: 302.32 | G101: 298.83 | H101: 294.67 | I101: 309.97 | J101: 314.13 | K101: 317.62 | L101: 310.65 | M101: 303 | N101: 4372500 | O101: -1.91%
A102: 92 | B102: Cement | C102: INDIACEM | D102: 101.55 | E102: 102.17 | F102: 99.83 | G102: 98.12 | H102: 95.78 | I102: 103.88 | J102: 106.22 | K102: 107.93 | L102: 104.5 | M102: 100.45 | N102: 23319000 | O102: -5.21%
A103: 93 | B103: Banking | C103: INDIANB | D103: 264.35 | E103: 264.57 | F103: 261.33 | G103: 258.32 | H103: 255.08 | I103: 267.58 | J103: 270.82 | K103: 273.83 | L103: 267.8 | M103: 261.55 | N103: 4686000 | O103: 2.85%
A104: 94 | B104: Others | C104: INDIGO | D104: 1404.55 | E104: 1407.87 | F104: 1394.18 | G104: 1383.82 | H104: 1370.13 | I104: 1418.23 | J104: 1431.92 | K104: 1442.28 | L104: 1421.55 | M104: 1397.5 | N104: 2643600 | O104: -8.13%
A105: 95 | B105: Banking | C105: INDUSINDBK | D105: 1800.10 | E105: 1775.02 | F105: 1744.18 | G105: 1688.27 | H105: 1657.43 | I105: 1830.93 | J105: 1861.77 | K105: 1917.68 | L105: 1805.85 | M105: 1719.1 | N105: 8458800 | O105: -7.70%
A106: 96 | B106: Technology | C106: INFIBEAM | D106: 41.85 | E106: 42.03 | F106: 41.22 | G106: 40.58 | H106: 39.77 | I106: 42.67 | J106: 43.48 | K106: 44.12 | L106: 42.85 | M106: 41.4 | N106: 15612000 | O106: -2.81%
A107: 97 | B107: Telecom | C107: INFRATEL | D107: 316.70 | E107: 315.80 | F107: 312.40 | G107: 308.10 | H107: 304.70 | I107: 320.10 | J107: 323.50 | K107: 327.80 | L107: 319.2 | M107: 311.5 | N107: 7652000 | O107: -6.32%
A108: 98 | B108: Technology | C108: INFY | D108: 730.20 | E108: 729.07 | F108: 724.23 | G108: 718.27 | H108: 713.43 | I108: 735.03 | J108: 739.87 | K108: 745.83 | L108: 733.9 | M108: 723.1 | N108: 55909200 | O108: -0.35%
A109: 99 | B109: Oil_Gas | C109: IOC | D109: 160.70 | E109: 160.97 | F109: 159.38 | G109: 158.07 | H109: 156.48 | I109: 162.28 | J109: 163.87 | K109: 165.18 | L109: 162.55 | M109: 159.65 | N109: 87479000 | O109: 2.30%
A110: 100 | B110: Infrastructure | C110: IRB | D110: 142.15 | E110: 142.00 | F110: 140.05 | G110: 137.95 | H110: 136.00 | I110: 144.10 | J110: 146.05 | K110: 148.15 | L110: 143.95 | M110: 139.9 | N110: 7113600 | O110: -3.89%
A111: 101 | B111: FMCG | C111: ITC | D111: 293.30 | E111: 294.08 | F111: 291.27 | G111: 289.23 | H111: 286.42 | I111: 296.12 | J111: 298.93 | K111: 300.97 | L111: 296.9 | M111: 292.05 | N111: 77721600 | O111: -3.38%
A112: 102 | B112: Others | C112: JETAIRWAYS | D112: 266.95 | E112: 268.95 | F112: 262.00 | G112: 257.05 | H112: 250.10 | I112: 273.90 | J112: 280.85 | K112: 285.80 | L112: 275.9 | M112: 264 | N112: 6314000 | O112: -13.74%
A113: 103 | B113: Metals | C113: JINDALSTEL | D113: 166.30 | E113: 166.37 | F113: 164.08 | G113: 161.87 | H113: 159.58 | I113: 168.58 | J113: 170.87 | K113: 173.08 | L113: 168.65 | M113: 164.15 | N113: 23195250 | O113: -2.23%
A114: 104 | B114: Others | C114: JISLJALEQS | D114: 57.30 | E114: 57.63 | F114: 56.37 | G114: 55.43 | H114: 54.17 | I114: 58.57 | J114: 59.83 | K114: 60.77 | L114: 58.9 | M114: 56.7 | N114: 42714000 | O114: -6.11%
A115: 105 | B115: Realty | C115: JPASSOCIAT | D115: 5.40 | E115: 5.45 | F115: 5.30 | G115: 5.20 | H115: 5.05 | I115: 5.55 | J115: 5.70 | K115: 5.80 | L115: 5.6 | M115: 5.35 | N115: 43615000 | O115: -24.62%
A116: 106 | B116: Metals | C116: JSWSTEEL | D116: 287.45 | E116: 286.23 | F116: 282.82 | G116: 278.18 | H116: 274.77 | I116: 290.87 | J116: 294.28 | K116: 298.92 | L116: 289.65 | M116: 281.6 | N116: 54849000 | O116: 0.35%
A117: 107 | B117: Others | C117: JUBLFOOD | D117: 1448.40 | E117: 1454.63 | F117: 1438.22 | G117: 1428.03 | H117: 1411.62 | I117: 1464.82 | J117: 1481.23 | K117: 1491.42 | L117: 1471.05 | M117: 1444.45 | N117: 3679500 | O117: -4.40%
A118: 108 | B118: Others | C118: JUSTDIAL | D118: 597.80 | E118: 602.20 | F118: 589.00 | G118: 580.20 | H118: 567.00 | I118: 611.00 | J118: 624.20 | K118: 633.00 | L118: 615.4 | M118: 593.4 | N118: 3556000 | O118: -1.13%
A119: 109 | B119: Others | C119: KAJARIACER | D119: 570.45 | E119: 573.08 | F119: 561.17 | G119: 551.88 | H119: 539.97 | I119: 582.37 | J119: 594.28 | K119: 603.57 | L119: 585 | M119: 563.8 | N119: 2356900 | O119: -3.05%
A120: 110 | B120: Banking | C120: KOTAKBANK | D120: 1336.05 | E120: 1343.07 | F120: 1320.23 | G120: 1304.42 | H120: 1281.58 | I120: 1358.88 | J120: 1381.72 | K120: 1397.53 | L120: 1365.9 | M120: 1327.25 | N120: 15084800 | O120: 0.87%
A121: 111 | B121: Technology | C121: BSOFT | D121: 97.35 | E121: 97.22 | F121: 96.03 | G121: 94.72 | H121: 93.53 | I121: 98.53 | J121: 99.72 | K121: 101.03 | L121: 98.4 | M121: 95.9 | N121: 5103000 | O121: -1.99%
A122: 112 | B122: Others | C122: KSCL | D122: 452.30 | E122: 454.23 | F122: 447.97 | G122: 443.63 | H122: 437.37 | I122: 458.57 | J122: 464.83 | K122: 469.17 | L122: 460.5 | M122: 449.9 | N122: 1459500 | O122: -1.62%
A123: 113 | B123: Banking | C123: KTKBANK | D123: 132.15 | E123: 131.42 | F123: 130.23 | G123: 128.32 | H123: 127.13 | I123: 133.33 | J123: 134.52 | K123: 136.43 | L123: 132.6 | M123: 129.5 | N123: 17225500 | O123: -0.87%
A124: 114 | B124: Finance | C124: L&TFH | D124: 152.15 | E124: 151.27 | F124: 149.03 | G124: 145.92 | H124: 143.68 | I124: 154.38 | J124: 156.62 | K124: 159.73 | L124: 153.5 | M124: 148.15 | N124: 19921500 | O124: 11.20%
A125: 115 | B125: Finance | C125: LICHSGFIN | D125: 534.55 | E125: 537.15 | F125: 529.40 | G125: 524.25 | H125: 516.50 | I125: 542.30 | J125: 550.05 | K125: 555.20 | L125: 544.9 | M125: 532 | N125: 8082800 | O125: 4.18%
A126: 116 | B126: Capital_Goods | C126: LT | D126: 1368.20 | E126: 1375.30 | F126: 1357.60 | G126: 1347.00 | H126: 1329.30 | I126: 1385.90 | J126: 1403.60 | K126: 1414.20 | L126: 1393 | M126: 1364.7 | N126: 9742500 | O126: 1.42%
A127: 117 | B127: Pharma | C127: LUPIN | D127: 725.40 | E127: 730.72 | F127: 718.43 | G127: 711.47 | H127: 699.18 | I127: 737.68 | J127: 749.97 | K127: 756.93 | L127: 743 | M127: 723.75 | N127: 11802000 | O127: 4.92%
A128: 118 | B128: Automobile | C128: M&M | D128: 661.25 | E128: 665.47 | F128: 656.08 | G128: 650.92 | H128: 641.53 | I128: 670.63 | J128: 680.02 | K128: 685.18 | L128: 674.85 | M128: 660.3 | N128: 20747000 | O128: -0.98%
A129: 119 | B129: Finance | C129: M&MFIN | D129: 426.20 | E129: 424.47 | F129: 416.43 | G129: 406.67 | H129: 398.63 | I129: 434.23 | J129: 442.27 | K129: 452.03 | L129: 432.5 | M129: 414.7 | N129: 12278750 | O129: -7.28%
A130: 120 | B130: Others | C130: MANAPPURAM | D130: 121.70 | E130: 122.05 | F130: 119.85 | G130: 118.00 | H130: 115.80 | I130: 123.90 | J130: 126.10 | K130: 127.95 | L130: 124.25 | M130: 120.2 | N130: 10146000 | O130: 5.69%
A131: 121 | B131: FMCG | C131: MARICO | D131: 336.75 | E131: 338.18 | F131: 333.72 | G131: 330.68 | H131: 326.22 | I131: 341.22 | J131: 345.68 | K131: 348.72 | L131: 342.65 | M131: 335.15 | N131: 6986200 | O131: -2.01%
A132: 122 | B132: Automobile | C132: MARUTI | D132: 6528.10 | E132: 6563.42 | F132: 6476.28 | G132: 6424.47 | H132: 6337.33 | I132: 6615.23 | J132: 6702.37 | K132: 6754.18 | L132: 6650.55 | M132: 6511.6 | N132: 3465825 | O132: 1.14%
A133: 123 | B133: FMCG | C133: MCDOWELL-N | D133: 540.15 | E133: 544.32 | F133: 533.93 | G133: 527.72 | H133: 517.33 | I133: 550.53 | J133: 560.92 | K133: 567.13 | L133: 554.7 | M133: 538.1 | N133: 12513750 | O133: 10.39%
A134: 124 | B134: Others | C134: MCX | D134: 789.75 | E134: 790.38 | F134: 780.77 | G134: 771.78 | H134: 762.17 | I134: 799.37 | J134: 808.98 | K134: 817.97 | L134: 800 | M134: 781.4 | N134: 2303000 | O134: -1.44%
A135: 125 | B135: Finance | C135: MFSL | D135: 448.95 | E135: 446.67 | F135: 440.68 | G135: 432.42 | H135: 426.43 | I135: 454.93 | J135: 460.92 | K135: 469.18 | L135: 452.65 | M135: 438.4 | N135: 1564800 | O135: 0.93%
A136: 126 | B136: Others | C136: MGL | D136: 1012.70 | E136: 1005.68 | F136: 993.92 | G136: 975.13 | H136: 963.37 | I136: 1024.47 | J136: 1036.23 | K136: 1055.02 | L136: 1017.45 | M136: 986.9 | N136: 649800 | O136: 8.30%
A137: 127 | B137: Technology | C137: MINDTREE | D137: 944.55 | E137: 942.73 | F137: 935.72 | G137: 926.88 | H137: 919.87 | I137: 951.57 | J137: 958.58 | K137: 967.42 | L137: 949.75 | M137: 933.9 | N137: 4674600 | O137: -6.36%
A138: 128 | B138: Automobile | C138: MOTHERSUMI | D138: 142.40 | E138: 143.25 | F138: 138.40 | G138: 134.40 | H138: 129.55 | I138: 147.25 | J138: 152.10 | K138: 156.10 | L138: 148.1 | M138: 139.25 | N138: 36844800 | O138: -0.40%
A139: 129 | B139: Automobile | C139: MRF | D139: 56650.15 | E139: 56590.70 | F139: 56250.30 | G139: 55850.45 | H139: 55510.05 | I139: 56990.55 | J139: 57330.95 | K139: 57730.80 | L139: 56931.1 | M139: 56190.85 | N139: 37000 | O139: -6.52%
A140: 130 | B140: Others | C140: MRPL | D140: 74.20 | E140: 74.35 | F140: 73.65 | G140: 73.10 | H140: 72.40 | I140: 74.90 | J140: 75.60 | K140: 76.15 | L140: 75.05 | M140: 73.8 | N140: 3759000 | O140: -10.95%
A141: 131 | B141: Finance | C141: MUTHOOTFIN | D141: 594.95 | E141: 596.42 | F141: 589.48 | G141: 584.02 | H141: 577.08 | I141: 601.88 | J141: 608.82 | K141: 614.28 | L141: 603.35 | M141: 590.95 | N141: 2610000 | O141: -3.60%
A142: 132 | B142: Others | C142: NATIONALUM | D142: 53.25 | E142: 53.55 | F142: 52.70 | G142: 52.15 | H142: 51.30 | I142: 54.10 | J142: 54.95 | K142: 55.50 | L142: 54.4 | M142: 53 | N142: 30480000 | O142: 3.79%
A143: 133 | B143: Others | C143: NBCC | D143: 63.85 | E143: 64.27 | F143: 63.28 | G143: 62.72 | H143: 61.73 | I143: 64.83 | J143: 65.82 | K143: 66.38 | L143: 65.25 | M143: 63.7 | N143: 38656000 | O143: -0.02%
A144: 134 | B144: Infrastructure | C144: NCC | D144: 112.45 | E144: 112.60 | F144: 111.00 | G144: 109.55 | H144: 107.95 | I144: 114.05 | J144: 115.65 | K144: 117.10 | L144: 114.2 | M144: 111.15 | N144: 39552000 | O144: -3.93%
A145: 135 | B145: Others | C145: NESTLEIND | D145: 10899.20 | E145: 10855.40 | F145: 10648.80 | G145: 10398.40 | H145: 10191.80 | I145: 11105.80 | J145: 11312.40 | K145: 11562.80 | L145: 11062 | M145: 10605 | N145: 358950 | O145: -4.09%
A146: 136 | B146: Power | C146: NHPC | D146: 24.65 | E146: 24.75 | F146: 24.55 | G146: 24.45 | H146: 24.25 | I146: 24.85 | J146: 25.05 | K146: 25.15 | L146: 24.95 | M146: 24.65 | N146: 27810000 | O146: -32.01%
A147: 137 | B147: Technology | C147: NIITTECH | D147: 1320.20 | E147: 1316.87 | F147: 1309.33 | G147: 1298.47 | H147: 1290.93 | I147: 1327.73 | J147: 1335.27 | K147: 1346.13 | L147: 1324.4 | M147: 1306 | N147: 1445250 | O147: 2.83%
A148: 138 | B148: Metals | C148: NMDC | D148: 102.00 | E148: 103.05 | F148: 100.50 | G148: 99.00 | H148: 96.45 | I148: 104.55 | J148: 107.10 | K148: 108.60 | L148: 105.6 | M148: 101.55 | N148: 15228000 | O148: 9.63%
A149: 139 | B149: Power | C149: NTPC | D149: 137.00 | E149: 137.95 | F149: 135.50 | G149: 134.00 | H149: 131.55 | I149: 139.45 | J149: 141.90 | K149: 143.40 | L149: 140.4 | M149: 136.45 | N149: 104961600 | O149: -0.40%
A150: 140 | B150: Technology | C150: OFSS | D150: 3377.65 | E150: 3382.87 | F150: 3350.78 | G150: 3323.92 | H150: 3291.83 | I150: 3409.73 | J150: 3441.82 | K150: 3468.68 | L150: 3414.95 | M150: 3356 | N150: 203700 | O150: -2.79%
A151: 141 | B151: Oil_Gas | C151: OIL | D151: 181.30 | E151: 180.30 | F151: 178.00 | G151: 174.70 | H151: 172.40 | I151: 183.60 | J151: 185.90 | K151: 189.20 | L151: 182.6 | M151: 177 | N151: 11186109 | O151: -2.72%
A152: 142 | B152: Oil_Gas | C152: ONGC | D152: 158.85 | E152: 158.63 | F152: 156.87 | G152: 154.88 | H152: 153.12 | I152: 160.62 | J152: 162.38 | K152: 164.37 | L152: 160.4 | M152: 156.65 | N152: 67897500 | O152: -2.05%
A153: 143 | B153: Banking | C153: ORIENTBANK | D153: 112.85 | E153: 111.35 | F153: 109.00 | G153: 105.15 | H153: 102.80 | I153: 115.20 | J153: 117.55 | K153: 121.40 | L153: 113.7 | M153: 107.5 | N153: 16828000 | O153: -14.69%
A154: 144 | B154: Textile | C154: PAGEIND | D154: 24575.30 | E154: 24828.40 | F154: 24166.90 | G154: 23758.50 | H154: 23097.00 | I154: 25236.80 | J154: 25898.30 | K154: 26306.70 | L154: 25489.9 | M154: 24420 | N154: 101200 | O154: -10.58%
A155: 145 | B155: Others | C155: PCJEWELLER | D155: 80.75 | E155: 80.77 | F155: 79.58 | G155: 78.42 | H155: 77.23 | I155: 81.93 | J155: 83.12 | K155: 84.28 | L155: 81.95 | M155: 79.6 | N155: 11706500 | O155: -4.10%
A156: 146 | B156: Pharma | C156: PEL | D156: 2628.20 | E156: 2636.52 | F156: 2600.08 | G156: 2571.97 | H156: 2535.53 | I156: 2664.63 | J156: 2701.07 | K156: 2729.18 | L156: 2672.95 | M156: 2608.4 | N156: 3470886 | O156: 5.44%
A157: 147 | B157: Oil_Gas | C157: PETRONET | D157: 236.35 | E157: 237.33 | F157: 233.72 | G157: 231.08 | H157: 227.47 | I157: 239.97 | J157: 243.58 | K157: 246.22 | L157: 240.95 | M157: 234.7 | N157: 10875000 | O157: -5.01%
A158: 148 | B158: Finance | C158: PFC | D158: 117.90 | E158: 117.97 | F158: 116.53 | G158: 115.17 | H158: 113.73 | I158: 119.33 | J158: 120.77 | K158: 122.13 | L158: 119.4 | M158: 116.6 | N158: 37249600 | O158: -8.72%
A159: 149 | B159: FMCG | C159: PIDILITIND | D159: 1223.60 | E159: 1225.37 | F159: 1214.28 | G159: 1204.97 | H159: 1193.88 | I159: 1234.68 | J159: 1245.77 | K159: 1255.08 | L159: 1236.45 | M159: 1216.05 | N159: 2586000 | O159: -0.39%
A160: 150 | B160: Banking | C160: PNB | D160: 93.70 | E160: 93.98 | F160: 92.62 | G160: 91.53 | H160: 90.17 | I160: 95.07 | J160: 96.43 | K160: 97.52 | L160: 95.35 | M160: 92.9 | N160: 108955000 | O160: 0.34%
A161: 151 | B161: Power | C161: POWERGRID | D161: 200.05 | E161: 200.90 | F161: 197.95 | G161: 195.85 | H161: 192.90 | I161: 203.00 | J161: 205.95 | K161: 208.05 | L161: 203.85 | M161: 198.8 | N161: 20848000 | O161: 9.66%
A162: 152 | B162: Others | C162: PVR | D162: 1601.25 | E162: 1598.65 | F162: 1572.65 | G162: 1544.05 | H162: 1518.05 | I162: 1627.25 | J162: 1653.25 | K162: 1681.85 | L162: 1624.65 | M162: 1570.05 | N162: 698000 | O162: -15.25%
A163: 153 | B163: Cement | C163: RAMCOCEM | D163: 711.15 | E163: 714.27 | F163: 703.48 | G163: 695.82 | H163: 685.03 | I163: 721.93 | J163: 732.72 | K163: 740.38 | L163: 725.05 | M163: 706.6 | N163: 1502400 | O163: 14.86%
A164: 154 | B164: Others | C164: RAYMOND | D164: 801.25 | E164: 804.67 | F164: 794.33 | G164: 787.42 | H164: 777.08 | I164: 811.58 | J164: 821.92 | K164: 828.83 | L164: 815 | M164: 797.75 | N164: 3504000 | O164: 7.86%
A165: 155 | B165: Banking | C165: RBLBANK | D165: 668.85 | E165: 667.85 | F165: 658.00 | G165: 647.15 | H165: 637.30 | I165: 678.70 | J165: 688.55 | K165: 699.40 | L165: 677.7 | M165: 657 | N165: 8802000 | O165: -6.02%
A166: 157 | B166: Power | C166: RECLTD | D166: 149.25 | E166: 149.75 | F166: 147.60 | G166: 145.95 | H166: 143.80 | I166: 151.40 | J166: 153.55 | K166: 155.20 | L166: 151.9 | M166: 148.1 | N166: 45474000 | O166: -10.32%
A167: 158 | B167: Finance | C167: RELCAPITAL | D167: 201.25 | E167: 203.80 | F167: 193.35 | G167: 185.45 | H167: 175.00 | I167: 211.70 | J167: 222.15 | K167: 230.05 | L167: 214.25 | M167: 195.9 | N167: 10188000 | O167: -2.93%
A168: 159 | B168: Oil_Gas | C168: RELIANCE | D168: 1351.55 | E168: 1358.38 | F168: 1339.97 | G168: 1328.38 | H168: 1309.97 | I168: 1369.97 | J168: 1388.38 | K168: 1399.97 | L168: 1376.8 | M168: 1346.8 | N168: 54192500 | O168: -1.22%
A169: 160 | B169: Power | C169: RELINFRA | D169: 131.00 | E169: 132.85 | F169: 128.10 | G169: 125.20 | H169: 120.45 | I169: 135.75 | J169: 140.50 | K169: 143.40 | L169: 137.6 | M169: 129.95 | N169: 10923900 | O169: -12.90%
A170: 161 | B170: Others | C170: REPCOHOME | D170: 472.35 | E170: 470.02 | F170: 459.33 | G170: 446.32 | H170: 435.63 | I170: 483.03 | J170: 493.72 | K170: 506.73 | L170: 480.7 | M170: 457 | N170: 1383800 | O170: 1.70%
A171: 162 | B171: Power | C171: RPOWER | D171: 10.40 | E171: 10.50 | F171: 10.15 | G171: 9.90 | H171: 9.55 | I171: 10.75 | J171: 11.10 | K171: 11.35 | L171: 10.85 | M171: 10.25 | N171: 85856000 | O171: -2.26%
A172: 163 | B172: Metals | C172: SAIL | D172: 50.35 | E172: 50.83 | F172: 49.72 | G172: 49.08 | H172: 47.97 | I172: 51.47 | J172: 52.58 | K172: 53.22 | L172: 51.95 | M172: 50.2 | N172: 113580000 | O172: 0.92%
A173: 164 | B173: Banking | C173: SBIN | D173: 308.70 | E173: 308.23 | F173: 305.22 | G173: 301.73 | H173: 298.72 | I173: 311.72 | J173: 314.73 | K173: 318.22 | L173: 311.25 | M173: 304.75 | N173: 82029000 | O173: -7.74%
A174: 165 | B174: Cement | C174: SHREECEM | D174: 17931.70 | E174: 17991.98 | F174: 17683.97 | G174: 17436.23 | H174: 17128.22 | I174: 18239.72 | J174: 18547.73 | K174: 18795.47 | L174: 18300 | M174: 17744.25 | N174: 82550 | O174: -1.67%
A175: 166 | B175: Capital_Goods | C175: SIEMENS | D175: 1065.35 | E175: 1068.97 | F175: 1050.58 | G175: 1035.82 | H175: 1017.43 | I175: 1083.73 | J175: 1102.12 | K175: 1116.88 | L175: 1087.35 | M175: 1054.2 | N175: 2017950 | O175: 11.22%
A176: 167 | B176: Banking | C176: SOUTHBANK | D176: 15.90 | E176: 15.93 | F176: 15.77 | G176: 15.63 | H176: 15.47 | I176: 16.07 | J176: 16.23 | K176: 16.37 | L176: 16.1 | M176: 15.8 | N176: 166202115 | O176: 7.64%
A177: 169 | B177: Textile | C177: SRF | D177: 2436.60 | E177: 2440.15 | F177: 2411.10 | G177: 2385.60 | H177: 2356.55 | I177: 2465.65 | J177: 2494.70 | K177: 2520.20 | L177: 2469.2 | M177: 2414.65 | N177: 954500 | O177: 5.88%
A178: 170 | B178: Finance | C178: SRTRANSFIN | D178: 1248.85 | E178: 1237.57 | F178: 1208.53 | G178: 1168.22 | H178: 1139.18 | I178: 1277.88 | J178: 1306.92 | K178: 1347.23 | L178: 1266.6 | M178: 1197.25 | N178: 3822000 | O178: -1.58%
A179: 171 | B179: Pharma | C179: STAR | D179: 458.45 | E179: 458.72 | F179: 447.73 | G179: 437.02 | H179: 426.03 | I179: 469.43 | J179: 480.42 | K179: 491.13 | L179: 469.7 | M179: 448 | N179: 3834600 | O179: -3.52%
A180: 172 | B180: Pharma | C180: SUNPHARMA | D180: 465.60 | E180: 468.37 | F180: 458.23 | G180: 450.87 | H180: 440.73 | I180: 475.73 | J180: 485.87 | K180: 493.23 | L180: 478.5 | M180: 461 | N180: 52628400 | O180: 1.44%
A181: 173 | B181: Media | C181: SUNTV | D181: 590.05 | E181: 593.27 | F181: 583.78 | G181: 577.52 | H181: 568.03 | I181: 599.53 | J181: 609.02 | K181: 615.28 | L181: 602.75 | M181: 587 | N181: 6496000 | O181: -2.67%
A182: 174 | B182: Power | C182: SUZLON | D182: 6.70 | E182: 6.75 | F182: 6.60 | G182: 6.50 | H182: 6.35 | I182: 6.85 | J182: 7.00 | K182: 7.10 | L182: 6.9 | M182: 6.65 | N182: 278692000 | O182: 5.80%
A183: 175 | B183: Banking | C183: SYNDIBANK | D183: 40.75 | E183: 40.55 | F183: 40.05 | G183: 39.35 | H183: 38.85 | I183: 41.25 | J183: 41.75 | K183: 42.45 | L183: 41.05 | M183: 39.85 | N183: 28605000 | O183: 1.27%
A184: 176 | B184: Fertilisers | C184: TATACHEM | D184: 583.30 | E184: 581.85 | F184: 578.45 | G184: 573.60 | H184: 570.20 | I184: 586.70 | J184: 590.10 | K184: 594.95 | L184: 585.25 | M184: 577 | N184: 4107750 | O184: -2.58%
A185: 177 | B185: Telecom | C185: TATACOMM | D185: 602.40 | E185: 601.72 | F185: 597.28 | G185: 592.17 | H185: 587.73 | I185: 606.83 | J185: 611.27 | K185: 616.38 | L185: 606.15 | M185: 596.6 | N185: 3020000 | O185: -0.40%
A186: 178 | B186: Technology | C186: TATAELXSI | D186: 954.20 | E186: 958.05 | F186: 947.95 | G186: 941.70 | H186: 931.60 | I186: 964.30 | J186: 974.40 | K186: 980.65 | L186: 968.15 | M186: 951.8 | N186: 1657200 | O186: 3.94%
A187: 179 | B187: FMCG | C187: TATAGLOBAL | D187: 197.15 | E187: 197.70 | F187: 194.35 | G187: 191.55 | H187: 188.20 | I187: 200.50 | J187: 203.85 | K187: 206.65 | L187: 201.05 | M187: 194.9 | N187: 13902750 | O187: -3.48%
A188: 180 | B188: Automobile | C188: TATAMOTORS | D188: 170.30 | E188: 172.07 | F188: 168.13 | G188: 165.97 | H188: 162.03 | I188: 174.23 | J188: 178.17 | K188: 180.33 | L188: 176 | M188: 169.9 | N188: 60788000 | O188: 1.39%
A189: 181 | B189: Automobile | C189: TATAMTRDVR | D189: 85.25 | E189: 85.50 | F189: 84.25 | G189: 83.25 | H189: 82.00 | I189: 86.50 | J189: 87.75 | K189: 88.75 | L189: 86.75 | M189: 84.5 | N189: 31285400 | O189: -9.41%
A190: 182 | B190: Power | C190: TATAPOWER | D190: 71.50 | E190: 71.92 | F190: 70.83 | G190: 70.17 | H190: 69.08 | I190: 72.58 | J190: 73.67 | K190: 74.33 | L190: 73 | M190: 71.25 | N190: 52767000 | O190: -9.67%
A191: 183 | B191: Metals | C191: TATASTEEL | D191: 516.15 | E191: 517.60 | F191: 511.75 | G191: 507.35 | H191: 501.50 | I191: 522.00 | J191: 527.85 | K191: 532.25 | L191: 523.45 | M191: 513.2 | N191: 28964239 | O191: -0.08%
A192: 184 | B192: Technology | C192: TCS | D192: 1969.75 | E192: 1977.93 | F192: 1955.77 | G192: 1941.78 | H192: 1919.62 | I192: 1991.92 | J192: 2014.08 | K192: 2028.07 | L192: 2000.1 | M192: 1963.95 | N192: 16709250 | O192: -0.86%
A193: 185 | B193: Technology | C193: TECHM | D193: 766.35 | E193: 767.82 | F193: 762.38 | G193: 758.42 | H193: 752.98 | I193: 771.78 | J193: 777.22 | K193: 781.18 | L193: 773.25 | M193: 763.85 | N193: 15220800 | O193: 5.59%
A194: 186 | B194: FMCG | C194: TITAN | D194: 1116.60 | E194: 1115.35 | F194: 1108.05 | G194: 1099.50 | H194: 1092.20 | I194: 1123.90 | J194: 1131.20 | K194: 1139.75 | L194: 1122.65 | M194: 1106.8 | N194: 10211250 | O194: 0.75%
A195: 187 | B195: Pharma | C195: TORNTPHARM | D195: 1889.20 | E195: 1893.68 | F195: 1870.62 | G195: 1852.03 | H195: 1828.97 | I195: 1912.27 | J195: 1935.33 | K195: 1953.92 | L195: 1916.75 | M195: 1875.1 | N195: 617500 | O195: 1.90%
A196: 188 | B196: Power | C196: TORNTPOWER | D196: 252.90 | E196: 253.90 | F196: 249.80 | G196: 246.70 | H196: 242.60 | I196: 257.00 | J196: 261.10 | K196: 264.20 | L196: 258 | M196: 250.8 | N196: 2799000 | O196: 2.30%
A197: 189 | B197: Media | C197: TV18BRDCST | D197: 34.65 | E197: 34.88 | F197: 34.27 | G197: 33.88 | H197: 33.27 | I197: 35.27 | J197: 35.88 | K197: 36.27 | L197: 35.5 | M197: 34.5 | N197: 62855000 | O197: -11.98%
A198: 190 | B198: Automobile | C198: TVSMOTOR | D198: 460.10 | E198: 461.12 | F198: 456.58 | G198: 453.07 | H198: 448.53 | I198: 464.63 | J198: 469.17 | K198: 472.68 | L198: 465.65 | M198: 457.6 | N198: 6355000 | O198: 3.18%
A199: 191 | B199: FMCG | C199: UBL | D199: 1357.35 | E199: 1390.10 | F199: 1317.25 | G199: 1277.15 | H199: 1204.30 | I199: 1430.20 | J199: 1503.05 | K199: 1543.15 | L199: 1462.95 | M199: 1350 | N199: 2573200 | O199: 0.82%
A200: 192 | B200: Finance | C200: UJJIVAN | D200: 337.15 | E200: 334.83 | F200: 327.67 | G200: 318.18 | H200: 311.02 | I200: 344.32 | J200: 351.48 | K200: 360.97 | L200: 342 | M200: 325.35 | N200: 4065600 | O200: 4.74%
A201: 193 | B201: Cement | C201: ULTRACEMCO | D201: 3912.05 | E201: 3934.38 | F201: 3862.27 | G201: 3812.48 | H201: 3740.37 | I201: 3984.17 | J201: 4056.28 | K201: 4106.07 | L201: 4006.5 | M201: 3884.6 | N201: 2038600 | O201: -0.33%
A202: 194 | B202: Banking | C202: UNIONBANK | D202: 94.10 | E202: 93.18 | F202: 91.82 | G202: 89.53 | H202: 88.17 | I202: 95.47 | J202: 96.83 | K202: 99.12 | L202: 94.55 | M202: 90.9 | N202: 33488000 | O202: -5.04%
A203: 195 | B203: Fertilisers | C203: UPL | D203: 904.35 | E203: 905.32 | F203: 896.68 | G203: 889.02 | H203: 880.38 | I203: 912.98 | J203: 921.62 | K203: 929.28 | L203: 913.95 | M203: 897.65 | N203: 14283600 | O203: -2.09%
A204: 196 | B204: Metals | C204: VEDL | D204: 175.90 | E204: 175.77 | F204: 173.98 | G204: 172.07 | H204: 170.28 | I204: 177.68 | J204: 179.47 | K204: 181.38 | L204: 177.55 | M204: 173.85 | N204: 36392900 | O204: -3.55%
A205: 197 | B205: Others | C205: VGUARD | D205: 222.70 | E205: 220.13 | F205: 216.77 | G205: 210.83 | H205: 207.47 | I205: 226.07 | J205: 229.43 | K205: 235.37 | L205: 223.5 | M205: 214.2 | N205: 3729000 | O205: 0.89%
A206: 198 | B206: Capital_Goods | C206: VOLTAS | D206: 623.60 | E206: 622.20 | F206: 617.65 | G206: 611.70 | H206: 607.15 | I206: 628.15 | J206: 632.70 | K206: 638.65 | L206: 626.75 | M206: 616.25 | N206: 5734000 | O206: -7.53%
... 19 more rows

Sheet Cash Intra
M5: Back to Main Page
A6: FOR INTRA DAY TRADING | K6: =Main!B10 -> 2019-03-28
A8: Sr.no | B8: Scrip | C8: CLOSE RATE | D8: Pivot Point | E8: Supports | H8: Resistances
C9: Point | E9: S1 | F9: S2 | G9: S3 | H9: R1 | I9: R2 | J9: R3 | K9: HIGH | L9: LOW | M9: Total Trade Quanity in Lakhs
A10: 1 | B10: Nifty 50 | C10: 11445.05 | D10: 11468.08 | E10: 11389.97 | F10: 11334.88 | G10: 11256.77 | H10: 11523.17 | I10: 11601.28 | J10: 11656.37 | K10: 11546.2 | L10: 11413
A11: 2 | B11: Nifty Bank | C11: 30019.8 | D11: 30024.20 | E11: 29785.85 | F11: 29551.90 | G11: 29313.55 | H11: 30258.15 | I11: 30496.50 | J11: 30730.45 | K11: 30262.55 | L11: 29790.25
A12: 3 | B12: Nifty CPSE | C12: 2255.95 | D12: 2261.93 | E12: 2244.07 | F12: 2232.18 | G12: 2214.32 | H12: 2273.82 | I12: 2291.68 | J12: 2303.57 | K12: 2279.8 | L12: 2250.05
A13: 4 | B13: Nifty Infra | C13: 3165.4 | D13: 3178.70 | E13: 3146.75 | F13: 3128.10 | G13: 3096.15 | H13: 3197.35 | I13: 3229.30 | J13: 3247.95 | K13: 3210.65 | L13: 3160.05
A14: 5 | B14: Nifty IT | C14: 15339.4 | D14: 15356.12 | E14: 15290.38 | F14: 15241.37 | G14: 15175.63 | H14: 15405.13 | I14: 15470.87 | J14: 15519.88 | K14: 15421.85 | L14: 15307.1
A15: 6 | B15: Nifty PSE | C15: 3549.9 | D15: 3561.48 | E15: 3529.97 | F15: 3510.03 | G15: 3478.52 | H15: 3581.42 | I15: 3612.93 | J15: 3632.87 | K15: 3593 | L15: 3541.55
A16: 7 | B16: Nifty Midcap 50 | C16: 4974.1 | D16: 4985.83 | E16: 4956.32 | F16: 4938.53 | G16: 4909.02 | H16: 5003.62 | I16: 5033.13 | J16: 5050.92 | K16: 5015.35 | L16: 4968.05
A17: 8 | B17: ABB | C17: 1326.45 | D17: 1331.47 | E17: 1314.93 | F17: 1303.42 | G17: 1286.88 | H17: 1342.98 | I17: 1359.52 | J17: 1371.03 | K17: 1348 | L17: 1319.95 | M17: 1.82854
A18: 9 | B18: ACC | C18: 1602.55 | D18: 1595.13 | E18: 1576.27 | F18: 1549.98 | G18: 1531.12 | H18: 1621.42 | I18: 1640.28 | J18: 1666.57 | K18: 1614 | L18: 1568.85 | M18: 13.28748
A19: 10 | B19: AIAENG | C19: 1762.9 | D19: 1741.23 | E19: 1707.72 | F19: 1652.53 | G19: 1619.02 | H19: 1796.42 | I19: 1829.93 | J19: 1885.12 | K19: 1774.75 | L19: 1686.05 | M19: 0.13924
A20: 11 | B20: AUBANK | C20: 574.55 | D20: 569.38 | E20: 560.27 | F20: 545.98 | G20: 536.87 | H20: 583.67 | I20: 592.78 | J20: 607.07 | K20: 578.5 | L20: 555.1 | M20: 9.5973
A21: 12 | B21: ADANIENT | C21: 137.5 | D21: 138.23 | E21: 135.52 | F21: 133.53 | G21: 130.82 | H21: 140.22 | I21: 142.93 | J21: 144.92 | K21: 140.95 | L21: 136.25 | M21: 27.78662
A22: 13 | B22: ADANIPORTS | C22: 366.3 | D22: 367.40 | E22: 363.10 | F22: 359.90 | G22: 355.60 | H22: 370.60 | I22: 374.90 | J22: 378.10 | K22: 371.7 | L22: 364.2 | M22: 29.65654
A23: 14 | B23: ADANIPOWER | C23: 46.9 | D23: 47.28 | E23: 46.12 | F23: 45.33 | G23: 44.17 | H23: 48.07 | I23: 49.23 | J23: 50.02 | K23: 48.45 | L23: 46.5 | M23: 78.26448
A24: 15 | B24: ABFRL | C24: 223.5 | D24: 222.05 | E24: 218.45 | F24: 213.40 | G24: 209.80 | H24: 227.10 | I24: 230.70 | J24: 235.75 | K24: 225.65 | L24: 217 | M24: 9.90443
A25: 16 | B25: AJANTPHARM | C25: 1000.95 | D25: 1001.35 | E25: 978.70 | F25: 956.45 | G25: 933.80 | H25: 1023.60 | I25: 1046.25 | J25: 1068.50 | K25: 1024 | L25: 979.1 | M25: 3.22229
A26: 17 | B26: ALKEM | C26: 1750.35 | D26: 1759.92 | E26: 1739.43 | F26: 1728.52 | G26: 1708.03 | H26: 1770.83 | I26: 1791.32 | J26: 1802.23 | K26: 1780.4 | L26: 1749 | M26: 0.45278
A27: 18 | B27: AMARAJABAT | C27: 721.4 | D27: 718.83 | E27: 707.92 | F27: 694.43 | G27: 683.52 | H27: 732.32 | I27: 743.23 | J27: 756.72 | K27: 729.75 | L27: 705.35 | M27: 14.89075
A28: 19 | B28: AMBUJACEM | C28: 232.25 | D28: 233.63 | E28: 229.02 | F28: 225.78 | G28: 221.17 | H28: 236.87 | I28: 241.48 | J28: 244.72 | K28: 238.25 | L28: 230.4 | M28: 46.39012
A29: 20 | B29: APOLLOHOSP | C29: 1153.75 | D29: 1160.63 | E29: 1143.17 | F29: 1132.58 | G29: 1115.12 | H29: 1171.22 | I29: 1188.68 | J29: 1199.27 | K29: 1178.1 | L29: 1150.05 | M29: 4.86185
A30: 21 | B30: APOLLOTYRE | C30: 214 | D30: 214.85 | E30: 212.20 | F30: 210.40 | G30: 207.75 | H30: 216.65 | I30: 219.30 | J30: 221.10 | K30: 217.5 | L30: 213.05 | M30: 15.4854
A31: 22 | B31: ARVIND | C31: 87.95 | D31: 88.67 | E31: 86.18 | F31: 84.42 | G31: 81.93 | H31: 90.43 | I31: 92.92 | J31: 94.68 | K31: 91.15 | L31: 86.9 | M31: 43.18703
A32: 23 | B32: ASHOKLEY | C32: 85.45 | D32: 86.10 | E32: 84.45 | F32: 83.45 | G32: 81.80 | H32: 87.10 | I32: 88.75 | J32: 89.75 | K32: 87.75 | L32: 85.1 | M32: 250.86886
A33: 24 | B33: ASIANPAINT | C33: 1472.05 | D33: 1477.50 | E33: 1458.05 | F33: 1444.05 | G33: 1424.60 | H33: 1491.50 | I33: 1510.95 | J33: 1524.95 | K33: 1496.95 | L33: 1463.5 | M33: 13.87002
A34: 25 | B34: AUROPHARMA | C34: 775.05 | D34: 777.72 | E34: 766.73 | F34: 758.42 | G34: 747.43 | H34: 786.03 | I34: 797.02 | J34: 805.33 | K34: 788.7 | L34: 769.4 | M34: 17.32033
A35: 26 | B35: DMART | C35: 1479.4 | D35: 1478.95 | E35: 1467.95 | F35: 1456.50 | G35: 1445.50 | H35: 1490.40 | I35: 1501.40 | J35: 1512.85 | K35: 1489.95 | L35: 1467.5 | M35: 2.21121
A36: 27 | B36: AXISBANK | C36: 759.3 | D36: 761.72 | E36: 753.43 | F36: 747.57 | G36: 739.28 | H36: 767.58 | I36: 775.87 | J36: 781.73 | K36: 770 | L36: 755.85 | M36: 74.56768
A37: 28 | B37: BAJAJ-AUTO | C37: 2980.1 | D37: 2975.03 | E37: 2955.07 | F37: 2930.03 | G37: 2910.07 | H37: 3000.07 | I37: 3020.03 | J37: 3045.07 | K37: 2995 | L37: 2950 | M37: 4.02423
A38: 29 | B38: BAJFINANCE | C38: 2945.25 | D38: 2963.97 | E38: 2913.78 | F38: 2882.32 | G38: 2832.13 | H38: 2995.43 | I38: 3045.62 | J38: 3077.08 | K38: 3014.15 | L38: 2932.5 | M38: 24.19656
A39: 30 | B39: BAJAJFINSV | C39: 6980.35 | D39: 7003.57 | E39: 6928.13 | F39: 6875.92 | G39: 6800.48 | H39: 7055.78 | I39: 7131.22 | J39: 7183.43 | K39: 7079 | L39: 6951.35 | M39: 4.44893
A40: 31 | B40: BALKRISIND | C40: 962.85 | D40: 963.30 | E40: 954.60 | F40: 946.35 | G40: 937.65 | H40: 971.55 | I40: 980.25 | J40: 988.50 | K40: 972 | L40: 955.05 | M40: 5.99798
A41: 32 | B41: BANKBARODA | C41: 121.55 | D41: 121.77 | E41: 120.08 | F41: 118.62 | G41: 116.93 | H41: 123.23 | I41: 124.92 | J41: 126.38 | K41: 123.45 | L41: 120.3 | M41: 168.00819
A42: 33 | B42: BANKINDIA | C42: 103.15 | D42: 102.80 | E42: 101.90 | F42: 100.65 | G42: 99.75 | H42: 104.05 | I42: 104.95 | J42: 106.20 | K42: 103.7 | L42: 101.55 | M42: 115.66973
A43: 34 | B43: BATAINDIA | C43: 1371.55 | D43: 1372.18 | E43: 1357.37 | F43: 1343.18 | G43: 1328.37 | H43: 1386.37 | I43: 1401.18 | J43: 1415.37 | K43: 1387 | L43: 1358 | M43: 8.98728
A44: 35 | B44: BERGEPAINT | C44: 323.85 | D44: 322.83 | E44: 320.17 | F44: 316.48 | G44: 313.82 | H44: 326.52 | I44: 329.18 | J44: 332.87 | K44: 325.5 | L44: 319.15 | M44: 9.28485
A45: 36 | B45: BEL | C45: 92.1 | D45: 92.62 | E45: 91.03 | F45: 89.97 | G45: 88.38 | H45: 93.68 | I45: 95.27 | J45: 96.33 | K45: 94.2 | L45: 91.55 | M45: 90.98118
A46: 37 | B46: BHARATFIN | C46: 1132 | D46: 1121.52 | E46: 1106.08 | F46: 1080.17 | G46: 1064.73 | H46: 1147.43 | I46: 1162.87 | J46: 1188.78 | K46: 1136.95 | L46: 1095.6 | M46: 8.59213
A47: 38 | B47: BHARATFORG | C47: 491.05 | D47: 491.93 | E47: 484.67 | F47: 478.28 | G47: 471.02 | H47: 498.32 | I47: 505.58 | J47: 511.97 | K47: 499.2 | L47: 485.55 | M47: 13.56602
A48: 39 | B48: BHEL | C48: 71.3 | D48: 71.57 | E48: 70.38 | F48: 69.47 | G48: 68.28 | H48: 72.48 | I48: 73.67 | J48: 74.58 | K48: 72.75 | L48: 70.65 | M48: 261.0573
A49: 40 | B49: BPCL | C49: 378.95 | D49: 380.75 | E49: 375.50 | F49: 372.05 | G49: 366.80 | H49: 384.20 | I49: 389.45 | J49: 392.90 | K49: 386 | L49: 377.3 | M49: 33.10956
A50: 41 | B50: BHARTIARTL | C50: 322.5 | D50: 325.30 | E50: 317.60 | F50: 312.70 | G50: 305.00 | H50: 330.20 | I50: 337.90 | J50: 342.80 | K50: 333 | L50: 320.4 | M50: 53.64208
A51: 42 | B51: INFRATEL | C51: 316.2 | D51: 315.27 | E51: 312.03 | F51: 307.87 | G51: 304.63 | H51: 319.43 | I51: 322.67 | J51: 326.83 | K51: 318.5 | L51: 311.1 | M51: 28.31679
A52: 43 | B52: BIOCON | C52: 602.3 | D52: 606.60 | E52: 595.70 | F52: 589.10 | G52: 578.20 | H52: 613.20 | I52: 624.10 | J52: 630.70 | K52: 617.5 | L52: 600 | M52: 12.76907
A53: 44 | B53: BOSCHLTD | C53: 17959.3 | D53: 18020.42 | E53: 17838.88 | F53: 17718.47 | G53: 17536.93 | H53: 18140.83 | I53: 18322.37 | J53: 18442.78 | K53: 18201.95 | L53: 17900 | M53: 0.22614
A54: 45 | B54: BRITANNIA | C54: 3096.9 | D54: 3097.30 | E54: 3077.60 | F54: 3058.30 | G54: 3038.60 | H54: 3116.60 | I54: 3136.30 | J54: 3155.60 | K54: 3117 | L54: 3078 | M54: 3.60838
A55: 46 | B55: CRISIL | C55: 1481.1 | D55: 1487.48 | E55: 1445.62 | F55: 1410.13 | G55: 1368.27 | H55: 1522.97 | I55: 1564.83 | J55: 1600.32 | K55: 1529.35 | L55: 1452 | M55: 0.28303
A56: 47 | B56: CADILAHC | C56: 330 | D56: 333.62 | E56: 325.53 | F56: 321.07 | G56: 312.98 | H56: 338.08 | I56: 346.17 | J56: 350.63 | K56: 341.7 | L56: 329.15 | M56: 9.6456
A57: 48 | B57: CANBK | C57: 286 | D57: 284.27 | E57: 281.03 | F57: 276.07 | G57: 272.83 | H57: 289.23 | I57: 292.47 | J57: 297.43 | K57: 287.5 | L57: 279.3 | M57: 68.48426
A58: 49 | B58: CASTROLIND | C58: 164.6 | D58: 164.48 | E58: 162.72 | F58: 160.83 | G58: 159.07 | H58: 166.37 | I58: 168.13 | J58: 170.02 | K58: 166.25 | L58: 162.6 | M58: 14.27343
A59: 50 | B59: CENTRALBK | C59: 32.25 | D59: 32.35 | E59: 31.75 | F59: 31.25 | G59: 30.65 | H59: 32.85 | I59: 33.45 | J59: 33.95 | K59: 32.95 | L59: 31.85 | M59: 10.67973
A60: 51 | B60: CENTURYTEX | C60: 896.9 | D60: 904.78 | E60: 885.02 | F60: 873.13 | G60: 853.37 | H60: 916.67 | I60: 936.43 | J60: 948.32 | K60: 924.55 | L60: 892.9 | M60: 5.95247
A61: 52 | B61: CHOLAFIN | C61: 1428.35 | D61: 1424.77 | E61: 1387.13 | F61: 1345.92 | G61: 1308.28 | H61: 1465.98 | I61: 1503.62 | J61: 1544.83 | K61: 1462.4 | L61: 1383.55 | M61: 9.22437
A62: 53 | B62: CIPLA | C62: 525.5 | D62: 527.72 | E62: 521.83 | F62: 518.17 | G62: 512.28 | H62: 531.38 | I62: 537.27 | J62: 540.93 | K62: 533.6 | L62: 524.05 | M62: 12.17387
A63: 54 | B63: COALINDIA | C63: 234.45 | D63: 235.38 | E63: 232.67 | F63: 230.88 | G63: 228.17 | H63: 237.17 | I63: 239.88 | J63: 241.67 | K63: 238.1 | L63: 233.6 | M63: 47.77913
A64: 55 | B64: COLPAL | C64: 1264.8 | D64: 1265.45 | E64: 1254.90 | F64: 1245.00 | G64: 1234.45 | H64: 1275.35 | I64: 1285.90 | J64: 1295.80 | K64: 1276 | L64: 1255.55 | M64: 3.30833
A65: 56 | B65: CONCOR | C65: 502.5 | D65: 504.28 | E65: 498.22 | F65: 493.93 | G65: 487.87 | H65: 508.57 | I65: 514.63 | J65: 518.92 | K65: 510.35 | L65: 500 | M65: 5.4527
A66: 57 | B66: COROMANDEL | C66: 494.15 | D66: 491.27 | E66: 484.83 | F66: 475.52 | G66: 469.08 | H66: 500.58 | I66: 507.02 | J66: 516.33 | K66: 497.7 | L66: 481.95 | M66: 3.5782
A67: 58 | B67: CROMPTON | C67: 214.65 | D67: 214.90 | E67: 212.90 | F67: 211.15 | G67: 209.15 | H67: 216.65 | I67: 218.65 | J67: 220.40 | K67: 216.9 | L67: 213.15 | M67: 10.37811
A68: 59 | B68: CUMMINSIND | C68: 741.4 | D68: 739.12 | E68: 732.28 | F68: 723.17 | G68: 716.33 | H68: 748.23 | I68: 755.07 | J68: 764.18 | K68: 745.95 | L68: 730 | M68: 5.06819
A69: 60 | B69: DLF | C69: 190.4 | D69: 193.13 | E69: 186.87 | F69: 183.33 | G69: 177.07 | H69: 196.67 | I69: 202.93 | J69: 206.47 | K69: 199.4 | L69: 189.6 | M69: 112.82628
A70: 61 | B70: DABUR | C70: 411.25 | D70: 415.92 | E70: 404.78 | F70: 398.32 | G70: 387.18 | H70: 422.38 | I70: 433.52 | J70: 439.98 | K70: 427.05 | L70: 409.45 | M70: 51.20542
A71: 62 | B71: DHFL | C71: 136.55 | D71: 137.23 | E71: 134.47 | F71: 132.38 | G71: 129.62 | H71: 139.32 | I71: 142.08 | J71: 144.17 | K71: 140 | L71: 135.15 | M71: 141.56526
A72: 63 | B72: DISHTV | C72: 36.2 | D72: 36.50 | E72: 35.65 | F72: 35.10 | G72: 34.25 | H72: 37.05 | I72: 37.90 | J72: 38.45 | K72: 37.35 | L72: 35.95 | M72: 105.46064
A73: 64 | B73: DIVISLAB | C73: 1665.9 | D73: 1682.32 | E73: 1644.63 | F73: 1623.37 | G73: 1585.68 | H73: 1703.58 | I73: 1741.27 | J73: 1762.53 | K73: 1720 | L73: 1661.05 | M73: 4.60961
A74: 65 | B74: LALPATHLAB | C74: 1071 | D74: 1071.33 | E74: 1052.17 | F74: 1033.33 | G74: 1014.17 | H74: 1090.17 | I74: 1109.33 | J74: 1128.17 | K74: 1090.5 | L74: 1052.5 | M74: 0.21177
A75: 66 | B75: DRREDDY | C75: 2765.05 | D75: 2774.38 | E75: 2734.77 | F75: 2704.48 | G75: 2664.87 | H75: 2804.67 | I75: 2844.28 | J75: 2874.57 | K75: 2814 | L75: 2744.1 | M75: 6.59032
A76: 67 | B76: EDELWEISS | C76: 189.55 | D76: 189.08 | E76: 186.52 | F76: 183.48 | G76: 180.92 | H76: 192.12 | I76: 194.68 | J76: 197.72 | K76: 191.65 | L76: 186.05 | M76: 31.65534
A77: 68 | B77: EICHERMOT | C77: 20974.15 | D77: 21104.93 | E77: 20724.87 | F77: 20475.58 | G77: 20095.52 | H77: 21354.22 | I77: 21734.28 | J77: 21983.57 | K77: 21485 | L77: 20855.65 | M77: 1.17588
A78: 69 | B78: EMAMILTD | C78: 397.95 | D78: 400.52 | E78: 389.43 | F78: 380.92 | G78: 369.83 | H78: 409.03 | I78: 420.12 | J78: 428.63 | K78: 411.6 | L78: 392 | M78: 7.68136
A79: 70 | B79: ENDURANCE | C79: 1150.4 | D79: 1148.77 | E79: 1139.68 | F79: 1128.97 | G79: 1119.88 | H79: 1159.48 | I79: 1168.57 | J79: 1179.28 | K79: 1157.85 | L79: 1138.05 | M79: 1.2218
A80: 71 | B80: ENGINERSIN | C80: 116.45 | D80: 116.15 | E80: 114.40 | F80: 112.35 | G80: 110.60 | H80: 118.20 | I80: 119.95 | J80: 122.00 | K80: 117.9 | L80: 114.1 | M80: 34.52203
A81: 72 | B81: EXIDEIND | C81: 226.35 | D81: 226.47 | E81: 224.18 | F81: 222.02 | G81: 219.73 | H81: 228.63 | I81: 230.92 | J81: 233.08 | K81: 228.75 | L81: 224.3 | M81: 14.28222
A82: 73 | B82: FEDERALBNK | C82: 91.8 | D82: 91.67 | E82: 90.73 | F82: 89.67 | G82: 88.73 | H82: 92.73 | I82: 93.67 | J82: 94.73 | K82: 92.6 | L82: 90.6 | M82: 115.1229
A83: 74 | B83: GAIL | C83: 355.85 | D83: 357.43 | E83: 352.87 | F83: 349.88 | G83: 345.32 | H83: 360.42 | I83: 364.98 | J83: 367.97 | K83: 362 | L83: 354.45 | M83: 26.53874
A84: 75 | B84: GMRINFRA | C84: 19.5 | D84: 20.03 | E84: 18.72 | F84: 17.93 | G84: 16.62 | H84: 20.82 | I84: 22.13 | J84: 22.92 | K84: 21.35 | L84: 19.25 | M84: 1392.09815
A85: 76 | B85: GSKCONS | C85: 6953.4 | D85: 6987.95 | E85: 6905.45 | F85: 6857.50 | G85: 6775.00 | H85: 7035.90 | I85: 7118.40 | J85: 7166.35 | K85: 7070.45 | L85: 6940 | M85: 0.20623
A86: 77 | B86: GLAXO | C86: 1298.95 | D86: 1289.70 | E86: 1279.25 | F86: 1259.55 | G86: 1249.10 | H86: 1309.40 | I86: 1319.85 | J86: 1339.55 | K86: 1300.15 | L86: 1270 | M86: 0.52124
A87: 78 | B87: GLENMARK | C87: 641.25 | D87: 644.08 | E87: 637.17 | F87: 633.08 | G87: 626.17 | H87: 648.17 | I87: 655.08 | J87: 659.17 | K87: 651 | L87: 640 | M87: 2.96494
A88: 79 | B88: GODREJCP | C88: 690.1 | D88: 691.28 | E88: 684.97 | F88: 679.83 | G88: 673.52 | H88: 696.42 | I88: 702.73 | J88: 707.87 | K88: 697.6 | L88: 686.15 | M88: 12.73004
A89: 80 | B89: GODREJIND | C89: 542.5 | D89: 545.03 | E89: 536.37 | F89: 530.23 | G89: 521.57 | H89: 551.17 | I89: 559.83 | J89: 565.97 | K89: 553.7 | L89: 538.9 | M89: 5.17379
A90: 81 | B90: GRUH | C90: 269.05 | D90: 267.28 | E90: 263.32 | F90: 257.58 | G90: 253.62 | H90: 273.02 | I90: 276.98 | J90: 282.72 | K90: 271.25 | L90: 261.55 | M90: 17.32608
A91: 82 | B91: GPPL | C91: 100.7 | D91: 101.22 | E91: 98.48 | F91: 96.27 | G91: 93.53 | H91: 103.43 | I91: 106.17 | J91: 108.38 | K91: 103.95 | L91: 99 | M91: 15.77273
A92: 83 | B92: GSPL | C92: 178.05 | D92: 178.22 | E92: 175.43 | F92: 172.82 | G92: 170.03 | H92: 180.83 | I92: 183.62 | J92: 186.23 | K92: 181 | L92: 175.6 | M92: 5.98652
A93: 84 | B93: HCLTECH | C93: 1043.15 | D93: 1039.83 | E93: 1023.32 | F93: 1003.48 | G93: 986.97 | H93: 1059.67 | I93: 1076.18 | J93: 1096.02 | K93: 1056.35 | L93: 1020 | M93: 14.55845
A94: 85 | B94: HDFCBANK | C94: 2299.45 | D94: 2302.18 | E94: 2276.32 | F94: 2253.18 | G94: 2227.32 | H94: 2325.32 | I94: 2351.18 | J94: 2374.32 | K94: 2328.05 | L94: 2279.05 | M94: 34.71325
A95: 86 | B95: HAVELLS | C95: 749.3 | D95: 753.77 | E95: 740.83 | F95: 732.37 | G95: 719.43 | H95: 762.23 | I95: 775.17 | J95: 783.63 | K95: 766.7 | L95: 745.3 | M95: 6.87539
A96: 87 | B96: HEROMOTOCO | C96: 2543.2 | D96: 2557.40 | E96: 2520.80 | F96: 2498.40 | G96: 2461.80 | H96: 2579.80 | I96: 2616.40 | J96: 2638.80 | K96: 2594 | L96: 2535 | M96: 7.6053
A97: 88 | B97: HEXAWARE | C97: 336.75 | D97: 334.55 | E97: 330.90 | F97: 325.05 | G97: 321.40 | H97: 340.40 | I97: 344.05 | J97: 349.90 | K97: 338.2 | L97: 328.7 | M97: 7.24462
A98: 89 | B98: HINDALCO | C98: 207.65 | D98: 208.40 | E98: 205.95 | F98: 204.25 | G98: 201.80 | H98: 210.10 | I98: 212.55 | J98: 214.25 | K98: 210.85 | L98: 206.7 | M98: 57.3182
A99: 90 | B99: HINDPETRO | C99: 269.2 | D99: 271.53 | E99: 266.07 | F99: 262.93 | G99: 257.47 | H99: 274.67 | I99: 280.13 | J99: 283.27 | K99: 277 | L99: 268.4 | M99: 58.71621
A100: 91 | B100: HINDUNILVR | C100: 1680.8 | D100: 1687.87 | E100: 1667.93 | F100: 1655.07 | G100: 1635.13 | H100: 1700.73 | I100: 1720.67 | J100: 1733.53 | K100: 1707.8 | L100: 1675 | M100: 15.20533
A101: 92 | B101: HINDZINC | C101: 271.85 | D101: 272.95 | E101: 269.90 | F101: 267.95 | G101: 264.90 | H101: 274.90 | I101: 277.95 | J101: 279.90 | K101: 276 | L101: 271 | M101: 4.33364
A102: 93 | B102: HUDCO | C102: 43.65 | D102: 43.70 | E102: 43.15 | F102: 42.65 | G102: 42.10 | H102: 44.20 | I102: 44.75 | J102: 45.25 | K102: 44.25 | L102: 43.2 | M102: 9.86512
A103: 94 | B103: HDFC | C103: 1919.9 | D103: 1928.30 | E103: 1897.60 | F103: 1875.30 | G103: 1844.60 | H103: 1950.60 | I103: 1981.30 | J103: 2003.60 | K103: 1959 | L103: 1906 | M103: 30.76446
A104: 95 | B104: ITC | C104: 293.1 | D104: 293.80 | E104: 290.90 | F104: 288.70 | G104: 285.80 | H104: 296.00 | I104: 298.90 | J104: 301.10 | K104: 296.7 | L104: 291.6 | M104: 84.32517
A105: 96 | B105: ICICIBANK | C105: 393.2 | D105: 393.93 | E105: 389.42 | F105: 385.63 | G105: 381.12 | H105: 397.72 | I105: 402.23 | J105: 406.02 | K105: 398.45 | L105: 390.15 | M105: 179.50017
A106: 97 | B106: ICICIPRULI | C106: 349.2 | D106: 345.12 | E106: 336.23 | F106: 323.27 | G106: 314.38 | H106: 358.08 | I106: 366.97 | J106: 379.93 | K106: 354 | L106: 332.15 | M106: 224.60639
A107: 98 | B107: IDBI | C107: 42.4 | D107: 42.55 | E107: 42.15 | F107: 41.90 | G107: 41.50 | H107: 42.80 | I107: 43.20 | J107: 43.45 | K107: 42.95 | L107: 42.3 | M107: 72.08063
A108: 99 | B108: IDFCFIRSTB | C108: 53.7 | D108: 53.68 | E108: 52.82 | F108: 51.93 | G108: 51.07 | H108: 54.57 | I108: 55.43 | J108: 56.32 | K108: 54.55 | L108: 52.8 | M108: 253.31474
A109: 100 | B109: IDFC | C109: 46.25 | D109: 45.93 | E109: 44.92 | F109: 43.58 | G109: 42.57 | H109: 47.27 | I109: 48.28 | J109: 49.62 | K109: 46.95 | L109: 44.6 | M109: 127.34546
A110: 101 | B110: IRB | C110: 141.8 | D110: 141.83 | E110: 140.02 | F110: 138.23 | G110: 136.42 | H110: 143.62 | I110: 145.43 | J110: 147.22 | K110: 143.65 | L110: 140.05 | M110: 20.5165
A111: 102 | B111: IDEA | C111: 28.5 | D111: 28.78 | E111: 28.02 | F111: 27.53 | G111: 26.77 | H111: 29.27 | I111: 30.03 | J111: 30.52 | K111: 29.55 | L111: 28.3 | M111: 525.81755
A112: 103 | B112: IBULHSGFIN | C112: 750.4 | D112: 747.08 | E112: 734.37 | F112: 718.33 | G112: 705.62 | H112: 763.12 | I112: 775.83 | J112: 791.87 | K112: 759.8 | L112: 731.05 | M112: 99.88266
A113: 104 | B113: INDIANB | C113: 264.1 | D113: 264.37 | E113: 260.98 | F113: 257.87 | G113: 254.48 | H113: 267.48 | I113: 270.87 | J113: 273.98 | K113: 267.75 | L113: 261.25 | M113: 17.32561
A114: 105 | B114: INDHOTEL | C114: 151.25 | D114: 151.05 | E114: 149.10 | F114: 146.95 | G114: 145.00 | H114: 153.20 | I114: 155.15 | J114: 157.30 | K114: 153 | L114: 148.9 | M114: 13.53282
A115: 106 | B115: IOC | C115: 161.45 | D115: 161.85 | E115: 160.00 | F115: 158.55 | G115: 156.70 | H115: 163.30 | I115: 165.15 | J115: 166.60 | K115: 163.7 | L115: 160.4 | M115: 106.66251
A116: 107 | B116: IGL | C116: 305.65 | D116: 306.02 | E116: 302.03 | F116: 298.42 | G116: 294.43 | H116: 309.63 | I116: 313.62 | J116: 317.23 | K116: 310 | L116: 302.4 | M116: 18.34035
A117: 108 | B117: INDUSINDBK | C117: 1804.25 | D117: 1779.27 | E117: 1745.08 | F117: 1685.92 | G117: 1651.73 | H117: 1838.43 | I117: 1872.62 | J117: 1931.78 | K117: 1813.45 | L117: 1720.1 | M117: 55.62677
A118: 109 | B118: NAUKRI | C118: 1870 | D118: 1872.88 | E118: 1847.17 | F118: 1824.33 | G118: 1798.62 | H118: 1895.72 | I118: 1921.43 | J118: 1944.27 | K118: 1898.6 | L118: 1850.05 | M118: 1.83837
A119: 110 | B119: INFY | C119: 729.7 | D119: 729.72 | E119: 727.13 | F119: 724.57 | G119: 721.98 | H119: 732.28 | I119: 734.87 | J119: 737.43 | K119: 732.3 | L119: 727.15 | M119: 73.87487
A120: 111 | B120: INDIGO | C120: 1401.3 | D120: 1405.43 | E120: 1389.87 | F120: 1378.43 | G120: 1362.87 | H120: 1416.87 | I120: 1432.43 | J120: 1443.87 | K120: 1421 | L120: 1394 | M120: 12.8791
A121: 112 | B121: IPCALAB | C121: 925.65 | D121: 925.88 | E121: 916.77 | F121: 907.88 | G121: 898.77 | H121: 934.77 | I121: 943.88 | J121: 952.77 | K121: 935 | L121: 917 | M121: 1.37578
A122: 113 | B122: JSWENERGY | C122: 68.7 | D122: 67.60 | E122: 65.95 | F122: 63.20 | G122: 61.55 | H122: 70.35 | I122: 72.00 | J122: 74.75 | K122: 69.25 | L122: 64.85 | M122: 73.19702
A123: 114 | B123: JSWSTEEL | C123: 287.5 | D123: 286.08 | E123: 282.92 | F123: 278.33 | G123: 275.17 | H123: 290.67 | I123: 293.83 | J123: 298.42 | K123: 289.25 | L123: 281.5 | M123: 64.90731
A124: 115 | B124: JINDALSTEL | C124: 166.65 | D124: 166.23 | E124: 164.17 | F124: 161.68 | G124: 159.62 | H124: 168.72 | I124: 170.78 | J124: 173.27 | K124: 168.3 | L124: 163.75 | M124: 79.92986
A125: 116 | B125: JUBLFOOD | C125: 1446.6 | D125: 1453.05 | E125: 1436.65 | F125: 1426.70 | G125: 1410.30 | H125: 1463.00 | I125: 1479.40 | J125: 1489.35 | K125: 1469.45 | L125: 1443.1 | M125: 11.04984
A126: 117 | B126: JUBILANT | C126: 653.15 | D126: 661.77 | E126: 639.53 | F126: 625.92 | G126: 603.68 | H126: 675.38 | I126: 697.62 | J126: 711.23 | K126: 684 | L126: 648.15 | M126: 32.95538
A127: 118 | B127: KARURVYSYA | C127: 70.5 | D127: 70.43 | E127: 68.87 | F127: 67.23 | G127: 65.67 | H127: 72.07 | I127: 73.63 | J127: 75.27 | K127: 72 | L127: 68.8 | M127: 14.16026
A128: 119 | B128: KOTAKBANK | C128: 1332.85 | D128: 1340.60 | E128: 1317.30 | F128: 1301.75 | G128: 1278.45 | H128: 1356.15 | I128: 1379.45 | J128: 1395.00 | K128: 1363.9 | L128: 1325.05 | M128: 30.39458
A129: 120 | B129: L&TFH | C129: 151.5 | D129: 150.80 | E129: 148.70 | F129: 145.90 | G129: 143.80 | H129: 153.60 | I129: 155.70 | J129: 158.50 | K129: 152.9 | L129: 148 | M129: 128.80892
A130: 121 | B130: LICHSGFIN | C130: 533.35 | D130: 535.98 | E130: 528.42 | F130: 523.48 | G130: 515.92 | H130: 540.92 | I130: 548.48 | J130: 553.42 | K130: 543.55 | L130: 531.05 | M130: 20.39096
A131: 122 | B131: LT | C131: 1366.45 | D131: 1373.57 | E131: 1356.03 | F131: 1345.62 | G131: 1328.08 | H131: 1383.98 | I131: 1401.52 | J131: 1411.93 | K131: 1391.1 | L131: 1363.15 | M131: 25.58997
A132: 123 | B132: LUPIN | C132: 723.7 | D132: 728.95 | E132: 717.05 | F132: 710.40 | G132: 698.50 | H132: 735.60 | I132: 747.50 | J132: 754.15 | K132: 740.85 | L132: 722.3 | M132: 18.81343
A133: 124 | B133: MRF | C133: 56585.15 | D133: 56556.72 | E133: 56228.43 | F133: 55871.72 | G133: 55543.43 | H133: 56913.43 | I133: 57241.72 | J133: 57598.43 | K133: 56885 | L133: 56200 | M133: 0.07145
A134: 125 | B134: MGL | C134: 1029.5 | D134: 1021.50 | E134: 998.00 | F134: 966.50 | G134: 943.00 | H134: 1053.00 | I134: 1076.50 | J134: 1108.00 | K134: 1045 | L134: 990 | M134: 10.05466
A135: 126 | B135: M&MFIN | C135: 426.2 | D135: 423.98 | E135: 416.22 | F135: 406.23 | G135: 398.47 | H135: 433.97 | I135: 441.73 | J135: 451.72 | K135: 431.75 | L135: 414 | M135: 25.83824
A136: 127 | B136: M&M | C136: 660.05 | D136: 663.75 | E136: 654.85 | F136: 649.65 | G136: 640.75 | H136: 668.95 | I136: 677.85 | J136: 683.05 | K136: 672.65 | L136: 658.55 | M136: 24.26853
A137: 128 | B137: MANAPPURAM | C137: 121.5 | D137: 121.83 | E137: 119.67 | F137: 117.83 | G137: 115.67 | H137: 123.67 | I137: 125.83 | J137: 127.67 | K137: 124 | L137: 120 | M137: 29.71435
A138: 129 | B138: MRPL | C138: 74.05 | D138: 74.32 | E138: 73.38 | F138: 72.72 | G138: 71.78 | H138: 74.98 | I138: 75.92 | J138: 76.58 | K138: 75.25 | L138: 73.65 | M138: 11.33077
A139: 130 | B139: MARICO | C139: 337 | D139: 338.13 | E139: 333.77 | F139: 330.53 | G139: 326.17 | H139: 341.37 | I139: 345.73 | J139: 348.97 | K139: 342.5 | L139: 334.9 | M139: 20.83168
A140: 131 | B140: MARUTI | C140: 6518 | D140: 6552.67 | E140: 6465.33 | F140: 6412.67 | G140: 6325.33 | H140: 6605.33 | I140: 6692.67 | J140: 6745.33 | K140: 6640 | L140: 6500 | M140: 8.87601
A141: 132 | B141: MFSL | C141: 448.55 | D141: 445.77 | E141: 440.53 | F141: 432.52 | G141: 427.28 | H141: 453.78 | I141: 459.02 | J141: 467.03 | K141: 451 | L141: 437.75 | M141: 10.39172
A142: 133 | B142: MINDTREE | C142: 943.15 | D142: 941.28 | E142: 932.87 | F142: 922.58 | G142: 914.17 | H142: 951.57 | I142: 959.98 | J142: 970.27 | K142: 949.7 | L142: 931 | M142: 21.85188
A143: 134 | B143: MOTHERSUMI | C143: 142.45 | D143: 143.35 | E143: 139.00 | F143: 135.55 | G143: 131.20 | H143: 146.80 | I143: 151.15 | J143: 154.60 | K143: 147.7 | L143: 139.9 | M143: 79.26733
A144: 135 | B144: MPHASIS | C144: 950.6 | D144: 947.77 | E144: 939.83 | F144: 929.07 | G144: 921.13 | H144: 958.53 | I144: 966.47 | J144: 977.23 | K144: 955.7 | L144: 937 | M144: 2.15002
A145: 136 | B145: MUTHOOTFIN | C145: 593.95 | D145: 595.43 | E145: 587.67 | F145: 581.38 | G145: 573.62 | H145: 601.72 | I145: 609.48 | J145: 615.77 | K145: 603.2 | L145: 589.15 | M145: 14.02151
A146: 137 | B146: NATCOPHARM | C146: 558.55 | D146: 561.22 | E146: 552.33 | F146: 546.12 | G146: 537.23 | H146: 567.43 | I146: 576.32 | J146: 582.53 | K146: 570.1 | L146: 555 | M146: 3.57098
A147: 138 | B147: NBCC | C147: 63.65 | D147: 64.08 | E147: 62.97 | F147: 62.28 | G147: 61.17 | H147: 64.77 | I147: 65.88 | J147: 66.57 | K147: 65.2 | L147: 63.4 | M147: 69.17567
A148: 139 | B148: NHPC | C148: 24.65 | D148: 24.75 | E148: 24.50 | F148: 24.35 | G148: 24.10 | H148: 24.90 | I148: 25.15 | J148: 25.30 | K148: 25 | L148: 24.6 | M148: 35.13982
A149: 140 | B149: NMDC | C149: 101.65 | D149: 102.93 | E149: 99.97 | F149: 98.28 | G149: 95.32 | H149: 104.62 | I149: 107.58 | J149: 109.27 | K149: 105.9 | L149: 101.25 | M149: 60.39163
A150: 141 | B150: NTPC | C150: 137 | D150: 138.03 | E150: 135.17 | F150: 133.33 | G150: 130.47 | H150: 139.87 | I150: 142.73 | J150: 144.57 | K150: 140.9 | L150: 136.2 | M150: 208.49776
A151: 142 | B151: NATIONALUM | C151: 53.2 | D151: 53.47 | E151: 52.63 | F151: 52.07 | G151: 51.23 | H151: 54.03 | I151: 54.87 | J151: 55.43 | K151: 54.3 | L151: 52.9 | M151: 76.77606
A152: 143 | B152: OBEROIRLTY | C152: 523.35 | D152: 521.88 | E152: 516.77 | F152: 510.18 | G152: 505.07 | H152: 528.47 | I152: 533.58 | J152: 540.17 | K152: 527 | L152: 515.3 | M152: 5.69757
A153: 144 | B153: ONGC | C153: 160.1 | D153: 159.67 | E153: 157.93 | F153: 155.77 | G153: 154.03 | H153: 161.83 | I153: 163.57 | J153: 165.73 | K153: 161.4 | L153: 157.5 | M153: 100.63152
A154: 145 | B154: OIL | C154: 181.4 | D154: 180.47 | E154: 178.43 | F154: 175.47 | G154: 173.43 | H154: 183.43 | I154: 185.47 | J154: 188.43 | K154: 182.5 | L154: 177.5 | M154: 15.32365
A155: 146 | B155: OFSS | C155: 3370.3 | D155: 3378.70 | E155: 3346.60 | F155: 3322.90 | G155: 3290.80 | H155: 3402.40 | I155: 3434.50 | J155: 3458.20 | K155: 3410.8 | L155: 3355 | M155: 0.29182
A156: 147 | B156: PCJEWELLER | C156: 80.45 | D156: 80.62 | E156: 79.48 | F156: 78.52 | G156: 77.38 | H156: 81.58 | I156: 82.72 | J156: 83.68 | K156: 81.75 | L156: 79.65 | M156: 62.47348
A157: 148 | B157: PIIND | C157: 1029.45 | D157: 1025.35 | E157: 1016.10 | F157: 1002.75 | G157: 993.50 | H157: 1038.70 | I157: 1047.95 | J157: 1061.30 | K157: 1034.6 | L157: 1012 | M157: 2.62687
A158: 149 | B158: PNBHOUSING | C158: 819.6 | D158: 825.72 | E158: 810.93 | F158: 802.27 | G158: 787.48 | H158: 834.38 | I158: 849.17 | J158: 857.83 | K158: 840.5 | L158: 817.05 | M158: 3.6716
A159: 150 | B159: PAGEIND | C159: 24587.1 | D159: 24863.05 | E159: 24243.60 | F159: 23900.10 | G159: 23280.65 | H159: 25206.55 | I159: 25826.00 | J159: 26169.50 | K159: 25482.5 | L159: 24519.55 | M159: 0.47516
A160: 151 | B160: PETRONET | C160: 236.05 | D160: 236.78 | E160: 233.27 | F160: 230.48 | G160: 226.97 | H160: 239.57 | I160: 243.08 | J160: 245.87 | K160: 240.3 | L160: 234 | M160: 35.96874
A161: 152 | B161: PIDILITIND | C161: 1224 | D161: 1224.87 | E161: 1212.68 | F161: 1201.37 | G161: 1189.18 | H161: 1236.18 | I161: 1248.37 | J161: 1259.68 | K161: 1237.05 | L161: 1213.55 | M161: 9.00753
A162: 153 | B162: PEL | C162: 2631.3 | D162: 2637.78 | E162: 2600.57 | F162: 2569.83 | G162: 2532.62 | H162: 2668.52 | I162: 2705.73 | J162: 2736.47 | K162: 2675 | L162: 2607.05 | M162: 3.83022
A163: 154 | B163: PFC | C163: 117.65 | D163: 118.17 | E163: 116.48 | F163: 115.32 | G163: 113.63 | H163: 119.33 | I163: 121.02 | J163: 122.18 | K163: 119.85 | L163: 117 | M163: 98.1769
A164: 155 | B164: POWERGRID | C164: 200.2 | D164: 201.13 | E164: 197.57 | F164: 194.93 | G164: 191.37 | H164: 203.77 | I164: 207.33 | J164: 209.97 | K164: 204.7 | L164: 198.5 | M164: 65.13687
A165: 156 | B165: PRESTIGE | C165: 249.25 | D165: 252.25 | E165: 243.55 | F165: 237.85 | G165: 229.15 | H165: 257.95 | I165: 266.65 | J165: 272.35 | K165: 260.95 | L165: 246.55 | M165: 4.85106
A166: 157 | B166: PGHH | C166: 10701 | D166: 10659.68 | E166: 10439.37 | F166: 10177.73 | G166: 9957.42 | H166: 10921.32 | I166: 11141.63 | J166: 11403.27 | K166: 10880 | L166: 10398.05 | M166: 0.07291
A167: 158 | B167: PNB | C167: 93.4 | D167: 93.75 | E167: 92.45 | F167: 91.50 | G167: 90.20 | H167: 94.70 | I167: 96.00 | J167: 96.95 | K167: 95.05 | L167: 92.8 | M167: 444.04743
A168: 159 | B168: RBLBANK | C168: 668.5 | D168: 667.70 | E168: 656.80 | F168: 645.10 | G168: 634.20 | H168: 679.40 | I168: 690.30 | J168: 702.00 | K168: 678.6 | L168: 656 | M168: 49.03592
A169: 160 | B169: RAJESHEXPO | C169: 667.3 | D169: 665.97 | E169: 657.33 | F169: 647.37 | G169: 638.73 | H169: 675.93 | I169: 684.57 | J169: 694.53 | K169: 674.6 | L169: 656 | M169: 3.40754
A170: 161 | B170: RELCAPITAL | C170: 200.8 | D170: 203.20 | E170: 193.70 | F170: 186.60 | G170: 177.10 | H170: 210.30 | I170: 219.80 | J170: 226.90 | K170: 212.7 | L170: 196.1 | M170: 241.25528
A171: 162 | B171: RCOM | C171: 4.55 | D171: 4.55 | E171: 4.55 | F171: 4.55 | G171: 4.55 | H171: 4.55 | I171: 4.55 | J171: 4.55 | K171: 4.55 | L171: 4.55 | M171: 48.95814
A172: 163 | B172: RELIANCE | C172: 1349.25 | D172: 1357.15 | E172: 1336.35 | F172: 1323.45 | G172: 1302.65 | H172: 1370.05 | I172: 1390.85 | J172: 1403.75 | K172: 1377.95 | L172: 1344.25 | M172: 100.94174
A173: 164 | B173: RELINFRA | C173: 130.95 | D173: 132.73 | E173: 128.22 | F173: 125.48 | G173: 120.97 | H173: 135.47 | I173: 139.98 | J173: 142.72 | K173: 137.25 | L173: 130 | M173: 96.68897
A174: 165 | B174: RPOWER | C174: 10.4 | D174: 10.50 | E174: 10.15 | F174: 9.90 | G174: 9.55 | H174: 10.75 | I174: 11.10 | J174: 11.35 | K174: 10.85 | L174: 10.25 | M174: 405.47925
A175: 166 | B175: RECLTD | C175: 149.2 | D175: 150.02 | E175: 147.78 | F175: 146.37 | G175: 144.13 | H175: 151.43 | I175: 153.67 | J175: 155.08 | K175: 152.25 | L175: 148.6 | M175: 136.8267
A176: 167 | B176: SRF | C176: 2434.95 | D176: 2438.98 | E176: 2412.97 | F176: 2390.98 | G176: 2364.97 | H176: 2460.97 | I176: 2486.98 | J176: 2508.97 | K176: 2465 | L176: 2417 | M176: 3.11373
A177: 168 | B177: SHREECEM | C177: 17885.6 | D177: 17991.87 | E177: 17683.73 | F177: 17481.87 | G177: 17173.73 | H177: 18193.73 | I177: 18501.87 | J177: 18703.73 | K177: 18300 | L177: 17790 | M177: 0.22358
A178: 169 | B178: SRTRANSFIN | C178: 1245.7 | D178: 1235.35 | E178: 1207.35 | F178: 1169.00 | G178: 1141.00 | H178: 1273.70 | I178: 1301.70 | J178: 1340.05 | K178: 1263.35 | L178: 1197 | M178: 29.58028
A179: 170 | B179: SIEMENS | C179: 1064.75 | D179: 1069.63 | E179: 1053.62 | F179: 1042.48 | G179: 1026.47 | H179: 1080.77 | I179: 1096.78 | J179: 1107.92 | K179: 1085.65 | L179: 1058.5 | M179: 9.73202
A180: 171 | B180: SBIN | C180: 308.8 | D180: 308.00 | E180: 305.15 | F180: 301.50 | G180: 298.65 | H180: 311.65 | I180: 314.50 | J180: 318.15 | K180: 310.85 | L180: 304.35 | M180: 359.5645
A181: 172 | B181: SAIL | C181: 50.25 | D181: 50.72 | E181: 49.58 | F181: 48.92 | G181: 47.78 | H181: 51.38 | I181: 52.52 | J181: 53.18 | K181: 51.85 | L181: 50.05 | M181: 200.09857
A182: 173 | B182: SPARC | C182: 192.45 | D182: 191.82 | E182: 187.63 | F182: 182.82 | G182: 178.63 | H182: 196.63 | I182: 200.82 | J182: 205.63 | K182: 196 | L182: 187 | M182: 9.08547
A183: 174 | B183: SUNPHARMA | C183: 464.85 | D183: 467.32 | E183: 457.28 | F183: 449.72 | G183: 439.68 | H183: 474.88 | I183: 484.92 | J183: 492.48 | K183: 477.35 | L183: 459.75 | M183: 60.16947
A184: 175 | B184: SUNTV | C184: 589.25 | D184: 592.32 | E184: 582.93 | F184: 576.62 | G184: 567.23 | H184: 598.63 | I184: 608.02 | J184: 614.33 | K184: 601.7 | L184: 586 | M184: 21.46256
A185: 176 | B185: SUZLON | C185: 6.65 | D185: 6.70 | E185: 6.55 | F185: 6.45 | G185: 6.30 | H185: 6.80 | I185: 6.95 | J185: 7.05 | K185: 6.85 | L185: 6.6 | M185: 808.41567
A186: 177 | B186: SYNDIBANK | C186: 40.6 | D186: 40.47 | E186: 40.03 | F186: 39.47 | G186: 39.03 | H186: 41.03 | I186: 41.47 | J186: 42.03 | K186: 40.9 | L186: 39.9 | M186: 70.99169
A187: 178 | B187: SYNGENE | C187: 584 | D187: 581.33 | E187: 577.67 | F187: 571.33 | G187: 567.67 | H187: 587.67 | I187: 591.33 | J187: 597.67 | K187: 585 | L187: 575 | M187: 0.21581
A188: 179 | B188: TV18BRDCST | C188: 34.6 | D188: 34.82 | E188: 34.18 | F188: 33.77 | G188: 33.13 | H188: 35.23 | I188: 35.87 | J188: 36.28 | K188: 35.45 | L188: 34.4 | M188: 71.16841
A189: 180 | B189: TVSMOTOR | C189: 458.85 | D189: 460.38 | E189: 455.77 | F189: 452.68 | G189: 448.07 | H189: 463.47 | I189: 468.08 | J189: 471.17 | K189: 465 | L189: 457.3 | M189: 6.85928
A190: 181 | B190: TATACHEM | C190: 583.5 | D190: 581.83 | E190: 578.67 | F190: 573.83 | G190: 570.67 | H190: 586.67 | I190: 589.83 | J190: 594.67 | K190: 585 | L190: 577 | M190: 9.75539
A191: 182 | B191: TATACOMM | C191: 601.15 | D191: 600.15 | E191: 594.45 | F191: 587.75 | G191: 582.05 | H191: 606.85 | I191: 612.55 | J191: 619.25 | K191: 605.85 | L191: 593.45 | M191: 3.03957
A192: 183 | B192: TCS | C192: 1967.9 | D192: 1975.63 | E192: 1953.27 | F192: 1938.63 | G192: 1916.27 | H192: 1990.27 | I192: 2012.63 | J192: 2027.27 | K192: 1998 | L192: 1961 | M192: 22.66166
A193: 184 | B193: TATAGLOBAL | C193: 196.6 | D193: 197.30 | E193: 194.40 | F193: 192.20 | G193: 189.30 | H193: 199.50 | I193: 202.40 | J193: 204.60 | K193: 200.2 | L193: 195.1 | M193: 19.62815
A194: 185 | B194: TATAMTRDVR | C194: 85.25 | D194: 85.52 | E194: 84.33 | F194: 83.42 | G194: 82.23 | H194: 86.43 | I194: 87.62 | J194: 88.53 | K194: 86.7 | L194: 84.6 | M194: 22.47979
A195: 186 | B195: TATAMOTORS | C195: 169.85 | D195: 171.33 | E195: 167.67 | F195: 165.48 | G195: 161.82 | H195: 173.52 | I195: 177.18 | J195: 179.37 | K195: 175 | L195: 169.15 | M195: 100.47628
A196: 187 | B196: TATAPOWER | C196: 71.4 | D196: 71.80 | E196: 70.70 | F196: 70.00 | G196: 68.90 | H196: 72.50 | I196: 73.60 | J196: 74.30 | K196: 72.9 | L196: 71.1 | M196: 48.12399
A197: 188 | B197: TATASTEEL | C197: 515.8 | D197: 517.28 | E197: 511.57 | F197: 507.33 | G197: 501.62 | H197: 521.52 | I197: 527.23 | J197: 531.47 | K197: 523 | L197: 513.05 | M197: 52.39158
A198: 189 | B198: TECHM | C198: 764.95 | D198: 766.52 | E198: 760.03 | F198: 755.12 | G198: 748.63 | H198: 771.43 | I198: 777.92 | J198: 782.83 | K198: 773 | L198: 761.6 | M198: 38.93738
A199: 190 | B199: RAMCOCEM | C199: 711.15 | D199: 712.83 | E199: 703.32 | F199: 695.48 | G199: 685.97 | H199: 720.67 | I199: 730.18 | J199: 738.02 | K199: 722.35 | L199: 705 | M199: 7.31431
A200: 191 | B200: TITAN | C200: 1116.5 | D200: 1115.83 | E200: 1106.67 | F200: 1096.83 | G200: 1087.67 | H200: 1125.67 | I200: 1134.83 | J200: 1144.67 | K200: 1125 | L200: 1106 | M200: 16.68427
A201: 192 | B201: TORNTPHARM | C201: 1887.05 | D201: 1892.53 | E201: 1866.57 | F201: 1846.08 | G201: 1820.12 | H201: 1913.02 | I201: 1938.98 | J201: 1959.47 | K201: 1918.5 | L201: 1872.05 | M201: 3.20339
A202: 193 | B202: TORNTPOWER | C202: 251.85 | D202: 253.03 | E202: 248.82 | F202: 245.78 | G202: 241.57 | H202: 256.07 | I202: 260.28 | J202: 263.32 | K202: 257.25 | L202: 250 | M202: 8.36966
A203: 194 | B203: UPL | C203: 901.9 | D203: 902.80 | E203: 893.65 | F203: 885.40 | G203: 876.25 | H203: 911.05 | I203: 920.20 | J203: 928.45 | K203: 911.95 | L203: 894.55 | M203: 20.85332
A204: 195 | B204: ULTRACEMCO | C204: 3901.95 | D204: 3926.38 | E204: 3855.57 | F204: 3809.18 | G204: 3738.37 | H204: 3972.77 | I204: 4043.58 | J204: 4089.97 | K204: 3997.2 | L204: 3880 | M204: 4.43206
A205: 196 | B205: UNIONBANK | C205: 93.8 | D205: 92.95 | E205: 91.70 | F205: 89.60 | G205: 88.35 | H205: 95.05 | I205: 96.30 | J205: 98.40 | K205: 94.2 | L205: 90.85 | M205: 132.28502
... 29 more rows

Sheet MidCap Intra
L5: Back To Main Page
A6: FOR INTRA DAY TRADING | K6: =Main!B10 -> 2019-03-28
A9: Sr.no | B9: Scrip | C9: CLOSE RATE | D9: Pivot Point | E9: Supports | H9: Resistances
C10: Point | E10: S1 | F10: S2 | G10: S3 | H10: R1 | I10: R2 | J10: R3 | K10: HIGH | L10: LOW | M10: Total Trade Quanity in Lakhs
A11: 1 | B11: 3MINDIA | C11: 23777.85 | D11: 23875.57 | E11: 23563.28 | F11: 23348.72 | G11: 23036.43 | H11: 24090.13 | I11: 24402.42 | J11: 24616.98 | K11: 24187.85 | L11: 23661 | M11: 0.07457
A12: 2 | B12: 8KMILES | C12: 89.4 | D12: 90.92 | E12: 86.83 | F12: 84.27 | G12: 80.18 | H12: 93.48 | I12: 97.57 | J12: 100.13 | K12: 95 | L12: 88.35 | M12: 4.72225
A13: 3 | B13: AARTIIND | C13: 1590.5 | D13: 1571.82 | E13: 1548.68 | F13: 1506.87 | G13: 1483.73 | H13: 1613.63 | I13: 1636.77 | J13: 1678.58 | K13: 1594.95 | L13: 1530 | M13: 3.21655
A14: 4 | B14: ABAN | C14: 57.6 | D14: 58.28 | E14: 55.97 | F14: 54.33 | G14: 52.02 | H14: 59.92 | I14: 62.23 | J14: 63.87 | K14: 60.6 | L14: 56.65 | M14: 1.03634
A15: 5 | B15: ABB | C15: 1326.45 | D15: 1331.47 | E15: 1314.93 | F15: 1303.42 | G15: 1286.88 | H15: 1342.98 | I15: 1359.52 | J15: 1371.03 | K15: 1348 | L15: 1319.95 | M15: 1.82854
A16: 6 | B16: ABCAPITAL | C16: 100.9 | D16: 101.22 | E16: 99.18 | F16: 97.47 | G16: 95.43 | H16: 102.93 | I16: 104.97 | J16: 106.68 | K16: 103.25 | L16: 99.5 | M16: 50.05683
A17: 7 | B17: ABFRL | C17: 223.5 | D17: 222.05 | E17: 218.45 | F17: 213.40 | G17: 209.80 | H17: 227.10 | I17: 230.70 | J17: 235.75 | K17: 225.65 | L17: 217 | M17: 9.90443
A18: 8 | B18: ACC | C18: 1602.55 | D18: 1595.13 | E18: 1576.27 | F18: 1549.98 | G18: 1531.12 | H18: 1621.42 | I18: 1640.28 | J18: 1666.57 | K18: 1614 | L18: 1568.85 | M18: 13.28748
A19: 9 | B19: ADANIPORTS | C19: 366.3 | D19: 367.40 | E19: 363.10 | F19: 359.90 | G19: 355.60 | H19: 370.60 | I19: 374.90 | J19: 378.10 | K19: 371.7 | L19: 364.2 | M19: 29.65654
A20: 10 | B20: ADANIPOWER | C20: 46.9 | D20: 47.28 | E20: 46.12 | F20: 45.33 | G20: 44.17 | H20: 48.07 | I20: 49.23 | J20: 50.02 | K20: 48.45 | L20: 46.5 | M20: 78.26448
A21: 11 | B21: ADANITRANS | C21: 212 | D21: 213.93 | E21: 208.67 | F21: 205.33 | G21: 200.07 | H21: 217.27 | I21: 222.53 | J21: 225.87 | K21: 219.2 | L21: 210.6 | M21: 1.13065
A22: 12 | B22: ADVENZYMES | C22: 170.2 | D22: 171.40 | E22: 167.80 | F22: 165.40 | G22: 161.80 | H22: 173.80 | I22: 177.40 | J22: 179.80 | K22: 175 | L22: 169 | M22: 1.1241
A23: 13 | B23: AEGISCHEM | C23: 203.55 | D23: 203.30 | E23: 201.50 | F23: 199.45 | G23: 197.65 | H23: 205.35 | I23: 207.15 | J23: 209.20 | K23: 205.1 | L23: 201.25 | M23: 2.75925
A24: 14 | B24: AIAENG | C24: 1762.9 | D24: 1741.23 | E24: 1707.72 | F24: 1652.53 | G24: 1619.02 | H24: 1796.42 | I24: 1829.93 | J24: 1885.12 | K24: 1774.75 | L24: 1686.05 | M24: 0.13924
A25: 15 | B25: AJANTPHARM | C25: 1000.95 | D25: 1001.35 | E25: 978.70 | F25: 956.45 | G25: 933.80 | H25: 1023.60 | I25: 1046.25 | J25: 1068.50 | K25: 1024 | L25: 979.1 | M25: 3.22229
A26: 16 | B26: AKZOINDIA | C26: 1767.2 | D26: 1766.25 | E26: 1748.50 | F26: 1729.80 | G26: 1712.05 | H26: 1784.95 | I26: 1802.70 | J26: 1821.40 | K26: 1784 | L26: 1747.55 | M26: 0.08992
A27: 17 | B27: ALBK | C27: 52.35 | D27: 51.98 | E27: 51.37 | F27: 50.38 | G27: 49.77 | H27: 52.97 | I27: 53.58 | J27: 54.57 | K27: 52.6 | L27: 51 | M27: 87.44407
A28: 18 | B28: ALKEM | C28: 1750.35 | D28: 1759.92 | E28: 1739.43 | F28: 1728.52 | G28: 1708.03 | H28: 1770.83 | I28: 1791.32 | J28: 1802.23 | K28: 1780.4 | L28: 1749 | M28: 0.45278
A29: 19 | B29: ALLCARGO | C29: 113.6 | D29: 112.87 | E29: 111.73 | F29: 109.87 | G29: 108.73 | H29: 114.73 | I29: 115.87 | J29: 117.73 | K29: 114 | L29: 111 | M29: 1.67132
A30: 20 | B30: AMARAJABAT | C30: 721.4 | D30: 718.83 | E30: 707.92 | F30: 694.43 | G30: 683.52 | H30: 732.32 | I30: 743.23 | J30: 756.72 | K30: 729.75 | L30: 705.35 | M30: 14.89075
A31: 21 | B31: AMBUJACEM | C31: 232.25 | D31: 233.63 | E31: 229.02 | F31: 225.78 | G31: 221.17 | H31: 236.87 | I31: 241.48 | J31: 244.72 | K31: 238.25 | L31: 230.4 | M31: 46.39012
A32: 22 | B32: ANDHRABANK | C32: 27.1 | D32: 26.67 | E32: 26.13 | F32: 25.17 | G32: 24.63 | H32: 27.63 | I32: 28.17 | J32: 29.13 | K32: 27.2 | L32: 25.7 | M32: 24.13946
A33: 23 | B33: APLAPOLLO | C33: 1434.15 | D33: 1424.38 | E33: 1409.77 | F33: 1385.38 | G33: 1370.77 | H33: 1448.77 | I33: 1463.38 | J33: 1487.77 | K33: 1439 | L33: 1400 | M33: 0.14588
A34: 24 | B34: APLLTD | C34: 529.1 | D34: 531.07 | E34: 523.13 | F34: 517.17 | G34: 509.23 | H34: 537.03 | I34: 544.97 | J34: 550.93 | K34: 539 | L34: 525.1 | M34: 0.46898
A35: 25 | B35: APOLLOHOSP | C35: 1153.75 | D35: 1160.63 | E35: 1143.17 | F35: 1132.58 | G35: 1115.12 | H35: 1171.22 | I35: 1188.68 | J35: 1199.27 | K35: 1178.1 | L35: 1150.05 | M35: 4.86185
A36: 26 | B36: APOLLOTYRE | C36: 214 | D36: 214.85 | E36: 212.20 | F36: 210.40 | G36: 207.75 | H36: 216.65 | I36: 219.30 | J36: 221.10 | K36: 217.5 | L36: 213.05 | M36: 15.4854
A37: 27 | B37: ARVIND | C37: 87.95 | D37: 88.67 | E37: 86.18 | F37: 84.42 | G37: 81.93 | H37: 90.43 | I37: 92.92 | J37: 94.68 | K37: 91.15 | L37: 86.9 | M37: 43.18703
A38: 28 | B38: ASAHIINDIA | C38: 255.75 | D38: 258.32 | E38: 252.43 | F38: 249.12 | G38: 243.23 | H38: 261.63 | I38: 267.52 | J38: 270.83 | K38: 264.2 | L38: 255 | M38: 0.0554
A39: 29 | B39: ASHOKA | C39: 130.95 | D39: 129.05 | E39: 126.45 | F39: 121.95 | G39: 119.35 | H39: 133.55 | I39: 136.15 | J39: 140.65 | K39: 131.65 | L39: 124.55 | M39: 4.73263
A40: 30 | B40: ASHOKLEY | C40: 85.45 | D40: 86.10 | E40: 84.45 | F40: 83.45 | G40: 81.80 | H40: 87.10 | I40: 88.75 | J40: 89.75 | K40: 87.75 | L40: 85.1 | M40: 250.86886
A41: 31 | B41: ASIANPAINT | C41: 1472.05 | D41: 1477.50 | E41: 1458.05 | F41: 1444.05 | G41: 1424.60 | H41: 1491.50 | I41: 1510.95 | J41: 1524.95 | K41: 1496.95 | L41: 1463.5 | M41: 13.87002
A42: 32 | B42: ASTRAL | C42: 1138.5 | D42: 1130.20 | E42: 1106.40 | F42: 1074.30 | G42: 1050.50 | H42: 1162.30 | I42: 1186.10 | J42: 1218.20 | K42: 1154 | L42: 1098.1 | M42: 3.10239
A43: 33 | B43: ATUL | C43: 3527.3 | D43: 3507.15 | E43: 3432.85 | F43: 3338.40 | G43: 3264.10 | H43: 3601.60 | I43: 3675.90 | J43: 3770.35 | K43: 3581.45 | L43: 3412.7 | M43: 0.2049
A44: 34 | B44: AUBANK | C44: 574.55 | D44: 569.38 | E44: 560.27 | F44: 545.98 | G44: 536.87 | H44: 583.67 | I44: 592.78 | J44: 607.07 | K44: 578.5 | L44: 555.1 | M44: 9.5973
A45: 35 | B45: AUROPHARMA | C45: 775.05 | D45: 777.72 | E45: 766.73 | F45: 758.42 | G45: 747.43 | H45: 786.03 | I45: 797.02 | J45: 805.33 | K45: 788.7 | L45: 769.4 | M45: 17.32033
A46: 36 | B46: AVANTIFEED | C46: 420.1 | D46: 412.33 | E46: 401.12 | F46: 382.13 | G46: 370.92 | H46: 431.32 | I46: 442.53 | J46: 461.52 | K46: 423.55 | L46: 393.35 | M46: 16.87643
A47: 37 | B47: AXISBANK | C47: 759.3 | D47: 761.72 | E47: 753.43 | F47: 747.57 | G47: 739.28 | H47: 767.58 | I47: 775.87 | J47: 781.73 | K47: 770 | L47: 755.85 | M47: 74.56768
A48: 38 | B48: BAJAJ-AUTO | C48: 2980.1 | D48: 2975.03 | E48: 2955.07 | F48: 2930.03 | G48: 2910.07 | H48: 3000.07 | I48: 3020.03 | J48: 3045.07 | K48: 2995 | L48: 2950 | M48: 4.02423
A49: 39 | B49: BAJAJCON | C49: 316.8 | D49: 317.73 | E49: 314.57 | F49: 312.33 | G49: 309.17 | H49: 319.97 | I49: 323.13 | J49: 325.37 | K49: 320.9 | L49: 315.5 | M49: 1.60139
A50: 40 | B50: BAJAJELEC | C50: 559.5 | D50: 553.88 | E50: 540.77 | F50: 522.03 | G50: 508.92 | H50: 572.62 | I50: 585.73 | J50: 604.47 | K50: 567 | L50: 535.15 | M50: 7.45455
A51: 41 | B51: BAJAJFINSV | C51: 6980.35 | D51: 7003.57 | E51: 6928.13 | F51: 6875.92 | G51: 6800.48 | H51: 7055.78 | I51: 7131.22 | J51: 7183.43 | K51: 7079 | L51: 6951.35 | M51: 4.44893
A52: 42 | B52: BAJAJHIND | C52: 8 | D52: 8.03 | E52: 7.92 | F52: 7.83 | G52: 7.72 | H52: 8.12 | I52: 8.23 | J52: 8.32 | K52: 8.15 | L52: 7.95 | M52: 9.66787
A53: 43 | B53: BAJAJHLDNG | C53: 3273.75 | D53: 3282.65 | E53: 3241.10 | F53: 3208.45 | G53: 3166.90 | H53: 3315.30 | I53: 3356.85 | J53: 3389.50 | K53: 3324.2 | L53: 3250 | M53: 0.45199
A54: 44 | B54: BAJFINANCE | C54: 2945.25 | D54: 2963.97 | E54: 2913.78 | F54: 2882.32 | G54: 2832.13 | H54: 2995.43 | I54: 3045.62 | J54: 3077.08 | K54: 3014.15 | L54: 2932.5 | M54: 24.19656
A55: 45 | B55: BALKRISIND | C55: 962.85 | D55: 963.30 | E55: 954.60 | F55: 946.35 | G55: 937.65 | H55: 971.55 | I55: 980.25 | J55: 988.50 | K55: 972 | L55: 955.05 | M55: 5.99798
A56: 46 | B56: BALLARPUR | C56: 2.9 | D56: 2.93 | E56: 2.82 | F56: 2.73 | G56: 2.62 | H56: 3.02 | I56: 3.13 | J56: 3.22 | K56: 3.05 | L56: 2.85 | M56: 17.95806
A57: 47 | B57: BALMLAWRIE | C57: 185.7 | D57: 185.60 | E57: 184.45 | F57: 183.20 | G57: 182.05 | H57: 186.85 | I57: 188.00 | J57: 189.25 | K57: 186.75 | L57: 184.35 | M57: 0.28417
A58: 48 | B58: BALRAMCHIN | C58: 134.7 | D58: 134.15 | E58: 132.55 | F58: 130.40 | G58: 128.80 | H58: 136.30 | I58: 137.90 | J58: 140.05 | K58: 135.75 | L58: 132 | M58: 16.82686
A59: 49 | B59: BANKBARODA | C59: 121.55 | D59: 121.77 | E59: 120.08 | F59: 118.62 | G59: 116.93 | H59: 123.23 | I59: 124.92 | J59: 126.38 | K59: 123.45 | L59: 120.3 | M59: 168.00819
A60: 50 | B60: BANKINDIA | C60: 103.15 | D60: 102.80 | E60: 101.90 | F60: 100.65 | G60: 99.75 | H60: 104.05 | I60: 104.95 | J60: 106.20 | K60: 103.7 | L60: 101.55 | M60: 115.66973
A61: 51 | B61: BASF | C61: 1441.55 | D61: 1438.05 | E61: 1402.25 | F61: 1362.95 | G61: 1327.15 | H61: 1477.35 | I61: 1513.15 | J61: 1552.45 | K61: 1473.85 | L61: 1398.75 | M61: 0.41955
A62: 52 | B62: BATAINDIA | C62: 1371.55 | D62: 1372.18 | E62: 1357.37 | F62: 1343.18 | G62: 1328.37 | H62: 1386.37 | I62: 1401.18 | J62: 1415.37 | K62: 1387 | L62: 1358 | M62: 8.98728
A63: 53 | B63: BBTC | C63: 1285.85 | D63: 1280.48 | E63: 1262.97 | F63: 1240.08 | G63: 1222.57 | H63: 1303.37 | I63: 1320.88 | J63: 1343.77 | K63: 1298 | L63: 1257.6 | M63: 2.88399
A64: 54 | B64: BEL | C64: 92.1 | D64: 92.62 | E64: 91.03 | F64: 89.97 | G64: 88.38 | H64: 93.68 | I64: 95.27 | J64: 96.33 | K64: 94.2 | L64: 91.55 | M64: 90.98118
A65: 55 | B65: BEML | C65: 965.75 | D65: 970.73 | E65: 950.22 | F65: 934.68 | G65: 914.17 | H65: 986.27 | I65: 1006.78 | J65: 1022.32 | K65: 991.25 | L65: 955.2 | M65: 15.87339
A66: 56 | B66: BERGEPAINT | C66: 323.85 | D66: 322.83 | E66: 320.17 | F66: 316.48 | G66: 313.82 | H66: 326.52 | I66: 329.18 | J66: 332.87 | K66: 325.5 | L66: 319.15 | M66: 9.28485
A67: 57 | B67: BFUTILITIE | C67: 194.2 | D67: 193.77 | E67: 190.93 | F67: 187.67 | G67: 184.83 | H67: 197.03 | I67: 199.87 | J67: 203.13 | K67: 196.6 | L67: 190.5 | M67: 4.91056
A68: 58 | B68: BGRENERGY | C68: 62.8 | D68: 62.62 | E68: 61.43 | F68: 60.07 | G68: 58.88 | H68: 63.98 | I68: 65.17 | J68: 66.53 | K68: 63.8 | L68: 61.25 | M68: 1.67694
A69: 59 | B69: BHARATFIN | C69: 1132 | D69: 1121.52 | E69: 1106.08 | F69: 1080.17 | G69: 1064.73 | H69: 1147.43 | I69: 1162.87 | J69: 1188.78 | K69: 1136.95 | L69: 1095.6 | M69: 8.59213
A70: 60 | B70: BHARATFORG | C70: 491.05 | D70: 491.93 | E70: 484.67 | F70: 478.28 | G70: 471.02 | H70: 498.32 | I70: 505.58 | J70: 511.97 | K70: 499.2 | L70: 485.55 | M70: 13.56602
A71: 61 | B71: BHARTIARTL | C71: 322.5 | D71: 325.30 | E71: 317.60 | F71: 312.70 | G71: 305.00 | H71: 330.20 | I71: 337.90 | J71: 342.80 | K71: 333 | L71: 320.4 | M71: 53.64208
A72: 62 | B72: BHEL | C72: 71.3 | D72: 71.57 | E72: 70.38 | F72: 69.47 | G72: 68.28 | H72: 72.48 | I72: 73.67 | J72: 74.58 | K72: 72.75 | L72: 70.65 | M72: 261.0573
A73: 63 | B73: BIOCON | C73: 602.3 | D73: 606.60 | E73: 595.70 | F73: 589.10 | G73: 578.20 | H73: 613.20 | I73: 624.10 | J73: 630.70 | K73: 617.5 | L73: 600 | M73: 12.76907
A74: 64 | B74: BIRLACORPN | C74: 517.65 | D74: 518.03 | E74: 512.07 | F74: 506.48 | G74: 500.52 | H74: 523.62 | I74: 529.58 | J74: 535.17 | K74: 524 | L74: 512.45 | M74: 0.78547
A75: 65 | B75: BLISSGVS | C75: 167.4 | D75: 166.33 | E75: 163.17 | F75: 158.93 | G75: 155.77 | H75: 170.57 | I75: 173.73 | J75: 177.97 | K75: 169.5 | L75: 162.1 | M75: 11.5785
A76: 66 | B76: BLUEDART | C76: 3468.75 | D76: 3457.95 | E76: 3415.90 | F76: 3363.05 | G76: 3321.00 | H76: 3510.80 | I76: 3552.85 | J76: 3605.70 | K76: 3500 | L76: 3405.1 | M76: 0.02817
A77: 67 | B77: BLUESTARCO | C77: 665.6 | D77: 667.57 | E77: 660.13 | F77: 654.67 | G77: 647.23 | H77: 673.03 | I77: 680.47 | J77: 685.93 | K77: 675 | L77: 662.1 | M77: 0.35359
A78: 68 | B78: BOMDYEING | C78: 136 | D78: 136.78 | E78: 133.72 | F78: 131.43 | G78: 128.37 | H78: 139.07 | I78: 142.13 | J78: 144.42 | K78: 139.85 | L78: 134.5 | M78: 21.71575
A79: 69 | B79: BOSCHLTD | C79: 17959.3 | D79: 18020.42 | E79: 17838.88 | F79: 17718.47 | G79: 17536.93 | H79: 18140.83 | I79: 18322.37 | J79: 18442.78 | K79: 18201.95 | L79: 17900 | M79: 0.22614
A80: 70 | B80: BPCL | C80: 378.95 | D80: 380.75 | E80: 375.50 | F80: 372.05 | G80: 366.80 | H80: 384.20 | I80: 389.45 | J80: 392.90 | K80: 386 | L80: 377.3 | M80: 33.10956
A81: 71 | B81: BRFL | C81: 8.95 | D81: 8.72 | E81: 8.48 | F81: 8.02 | G81: 7.78 | H81: 9.18 | I81: 9.42 | J81: 9.88 | K81: 8.95 | L81: 8.25 | M81: 0.92165
A82: 72 | B82: BRIGADE | C82: 247.05 | D82: 246.35 | E82: 243.90 | F82: 240.75 | G82: 238.30 | H82: 249.50 | I82: 251.95 | J82: 255.10 | K82: 248.8 | L82: 243.2 | M82: 1.09281
A83: 73 | B83: BRITANNIA | C83: 3096.9 | D83: 3097.30 | E83: 3077.60 | F83: 3058.30 | G83: 3038.60 | H83: 3116.60 | I83: 3136.30 | J83: 3155.60 | K83: 3117 | L83: 3078 | M83: 3.60838
A84: 74 | B84: BSE | C84: 612.4 | D84: 606.87 | E84: 596.53 | F84: 580.67 | G84: 570.33 | H84: 622.73 | I84: 633.07 | J84: 648.93 | K84: 617.2 | L84: 591 | M84: 5.42905
A85: 75 | B85: BSOFT | C85: 97.05 | D85: 96.88 | E85: 95.77 | F85: 94.48 | G85: 93.37 | H85: 98.17 | I85: 99.28 | J85: 100.57 | K85: 98 | L85: 95.6 | M85: 8.94936
A86: 77 | B86: CADILAHC | C86: 330 | D86: 333.62 | E86: 325.53 | F86: 321.07 | G86: 312.98 | H86: 338.08 | I86: 346.17 | J86: 350.63 | K86: 341.7 | L86: 329.15 | M86: 9.6456
A87: 78 | B87: CANBK | C87: 286 | D87: 284.27 | E87: 281.03 | F87: 276.07 | G87: 272.83 | H87: 289.23 | I87: 292.47 | J87: 297.43 | K87: 287.5 | L87: 279.3 | M87: 68.48426
A88: 79 | B88: CANFINHOME | C88: 335.7 | D88: 337.47 | E88: 330.03 | F88: 324.37 | G88: 316.93 | H88: 343.13 | I88: 350.57 | J88: 356.23 | K88: 344.9 | L88: 331.8 | M88: 21.10512
A89: 80 | B89: CAPLIPOINT | C89: 404.7 | D89: 403.87 | E89: 399.03 | F89: 393.37 | G89: 388.53 | H89: 409.53 | I89: 414.37 | J89: 420.03 | K89: 408.7 | L89: 398.2 | M89: 0.32569
A90: 81 | B90: CARBORUNIV | C90: 385.1 | D90: 382.42 | E90: 375.83 | F90: 366.57 | G90: 359.98 | H90: 391.68 | I90: 398.27 | J90: 407.53 | K90: 389 | L90: 373.15 | M90: 1.22359
A91: 82 | B91: CARERATING | C91: 991.5 | D91: 994.07 | E91: 986.43 | F91: 981.37 | G91: 973.73 | H91: 999.13 | I91: 1006.77 | J91: 1011.83 | K91: 1001.7 | L91: 989 | M91: 0.48569
A92: 83 | B92: CASTROLIND | C92: 164.6 | D92: 164.48 | E92: 162.72 | F92: 160.83 | G92: 159.07 | H92: 166.37 | I92: 168.13 | J92: 170.02 | K92: 166.25 | L92: 162.6 | M92: 14.27343
A93: 84 | B93: CCL | C93: 293.9 | D93: 292.93 | E93: 289.12 | F93: 284.33 | G93: 280.52 | H93: 297.72 | I93: 301.53 | J93: 306.32 | K93: 296.75 | L93: 288.15 | M93: 0.53742
A94: 85 | B94: CDSL | C94: 236 | D94: 233.63 | E94: 229.92 | F94: 223.83 | G94: 220.12 | H94: 239.72 | I94: 243.43 | J94: 249.52 | K94: 237.35 | L94: 227.55 | M94: 3.01652
A95: 86 | B95: CEATLTD | C95: 1082.05 | D95: 1088.70 | E95: 1068.35 | F95: 1054.65 | G95: 1034.30 | H95: 1102.40 | I95: 1122.75 | J95: 1136.45 | K95: 1109.05 | L95: 1075 | M95: 3.99592
A96: 87 | B96: CENTRALBK | C96: 32.25 | D96: 32.35 | E96: 31.75 | F96: 31.25 | G96: 30.65 | H96: 32.85 | I96: 33.45 | J96: 33.95 | K96: 32.95 | L96: 31.85 | M96: 10.67973
A97: 88 | B97: CENTURYPLY | C97: 200.4 | D97: 199.73 | E97: 197.47 | F97: 194.53 | G97: 192.27 | H97: 202.67 | I97: 204.93 | J97: 207.87 | K97: 202 | L97: 196.8 | M97: 1.55352
A98: 89 | B98: CENTURYTEX | C98: 896.9 | D98: 904.78 | E98: 885.02 | F98: 873.13 | G98: 853.37 | H98: 916.67 | I98: 936.43 | J98: 948.32 | K98: 924.55 | L98: 892.9 | M98: 5.95247
A99: 90 | B99: CERA | C99: 2671.3 | D99: 2669.77 | E99: 2651.53 | F99: 2631.77 | G99: 2613.53 | H99: 2689.53 | I99: 2707.77 | J99: 2727.53 | K99: 2688 | L99: 2650 | M99: 0.03361
A100: 91 | B100: CGPOWER | C100: 42.75 | D100: 43.20 | E100: 42.10 | F100: 41.45 | G100: 40.35 | H100: 43.85 | I100: 44.95 | J100: 45.60 | K100: 44.3 | L100: 42.55 | M100: 67.28741
A101: 92 | B101: CHAMBLFERT | C101: 170.25 | D101: 168.73 | E101: 165.67 | F101: 161.08 | G101: 158.02 | H101: 173.32 | I101: 176.38 | J101: 180.97 | K101: 171.8 | L101: 164.15 | M101: 3.90349
A102: 93 | B102: CHENNPETRO | C102: 260 | D102: 261.57 | E102: 256.58 | F102: 253.17 | G102: 248.18 | H102: 264.98 | I102: 269.97 | J102: 273.38 | K102: 266.55 | L102: 258.15 | M102: 3.74216
A103: 94 | B103: CHOLAFIN | C103: 1428.35 | D103: 1424.77 | E103: 1387.13 | F103: 1345.92 | G103: 1308.28 | H103: 1465.98 | I103: 1503.62 | J103: 1544.83 | K103: 1462.4 | L103: 1383.55 | M103: 9.22437
A104: 95 | B104: CIPLA | C104: 525.5 | D104: 527.72 | E104: 521.83 | F104: 518.17 | G104: 512.28 | H104: 531.38 | I104: 537.27 | J104: 540.93 | K104: 533.6 | L104: 524.05 | M104: 12.17387
A105: 96 | B105: COALINDIA | C105: 234.45 | D105: 235.38 | E105: 232.67 | F105: 230.88 | G105: 228.17 | H105: 237.17 | I105: 239.88 | J105: 241.67 | K105: 238.1 | L105: 233.6 | M105: 47.77913
A106: 97 | B106: COCHINSHIP | C106: 397.05 | D106: 393.55 | E106: 387.10 | F106: 377.15 | G106: 370.70 | H106: 403.50 | I106: 409.95 | J106: 419.90 | K106: 400 | L106: 383.6 | M106: 1.52579
A107: 98 | B107: COFFEEDAY | C107: 289.1 | D107: 288.43 | E107: 284.97 | F107: 280.83 | G107: 277.37 | H107: 292.57 | I107: 296.03 | J107: 300.17 | K107: 291.9 | L107: 284.3 | M107: 2.14837
A108: 99 | B108: COLPAL | C108: 1264.8 | D108: 1265.45 | E108: 1254.90 | F108: 1245.00 | G108: 1234.45 | H108: 1275.35 | I108: 1285.90 | J108: 1295.80 | K108: 1276 | L108: 1255.55 | M108: 3.30833
A109: 100 | B109: CONCOR | C109: 502.5 | D109: 504.28 | E109: 498.22 | F109: 493.93 | G109: 487.87 | H109: 508.57 | I109: 514.63 | J109: 518.92 | K109: 510.35 | L109: 500 | M109: 5.4527
A110: 101 | B110: COROMANDEL | C110: 494.15 | D110: 491.27 | E110: 484.83 | F110: 475.52 | G110: 469.08 | H110: 500.58 | I110: 507.02 | J110: 516.33 | K110: 497.7 | L110: 481.95 | M110: 3.5782
A111: 102 | B111: COX&KINGS | C111: 139.4 | D111: 139.67 | E111: 138.23 | F111: 137.07 | G111: 135.63 | H111: 140.83 | I111: 142.27 | J111: 143.43 | K111: 141.1 | L111: 138.5 | M111: 1.14912
A112: 103 | B112: CRISIL | C112: 1481.1 | D112: 1487.48 | E112: 1445.62 | F112: 1410.13 | G112: 1368.27 | H112: 1522.97 | I112: 1564.83 | J112: 1600.32 | K112: 1529.35 | L112: 1452 | M112: 0.28303
A113: 104 | B113: CROMPTON | C113: 214.65 | D113: 214.90 | E113: 212.90 | F113: 211.15 | G113: 209.15 | H113: 216.65 | I113: 218.65 | J113: 220.40 | K113: 216.9 | L113: 213.15 | M113: 10.37811
A114: 105 | B114: CUB | C114: 201.1 | D114: 202.17 | E114: 198.88 | F114: 196.67 | G114: 193.38 | H114: 204.38 | I114: 207.67 | J114: 209.88 | K114: 205.45 | L114: 199.95 | M114: 10.97213
A115: 106 | B115: CUMMINSIND | C115: 741.4 | D115: 739.12 | E115: 732.28 | F115: 723.17 | G115: 716.33 | H115: 748.23 | I115: 755.07 | J115: 764.18 | K115: 745.95 | L115: 730 | M115: 5.06819
A116: 107 | B116: CYIENT | C116: 665.85 | D116: 664.28 | E116: 653.57 | F116: 641.28 | G116: 630.57 | H116: 676.57 | I116: 687.28 | J116: 699.57 | K116: 675 | L116: 652 | M116: 2.27919
A117: 108 | B117: DABUR | C117: 411.25 | D117: 415.92 | E117: 404.78 | F117: 398.32 | G117: 387.18 | H117: 422.38 | I117: 433.52 | J117: 439.98 | K117: 427.05 | L117: 409.45 | M117: 51.20542
A118: 109 | B118: DBCORP | C118: 188.25 | D118: 187.95 | E118: 185.90 | F118: 183.55 | G118: 181.50 | H118: 190.30 | I118: 192.35 | J118: 194.70 | K118: 190 | L118: 185.6 | M118: 0.52427
A119: 110 | B119: DBL | C119: 660.9 | D119: 666.43 | E119: 649.97 | F119: 639.03 | G119: 622.57 | H119: 677.37 | I119: 693.83 | J119: 704.77 | K119: 682.9 | L119: 655.5 | M119: 4.80425
A120: 111 | B120: DBREALTY | C120: 19.8 | D120: 20.00 | E120: 19.30 | F120: 18.80 | G120: 18.10 | H120: 20.50 | I120: 21.20 | J120: 21.70 | K120: 20.7 | L120: 19.5 | M120: 2.16591
A121: 112 | B121: DCAL | C121: 206.6 | D121: 205.50 | E121: 203.10 | F121: 199.60 | G121: 197.20 | H121: 209.00 | I121: 211.40 | J121: 214.90 | K121: 207.9 | L121: 202 | M121: 2.03568
A122: 113 | B122: DCBBANK | C122: 203.9 | D122: 203.15 | E122: 200.30 | F122: 196.70 | G122: 193.85 | H122: 206.75 | I122: 209.60 | J122: 213.20 | K122: 206 | L122: 199.55 | M122: 25.7411
A123: 114 | B123: DCMSHRIRAM | C123: 411.7 | D123: 412.38 | E123: 405.87 | F123: 400.03 | G123: 393.52 | H123: 418.22 | I123: 424.73 | J123: 430.57 | K123: 418.9 | L123: 406.55 | M123: 0.90159
A124: 115 | B124: DEEPAKFERT | C124: 133.25 | D124: 132.75 | E124: 131.00 | F124: 128.75 | G124: 127.00 | H124: 135.00 | I124: 136.75 | J124: 139.00 | K124: 134.5 | L124: 130.5 | M124: 1.91166
A125: 116 | B125: DELTACORP | C125: 257.15 | D125: 254.18 | E125: 250.37 | F125: 243.58 | G125: 239.77 | H125: 260.97 | I125: 264.78 | J125: 271.57 | K125: 258 | L125: 247.4 | M125: 21.46972
A126: 117 | B126: DEN | C126: 70 | D126: 70.38 | E126: 68.67 | F126: 67.33 | G126: 65.62 | H126: 71.72 | I126: 73.43 | J126: 74.77 | K126: 72.1 | L126: 69.05 | M126: 0.73481
A127: 118 | B127: DHFL | C127: 136.55 | D127: 137.23 | E127: 134.47 | F127: 132.38 | G127: 129.62 | H127: 139.32 | I127: 142.08 | J127: 144.17 | K127: 140 | L127: 135.15 | M127: 141.56526
A128: 119 | B128: DISHTV | C128: 36.2 | D128: 36.50 | E128: 35.65 | F128: 35.10 | G128: 34.25 | H128: 37.05 | I128: 37.90 | J128: 38.45 | K128: 37.35 | L128: 35.95 | M128: 105.46064
A129: 120 | B129: DIVISLAB | C129: 1665.9 | D129: 1682.32 | E129: 1644.63 | F129: 1623.37 | G129: 1585.68 | H129: 1703.58 | I129: 1741.27 | J129: 1762.53 | K129: 1720 | L129: 1661.05 | M129: 4.60961
A130: 121 | B130: DIXON | C130: 2358.4 | D130: 2370.88 | E130: 2301.57 | F130: 2244.73 | G130: 2175.42 | H130: 2427.72 | I130: 2497.03 | J130: 2553.87 | K130: 2440.2 | L130: 2314.05 | M130: 0.06481
A131: 122 | B131: DLF | C131: 190.4 | D131: 193.13 | E131: 186.87 | F131: 183.33 | G131: 177.07 | H131: 196.67 | I131: 202.93 | J131: 206.47 | K131: 199.4 | L131: 189.6 | M131: 112.82628
A132: 123 | B132: DMART | C132: 1479.4 | D132: 1478.95 | E132: 1467.95 | F132: 1456.50 | G132: 1445.50 | H132: 1490.40 | I132: 1501.40 | J132: 1512.85 | K132: 1489.95 | L132: 1467.5 | M132: 2.21121
A133: 124 | B133: DREDGECORP | C133: 425.4 | D133: 425.53 | E133: 420.07 | F133: 414.73 | G133: 409.27 | H133: 430.87 | I133: 436.33 | J133: 441.67 | K133: 431 | L133: 420.2 | M133: 3.97131
A134: 125 | B134: DRREDDY | C134: 2765.05 | D134: 2774.38 | E134: 2734.77 | F134: 2704.48 | G134: 2664.87 | H134: 2804.67 | I134: 2844.28 | J134: 2874.57 | K134: 2814 | L134: 2744.1 | M134: 6.59032
A135: 126 | B135: ECLERX | C135: 1138.15 | D135: 1141.03 | E135: 1132.57 | F135: 1126.98 | G135: 1118.52 | H135: 1146.62 | I135: 1155.08 | J135: 1160.67 | K135: 1149.5 | L135: 1135.45 | M135: 0.2795
A136: 127 | B136: EDELWEISS | C136: 189.55 | D136: 189.08 | E136: 186.52 | F136: 183.48 | G136: 180.92 | H136: 192.12 | I136: 194.68 | J136: 197.72 | K136: 191.65 | L136: 186.05 | M136: 31.65534
A137: 128 | B137: EICHERMOT | C137: 20974.15 | D137: 21104.93 | E137: 20724.87 | F137: 20475.58 | G137: 20095.52 | H137: 21354.22 | I137: 21734.28 | J137: 21983.57 | K137: 21485 | L137: 20855.65 | M137: 1.17588
A138: 129 | B138: EIDPARRY | C138: 199.7 | D138: 200.97 | E138: 198.13 | F138: 196.57 | G138: 193.73 | H138: 202.53 | I138: 205.37 | J138: 206.93 | K138: 203.8 | L138: 199.4 | M138: 1.18072
A139: 130 | B139: EIHOTEL | C139: 194.5 | D139: 193.73 | E139: 189.97 | F139: 185.43 | G139: 181.67 | H139: 198.27 | I139: 202.03 | J139: 206.57 | K139: 197.5 | L139: 189.2 | M139: 7.018
A140: 131 | B140: EMAMILTD | C140: 397.95 | D140: 400.52 | E140: 389.43 | F140: 380.92 | G140: 369.83 | H140: 409.03 | I140: 420.12 | J140: 428.63 | K140: 411.6 | L140: 392 | M140: 7.68136
A141: 132 | B141: ENDURANCE | C141: 1150.4 | D141: 1148.77 | E141: 1139.68 | F141: 1128.97 | G141: 1119.88 | H141: 1159.48 | I141: 1168.57 | J141: 1179.28 | K141: 1157.85 | L141: 1138.05 | M141: 1.2218
A142: 133 | B142: ENGINERSIN | C142: 116.45 | D142: 116.15 | E142: 114.40 | F142: 112.35 | G142: 110.60 | H142: 118.20 | I142: 119.95 | J142: 122.00 | K142: 117.9 | L142: 114.1 | M142: 34.52203
A143: 134 | B143: EQUITAS | C143: 134.25 | D143: 134.30 | E143: 132.15 | F143: 130.05 | G143: 127.90 | H143: 136.40 | I143: 138.55 | J143: 140.65 | K143: 136.45 | L143: 132.2 | M143: 35.404
A144: 135 | B144: ERIS | C144: 639.75 | D144: 635.27 | E144: 630.53 | F144: 621.32 | G144: 616.58 | H144: 644.48 | I144: 649.22 | J144: 658.43 | K144: 640 | L144: 626.05 | M144: 0.12291
A145: 136 | B145: EROSMEDIA | C145: 77.85 | D145: 78.10 | E145: 76.70 | F145: 75.55 | G145: 74.15 | H145: 79.25 | I145: 80.65 | J145: 81.80 | K145: 79.5 | L145: 76.95 | M145: 9.12366
A146: 137 | B146: ESCORTS | C146: 819.05 | D146: 815.33 | E146: 804.72 | F146: 790.38 | G146: 779.77 | H146: 829.67 | I146: 840.28 | J146: 854.62 | K146: 825.95 | L146: 801 | M146: 27.03553
A147: 138 | B147: EVEREADY | C147: 194.3 | D147: 193.00 | E147: 189.00 | F147: 183.70 | G147: 179.70 | H147: 198.30 | I147: 202.30 | J147: 207.60 | K147: 197 | L147: 187.7 | M147: 8.17702
A148: 139 | B148: EXIDEIND | C148: 226.35 | D148: 226.47 | E148: 224.18 | F148: 222.02 | G148: 219.73 | H148: 228.63 | I148: 230.92 | J148: 233.08 | K148: 228.75 | L148: 224.3 | M148: 14.28222
A149: 140 | B149: FCONSUMER | C149: 44.85 | D149: 44.87 | E149: 44.28 | F149: 43.72 | G149: 43.13 | H149: 45.43 | I149: 46.02 | J149: 46.58 | K149: 45.45 | L149: 44.3 | M149: 22.40964
A150: 141 | B150: FEDERALBNK | C150: 91.8 | D150: 91.67 | E150: 90.73 | F150: 89.67 | G150: 88.73 | H150: 92.73 | I150: 93.67 | J150: 94.73 | K150: 92.6 | L150: 90.6 | M150: 115.1229
A151: 142 | B151: FINCABLES | C151: 492.95 | D151: 490.07 | E151: 480.33 | F151: 467.72 | G151: 457.98 | H151: 502.68 | I151: 512.42 | J151: 525.03 | K151: 499.8 | L151: 477.45 | M151: 1.72274
A152: 143 | B152: FINPIPE | C152: 491.45 | D152: 493.97 | E152: 487.93 | F152: 484.42 | G152: 478.38 | H152: 497.48 | I152: 503.52 | J152: 507.03 | K152: 500 | L152: 490.45 | M152: 0.13471
A153: 144 | B153: FLFL | C153: 480.35 | D153: 479.20 | E153: 475.15 | F153: 469.95 | G153: 465.90 | H153: 484.40 | I153: 488.45 | J153: 493.65 | K153: 483.25 | L153: 474 | M153: 0.62487
A154: 145 | B154: FSL | C154: 48.3 | D154: 47.62 | E154: 46.58 | F154: 44.87 | G154: 43.83 | H154: 49.33 | I154: 50.37 | J154: 52.08 | K154: 48.65 | L154: 45.9 | M154: 30.43091
A155: 146 | B155: GAIL | C155: 355.85 | D155: 357.43 | E155: 352.87 | F155: 349.88 | G155: 345.32 | H155: 360.42 | I155: 364.98 | J155: 367.97 | K155: 362 | L155: 354.45 | M155: 26.53874
A156: 147 | B156: GATI | C156: 87.25 | D156: 87.87 | E156: 85.73 | F156: 84.22 | G156: 82.08 | H156: 89.38 | I156: 91.52 | J156: 93.03 | K156: 90 | L156: 86.35 | M156: 9.29216
A157: 148 | B157: GDL | C157: 125.1 | D157: 125.70 | E157: 123.40 | F157: 121.70 | G157: 119.40 | H157: 127.40 | I157: 129.70 | J157: 131.40 | K157: 128 | L157: 124 | M157: 0.4251
A158: 149 | B158: GEPIL | C158: 813.7 | D158: 810.85 | E158: 805.80 | F158: 797.90 | G158: 792.85 | H158: 818.75 | I158: 823.80 | J158: 831.70 | K158: 815.9 | L158: 802.95 | M158: 0.05475
A159: 150 | B159: GESHIP | C159: 281.15 | D159: 281.57 | E159: 279.68 | F159: 278.22 | G159: 276.33 | H159: 283.03 | I159: 284.92 | J159: 286.38 | K159: 283.45 | L159: 280.1 | M159: 0.14839
A160: 151 | B160: GET&D | C160: 264.05 | D160: 267.30 | E160: 258.75 | F160: 253.45 | G160: 244.90 | H160: 272.60 | I160: 281.15 | J160: 286.45 | K160: 275.85 | L160: 262 | M160: 0.54711
A161: 152 | B161: GHCL | C161: 243.9 | D161: 240.93 | E161: 234.97 | F161: 226.03 | G161: 220.07 | H161: 249.87 | I161: 255.83 | J161: 264.77 | K161: 246.9 | L161: 232 | M161: 1.58947
A162: 153 | B162: GICRE | C162: 240.25 | D162: 241.78 | E162: 237.57 | F162: 234.88 | G162: 230.67 | H162: 244.47 | I162: 248.68 | J162: 251.37 | K162: 246 | L162: 239.1 | M162: 1.49272
A163: 154 | B163: GILLETTE | C163: 6507.5 | D163: 6501.55 | E163: 6480.90 | F163: 6454.30 | G163: 6433.65 | H163: 6528.15 | I163: 6548.80 | J163: 6575.40 | K163: 6522.2 | L163: 6474.95 | M163: 0.05948
A164: 155 | B164: GLAXO | C164: 1298.95 | D164: 1289.70 | E164: 1279.25 | F164: 1259.55 | G164: 1249.10 | H164: 1309.40 | I164: 1319.85 | J164: 1339.55 | K164: 1300.15 | L164: 1270 | M164: 0.52124
A165: 156 | B165: GLENMARK | C165: 641.25 | D165: 644.08 | E165: 637.17 | F165: 633.08 | G165: 626.17 | H165: 648.17 | I165: 655.08 | J165: 659.17 | K165: 651 | L165: 640 | M165: 2.96494
A166: 157 | B166: GMDCLTD | C166: 81.2 | D166: 81.15 | E166: 80.65 | F166: 80.10 | G166: 79.60 | H166: 81.70 | I166: 82.20 | J166: 82.75 | K166: 81.65 | L166: 80.6 | M166: 1.32748
A167: 158 | B167: GMRINFRA | C167: 19.5 | D167: 20.03 | E167: 18.72 | F167: 17.93 | G167: 16.62 | H167: 20.82 | I167: 22.13 | J167: 22.92 | K167: 21.35 | L167: 19.25 | M167: 1392.09815
A168: 159 | B168: GNFC | C168: 303.95 | D168: 303.10 | E168: 299.40 | F168: 294.85 | G168: 291.15 | H168: 307.65 | I168: 311.35 | J168: 315.90 | K168: 306.8 | L168: 298.55 | M168: 3.81503
A169: 160 | B169: GODFRYPHLP | C169: 1122 | D169: 1128.70 | E169: 1109.40 | F169: 1096.80 | G169: 1077.50 | H169: 1141.30 | I169: 1160.60 | J169: 1173.20 | K169: 1148 | L169: 1116.1 | M169: 2.96633
A170: 161 | B170: GODREJAGRO | C170: 509.05 | D170: 508.93 | E170: 500.17 | F170: 491.28 | G170: 482.52 | H170: 517.82 | I170: 526.58 | J170: 535.47 | K170: 517.7 | L170: 500.05 | M170: 2.52705
A171: 162 | B171: GODREJCP | C171: 690.1 | D171: 691.28 | E171: 684.97 | F171: 679.83 | G171: 673.52 | H171: 696.42 | I171: 702.73 | J171: 707.87 | K171: 697.6 | L171: 686.15 | M171: 12.73004
A172: 163 | B172: GODREJIND | C172: 542.5 | D172: 545.03 | E172: 536.37 | F172: 530.23 | G172: 521.57 | H172: 551.17 | I172: 559.83 | J172: 565.97 | K172: 553.7 | L172: 538.9 | M172: 5.17379
A173: 164 | B173: GODREJPROP | C173: 855.4 | D173: 847.68 | E173: 812.37 | F173: 769.33 | G173: 734.02 | H173: 890.72 | I173: 926.03 | J173: 969.07 | K173: 883 | L173: 804.65 | M173: 7.49384
A174: 165 | B174: GPPL | C174: 100.7 | D174: 101.22 | E174: 98.48 | F174: 96.27 | G174: 93.53 | H174: 103.43 | I174: 106.17 | J174: 108.38 | K174: 103.95 | L174: 99 | M174: 15.77273
A175: 166 | B175: GRANULES | C175: 117.55 | D175: 115.80 | E175: 113.30 | F175: 109.05 | G175: 106.55 | H175: 120.05 | I175: 122.55 | J175: 126.80 | K175: 118.3 | L175: 111.55 | M175: 14.97989
A176: 167 | B176: GRAPHITE | C176: 417.4 | D176: 420.17 | E176: 412.33 | F176: 407.27 | G176: 399.43 | H176: 425.23 | I176: 433.07 | J176: 438.13 | K176: 428 | L176: 415.1 | M176: 8.11806
A177: 168 | B177: GRASIM | C177: 828.6 | D177: 832.67 | E177: 820.93 | F177: 813.27 | G177: 801.53 | H177: 840.33 | I177: 852.07 | J177: 859.73 | K177: 844.4 | L177: 825 | M177: 11.35187
A178: 169 | B178: GREAVESCOT | C178: 142 | D178: 140.32 | E178: 137.83 | F178: 133.67 | G178: 131.18 | H178: 144.48 | I178: 146.97 | J178: 151.13 | K178: 142.8 | L178: 136.15 | M178: 4.39084
A179: 170 | B179: GREENPLY | C179: 154.2 | D179: 153.67 | E179: 151.33 | F179: 148.47 | G179: 146.13 | H179: 156.53 | I179: 158.87 | J179: 161.73 | K179: 156 | L179: 150.8 | M179: 2.13814
A180: 171 | B180: GRUH | C180: 269.05 | D180: 267.28 | E180: 263.32 | F180: 257.58 | G180: 253.62 | H180: 273.02 | I180: 276.98 | J180: 282.72 | K180: 271.25 | L180: 261.55 | M180: 17.32608
A181: 172 | B181: GSFC | C181: 99.4 | D181: 100.12 | E181: 98.23 | F181: 97.07 | G181: 95.18 | H181: 101.28 | I181: 103.17 | J181: 104.33 | K181: 102 | L181: 98.95 | M181: 9.0688
A182: 173 | B182: GSKCONS | C182: 6953.4 | D182: 6987.95 | E182: 6905.45 | F182: 6857.50 | G182: 6775.00 | H182: 7035.90 | I182: 7118.40 | J182: 7166.35 | K182: 7070.45 | L182: 6940 | M182: 0.20623
A183: 174 | B183: GSPL | C183: 178.05 | D183: 178.22 | E183: 175.43 | F183: 172.82 | G183: 170.03 | H183: 180.83 | I183: 183.62 | J183: 186.23 | K183: 181 | L183: 175.6 | M183: 5.98652
A184: 175 | B184: GUJALKALI | C184: 493.05 | D184: 491.20 | E184: 486.15 | F184: 479.25 | G184: 474.20 | H184: 498.10 | I184: 503.15 | J184: 510.05 | K184: 496.25 | L184: 484.3 | M184: 0.48147
A185: 176 | B185: GUJFLUORO | C185: 1069.7 | D185: 1066.17 | E185: 1060.08 | F185: 1050.47 | G185: 1044.38 | H185: 1075.78 | I185: 1081.87 | J185: 1091.48 | K185: 1072.25 | L185: 1056.55 | M185: 0.40787
A186: 177 | B186: GUJGASLTD | C186: 144.3 | D186: 144.43 | E186: 142.27 | F186: 140.23 | G186: 138.07 | H186: 146.47 | I186: 148.63 | J186: 150.67 | K186: 146.6 | L186: 142.4 | M186: 10.2032
A187: 178 | B187: GULFOILLUB | C187: 840.2 | D187: 836.07 | E187: 825.13 | F187: 810.07 | G187: 799.13 | H187: 851.13 | I187: 862.07 | J187: 877.13 | K187: 847 | L187: 821 | M187: 0.07954
A188: 179 | B188: GVKPIL | C188: 8.15 | D188: 8.10 | E188: 7.90 | F188: 7.65 | G188: 7.45 | H188: 8.35 | I188: 8.55 | J188: 8.80 | K188: 8.3 | L188: 7.85 | M188: 94.39136
A189: 180 | B189: HATHWAY | C189: 29.55 | D189: 29.32 | E189: 28.38 | F189: 27.22 | G189: 26.28 | H189: 30.48 | I189: 31.42 | J189: 32.58 | K189: 30.25 | L189: 28.15 | M189: 4.45125
A190: 181 | B190: HATSUN | C190: 710.9 | D190: 712.35 | E190: 704.70 | F190: 698.50 | G190: 690.85 | H190: 718.55 | I190: 726.20 | J190: 732.40 | K190: 720 | L190: 706.15 | M190: 0.07005
A191: 182 | B191: HAVELLS | C191: 749.3 | D191: 753.77 | E191: 740.83 | F191: 732.37 | G191: 719.43 | H191: 762.23 | I191: 775.17 | J191: 783.63 | K191: 766.7 | L191: 745.3 | M191: 6.87539
A192: 183 | B192: HCC | C192: 15.25 | D192: 15.67 | E192: 14.73 | F192: 14.22 | G192: 13.28 | H192: 16.18 | I192: 17.12 | J192: 17.63 | K192: 16.6 | L192: 15.15 | M192: 194.80702
A193: 184 | B193: HCL-INSYS | C193: 18.9 | D193: 19.13 | E193: 18.57 | F193: 18.23 | G193: 17.67 | H193: 19.47 | I193: 20.03 | J193: 20.37 | K193: 19.7 | L193: 18.8 | M193: 7.19428
A194: 185 | B194: HCLTECH | C194: 1043.15 | D194: 1039.83 | E194: 1023.32 | F194: 1003.48 | G194: 986.97 | H194: 1059.67 | I194: 1076.18 | J194: 1096.02 | K194: 1056.35 | L194: 1020 | M194: 14.55845
A195: 186 | B195: HDFC | C195: 1919.9 | D195: 1928.30 | E195: 1897.60 | F195: 1875.30 | G195: 1844.60 | H195: 1950.60 | I195: 1981.30 | J195: 2003.60 | K195: 1959 | L195: 1906 | M195: 30.76446
A196: 187 | B196: HDFCBANK | C196: 2299.45 | D196: 2302.18 | E196: 2276.32 | F196: 2253.18 | G196: 2227.32 | H196: 2325.32 | I196: 2351.18 | J196: 2374.32 | K196: 2328.05 | L196: 2279.05 | M196: 34.71325
A197: 188 | B197: HDIL | C197: 25.65 | D197: 25.75 | E197: 25.35 | F197: 25.05 | G197: 24.65 | H197: 26.05 | I197: 26.45 | J197: 26.75 | K197: 26.15 | L197: 25.45 | M197: 30.16121
A198: 189 | B198: HEG | C198: 1983.25 | D198: 1994.78 | E198: 1960.57 | F198: 1937.88 | G198: 1903.67 | H198: 2017.47 | I198: 2051.68 | J198: 2074.37 | K198: 2029 | L198: 1972.1 | M198: 2.0361
A199: 190 | B199: HEIDELBERG | C199: 177.4 | D199: 176.25 | E199: 173.80 | F199: 170.20 | G199: 167.75 | H199: 179.85 | I199: 182.30 | J199: 185.90 | K199: 178.7 | L199: 172.65 | M199: 3.67115
A200: 191 | B200: HERITGFOOD | C200: 525.4 | D200: 529.13 | E200: 516.22 | F200: 507.03 | G200: 494.12 | H200: 538.32 | I200: 551.23 | J200: 560.42 | K200: 542.05 | L200: 519.95 | M200: 0.37793
A201: 192 | B201: HEROMOTOCO | C201: 2543.2 | D201: 2557.40 | E201: 2520.80 | F201: 2498.40 | G201: 2461.80 | H201: 2579.80 | I201: 2616.40 | J201: 2638.80 | K201: 2594 | L201: 2535 | M201: 7.6053
A202: 193 | B202: HEXAWARE | C202: 336.75 | D202: 334.55 | E202: 330.90 | F202: 325.05 | G202: 321.40 | H202: 340.40 | I202: 344.05 | J202: 349.90 | K202: 338.2 | L202: 328.7 | M202: 7.24462
A203: 194 | B203: HFCL | C203: 22.95 | D203: 22.63 | E203: 22.02 | F203: 21.08 | G203: 20.47 | H203: 23.57 | I203: 24.18 | J203: 25.12 | K203: 23.25 | L203: 21.7 | M203: 80.99498
A204: 195 | B204: HIMATSEIDE | C204: 221.5 | D204: 215.75 | E204: 206.60 | F204: 191.70 | G204: 182.55 | H204: 230.65 | I204: 239.80 | J204: 254.70 | K204: 224.9 | L204: 200.85 | M204: 5.97403
A205: 196 | B205: HINDALCO | C205: 207.65 | D205: 208.40 | E205: 205.95 | F205: 204.25 | G205: 201.80 | H205: 210.10 | I205: 212.55 | J205: 214.25 | K205: 210.85 | L205: 206.7 | M205: 57.3182
A206: 197 | B206: HINDCOPPER | C206: 48.2 | D206: 48.22 | E206: 47.78 | F206: 47.37 | G206: 46.93 | H206: 48.63 | I206: 49.07 | J206: 49.48 | K206: 48.65 | L206: 47.8 | M206: 6.58119
... 304 more rows

Sheet Bulk Deals
E6: Back To Main Page
A7: Subject : | B7: BULK DEAL | D7: =Main!B10 -> 2019-03-28
A9: Date | B9: Scrip code | C9: Scrip Name | D9: Client Name | E9: Buy / Sell | F9: Quantity Traded | G9: Trade Price / Wt.Avg.trade price | H9: Exchange
A10: 2019-03-27 | B10: 538812 | C10: AANCHALISP | D10: MIKER FINANCIAL CONSULTANTS PRIVATE LIMITED | E10: SELL | F10: 126,501 | G10: 9.75 | H10: BSE
A11: 2019-03-27 | B11: 542580 | C11: AARTECH | D11: VIJAYA DEVI DESHLAHRA | E11: BUY | F11: 56,000 | G11: 34.52 | H11: BSE
A12: 2019-03-27 | B12: 542580 | C12: AARTECH | D12: GIRIRAJ PRASAD AGRAWAL | E12: BUY | F12: 128000 | G12: 34.52 | H12: BSE
A13: 2019-03-27 | B13: 539661 | C13: ACEMEN | D13: ZODIAC VANIJYA PRIVATE LIMITED | E13: BUY | F13: 20200 | G13: 21.42 | H13: BSE
A14: 2019-03-27 | B14: 539661 | C14: ACEMEN | D14: AVNISH HARAKHCHAND GUDHKA | E14: SELL | F14: 20200 | G14: 21.42 | H14: BSE
A15: 2019-03-27 | B15: 531921 | C15: AGARIND | D15: NISHU FINLEASE PVT. LTD. | E15: BUY | F15: 65000 | G15: 162.25 | H15: BSE
A16: 2019-03-27 | B16: 531921 | C16: AGARIND | D16: GARNET INTERNATIONAL LIMITED | E16: SELL | F16: 65000 | G16: 162.25 | H16: BSE
A17: 2019-03-27 | B17: 538778 | C17: AKASHDEEP | D17: SIRIUS ADVISORS PRIVATE LIMITED. | E17: BUY | F17: 50800 | G17: 45.45 | H17: BSE
A18: 2019-03-27 | B18: 530499 | C18: AKCAPIT | D18: FAMILY HOME CONSULTANCY SERVICES PRIVATE LIMITED | E18: BUY | F18: 48570 | G18: 332.56 | H18: BSE
A19: 2019-03-27 | B19: 540024 | C19: ASHARI | D19: SEEMA GARG | E19: SELL | F19: 62800 | G19: 7.85 | H19: BSE
A20: 2019-03-27 | B20: 540024 | C20: ASHARI | D20: YOGESH KUMAR SHARMA | E20: BUY | F20: 155000 | G20: 7.97 | H20: BSE
A21: 2019-03-27 | B21: 540024 | C21: ASHARI | D21: GYAN CHAND AGGARWAL | E21: SELL | F21: 155000 | G21: 7.97 | H21: BSE
A22: 2019-03-27 | B22: 540024 | C22: ASHARI | D22: MANOJKUMAR GUNVANTRAI SOMANI | E22: BUY | F22: 51390 | G22: 7.84 | H22: BSE
A23: 2019-03-27 | B23: 511144 | C23: ASYAINFO | D23: HETAL MANISH JHAVERI | E23: BUY | F23: 80,000 | G23: 3.37 | H23: BSE
A24: 2019-03-27 | B24: 511144 | C24: ASYAINFO | D24: MANISH SURENDRABHAI JHAVERI | E24: SELL | F24: 78,641 | G24: 3.37 | H24: BSE
A25: 2019-03-27 | B25: 538713 | C25: ATISHAY | D25: NISHU FINLEASE PVT. LTD. | E25: BUY | F25: 75,000 | G25: 68 | H25: BSE
A26: 2019-03-27 | B26: 538713 | C26: ATISHAY | D26: ARCH FINANCE LIMITED | E26: SELL | F26: 75,000 | G26: 68 | H26: BSE
A27: 2019-03-27 | B27: 542285 | C27: AXITA | D27: AMBICA COTSEEDS LIMITED | E27: SELL | F27: 48,000 | G27: 66.8 | H27: BSE
A28: 2019-03-27 | B28: 537766 | C28: BCP | D28: ACHINTYA SECURITIES PVT. LTD. | E28: BUY | F28: 534,329 | G28: 39.77 | H28: BSE
A29: 2019-03-27 | B29: 537766 | C29: BCP | D29: ACHINTYA SECURITIES PVT. LTD. | E29: SELL | F29: 534,328 | G29: 39.08 | H29: BSE
A30: 2019-03-27 | B30: 537766 | C30: BCP | D30: SANGHVI ASSOCIATES | E30: BUY | F30: 420,000 | G30: 39.7 | H30: BSE
A31: 2019-03-27 | B31: 537766 | C31: BCP | D31: RELITRADE STOCK BROKING PVT LTD | E31: BUY | F31: 420,754 | G31: 39.32 | H31: BSE
A32: 2019-03-27 | B32: 537766 | C32: BCP | D32: RELITRADE STOCK BROKING PVT LTD | E32: SELL | F32: 420,000 | G32: 39.7 | H32: BSE
A33: 2019-03-27 | B33: 537766 | C33: BCP | D33: SANGHVI ASSOCIATES | E33: SELL | F33: 420,754 | G33: 39.32 | H33: BSE
A34: 2019-03-27 | B34: 542057 | C34: BCPL | D34: NEWEDGE VINIMAY PRIVATE LIMITED . | E34: SELL | F34: 288,000 | G34: 36 | H34: BSE
A35: 2019-03-27 | B35: 530249 | C35: BRIDGESE | D35: HEM ARCADE LIMITED | E35: SELL | F35: 150,000 | G35: 6.85 | H35: BSE
A36: 2019-03-27 | B36: 530249 | C36: BRIDGESE | D36: VISHAL PRAGNESHBHAI SHAH | E36: BUY | F36: 150,000 | G36: 6.85 | H36: BSE
A37: 2019-03-27 | B37: 541778 | C37: DEEP | D37: NNM SECURITIES PVT LTD | E37: BUY | F37: 153000 | G37: 48.24 | H37: BSE
A38: 2019-03-27 | B38: 541778 | C38: DEEP | D38: KHICHADIA RAMESHBHAI DEVR AJBHAI | E38: SELL | F38: 63000 | G38: 48.25 | H38: BSE
A39: 2019-03-27 | B39: 541778 | C39: DEEP | D39: AMIT KEJRIWAL AND SONS | E39: SELL | F39: 87000 | G39: 48.25 | H39: BSE
A40: 2019-03-27 | B40: 540268 | C40: DHANVARSHA | D40: MALAY ROHITKUMAR BHUW | E40: SELL | F40: 69500 | G40: 50 | H40: BSE
A41: 2019-03-27 | B41: 540268 | C41: DHANVARSHA | D41: TRUVALUE AGRO VENTURES PRIVATE LIMITED | E41: BUY | F41: 200000 | G41: 50 | H41: BSE
A42: 2019-03-27 | B42: 532219 | C42: ENERGYDEV | D42: RAJ KUMAR PATNI | E42: BUY | F42: 690459 | G42: 7.04 | H42: BSE
A43: 2019-03-27 | B43: 532219 | C43: ENERGYDEV | D43: GYAN TRADERS LIMITED | E43: SELL | F43: 722450 | G43: 7.05 | H43: BSE
A44: 2019-03-27 | B44: 533149 | C44: ESSARSEC | D44: VIPUL JAYANTILAL MODI | E44: BUY | F44: 702800 | G44: 1.91 | H44: BSE
A45: 2019-03-27 | B45: 533149 | C45: ESSARSEC | D45: PRAKASH KANTILAL SHAH | E45: SELL | F45: 240000 | G45: 1.91 | H45: BSE
A46: 2019-03-27 | B46: 533149 | C46: ESSARSEC | D46: PRATIMA PRAKASH SHAH | E46: SELL | F46: 462800 | G46: 1.91 | H46: BSE
A47: 2019-03-27 | B47: 542477 | C47: GLEAM | D47: RISHU AGARWAL | E47: BUY | F47: 160000 | G47: 5.11 | H47: BSE
A48: 2019-03-27 | B48: 542477 | C48: GLEAM | D48: RISHU AGARWAL | E48: SELL | F48: 160000 | G48: 5.78 | H48: BSE
A49: 2019-03-27 | B49: 542477 | C49: GLEAM | D49: DAYA BANSAL | E49: BUY | F49: 160000 | G49: 5.78 | H49: BSE
A50: 2019-03-27 | B50: 542477 | C50: GLEAM | D50: R S SERVICES PRIVATE LIMITED | E50: SELL | F50: 170000 | G50: 5.15 | H50: BSE
A51: 2019-03-27 | B51: 531360 | C51: GOLECHA | D51: SAVITA KEDIA | E51: BUY | F51: 40000 | G51: 7.77 | H51: BSE
A52: 2019-03-27 | B52: 523676 | C52: GOLKUNDIA | D52: ARVIND KANTIKUMAR DADHA | E52: BUY | F52: 41000 | G52: 12.61 | H52: BSE
A53: 2019-03-27 | B53: 523676 | C53: GOLKUNDIA | D53: NEVERLOOSE PROPERTIES & INVESTMENT PRIVATE LIMITED | E53: SELL | F53: 62000 | G53: 12.61 | H53: BSE
A54: 2019-03-27 | B54: 508918 | C54: GREYCELLS | D54: M/SLKPPANDAY | E54: BUY | F54: 50000 | G54: 36.6 | H54: BSE
A55: 2019-03-27 | B55: 508918 | C55: GREYCELLS | D55: LKPFINANCELIMITED | E55: SELL | F55: 50000 | G55: 36.6 | H55: BSE
A56: 2019-03-27 | B56: 540938 | C56: GUJHYSPIN | D56: KARAMSHI KHIMJI PIR | E56: BUY | F56: 130000 | G56: 5.08 | H56: BSE
A57: 2019-03-27 | B57: 540938 | C57: GUJHYSPIN | D57: KARAMSHI KHIMJI PIR | E57: SELL | F57: 60000 | G57: 6.3 | H57: BSE
A58: 2019-03-27 | B58: 540938 | C58: GUJHYSPIN | D58: HEENA ULLASH SHAH | E58: SELL | F58: 170000 | G58: 4.97 | H58: BSE
A59: 2019-03-27 | B59: 532467 | C59: HAZOOR | D59: VEDINI VINIMAY PRIVATE LIMITED | E59: BUY | F59: 400000 | G59: 0.46 | H59: BSE
A60: 2019-03-27 | B60: 532467 | C60: HAZOOR | D60: ASHISH SHAH | E60: SELL | F60: 399900 | G60: 0.46 | H60: BSE
A61: 2019-03-27 | B61: 535667 | C61: IFINSEC | D61: RUDRAVEERYA DEVELOPERS LIMITED | E61: SELL | F61: 297600 | G61: 14.5 | H61: BSE
A62: 2019-03-27 | B62: 535667 | C62: IFINSEC | D62: ASHA DEVI GOYAL | E62: BUY | F62: 170000 | G62: 14.5 | H62: BSE
A63: 2019-03-27 | B63: 539225 | C63: JIYAECO | D63: RAHUL SHARMA | E63: BUY | F63: 220143 | G63: 54.77 | H63: BSE
A64: 2019-03-27 | B64: 539225 | C64: JIYAECO | D64: RAHUL SHARMA | E64: SELL | F64: 220142 | G64: 55.06 | H64: BSE
A65: 2019-03-27 | B65: 538765 | C65: JSHL | D65: NITIN JAISWAL | E65: BUY | F65: 80000 | G65: 13.08 | H65: BSE
A66: 2019-03-27 | B66: 538765 | C66: JSHL | D66: SIDHARTH SEHGAL & SONS HUF | E66: SELL | F66: 245000 | G66: 13.02 | H66: BSE
A67: 2019-03-27 | B67: 538765 | C67: JSHL | D67: NIDHI PORWAL | E67: BUY | F67: 40000 | G67: 13.11 | H67: BSE
A68: 2019-03-27 | B68: 538765 | C68: JSHL | D68: NIDHI PORWAL | E68: SELL | F68: 30000 | G68: 13.07 | H68: BSE
A69: 2019-03-27 | B69: 539599 | C69: KEL | D69: NHL SALES AGENCY LLP | E69: SELL | F69: 69000 | G69: 15.28 | H69: BSE
A70: 2019-03-27 | B70: 540953 | C70: KENVI | D70: VIVIDOFFSET PRINTERS PRIVATELIMITED | E70: BUY | F70: 30000 | G70: 13 | H70: BSE
A71: 2019-03-27 | B71: 540953 | C71: KENVI | D71: VEERAM VENDORS PRIVATELIMITED | E71: SELL | F71: 42000 | G71: 12.71 | H71: BSE
A72: 2019-03-27 | B72: 540775 | C72: KHADIM | D72: UTI MUTUAL FUND | E72: BUY | F72: 177971 | G72: 436.7 | H72: BSE
A73: 2019-03-27 | B73: 501471 | C73: MACK | D73: JAVERI FISCAL SERVICES LIMITED | E73: BUY | F73: 10305 | G73: 73.15 | H73: BSE
A74: 2019-03-27 | B74: 501471 | C74: MACK | D74: RESHMA HARSH JAVERI | E74: SELL | F74: 10000 | G74: 73.15 | H74: BSE
A75: 2019-03-27 | B75: 539519 | C75: MAYUKH | D75: SWAMINATHAN KRISHNAN | E75: SELL | F75: 20000 | G75: 11.71 | H75: BSE
A76: 2019-03-27 | B76: 541206 | C76: OBCL | D76: NNM SECURITIES PVT LTD | E76: BUY | F76: 152000 | G76: 48.45 | H76: BSE
A77: 2019-03-27 | B77: 541206 | C77: OBCL | D77: NNM SECURITIES PVT LTD | E77: SELL | F77: 208000 | G77: 49.45 | H77: BSE
A78: 2019-03-27 | B78: 541206 | C78: OBCL | D78: NEWEDGE VINIMAY PRIVATE LIMITED . | E78: BUY | F78: 212000 | G78: 49.44 | H78: BSE
A79: 2019-03-27 | B79: 541206 | C79: OBCL | D79: A. G. SHARES AND SECURITIES LIMITED | E79: SELL | F79: 112000 | G79: 48.26 | H79: BSE
A80: 2019-03-27 | B80: 514330 | C80: OBRSESY | D80: SUNIL GIRDHARILAL RAHEJA | E80: SELL | F80: 36000 | G80: 3.7 | H80: BSE
A81: 2019-03-27 | B81: 539116 | C81: OPCHAINS | D81: A. G. SHARES AND SECURITIES LIMITED | E81: BUY | F81: 130000 | G81: 11 | H81: BSE
A82: 2019-03-27 | B82: 539116 | C82: OPCHAINS | D82: GIRRAJ KISHOR AGARWAL (HUF) | E82: SELL | F82: 60000 | G82: 11 | H82: BSE
A83: 2019-03-27 | B83: 539116 | C83: OPCHAINS | D83: AJAY KUMAR AGARWAL | E83: SELL | F83: 130000 | G83: 11 | H83: BSE
A84: 2019-03-27 | B84: 539116 | C84: OPCHAINS | D84: ASHOK KUMAR GOYAL | E84: BUY | F84: 60000 | G84: 11 | H84: BSE
A85: 2019-03-27 | B85: 541444 | C85: PALMJEWELS | D85: DHANESHBHAI PARSHOTTAMDAS SONI | E85: SELL | F85: 336000 | G85: 14.45 | H85: BSE
A86: 2019-03-27 | B86: 541444 | C86: PALMJEWELS | D86: VISHWAMURTE TRAD INVEST PE LTD | E86: BUY | F86: 120000 | G86: 14.45 | H86: BSE
A87: 2019-03-27 | B87: 541444 | C87: PALMJEWELS | D87: RAJESHKUMAR VITHALBHAI PATEL | E87: SELL | F87: 100000 | G87: 14.45 | H87: BSE
A88: 2019-03-27 | B88: 541444 | C88: PALMJEWELS | D88: JAGDISH BANSILAL KANJANI | E88: BUY | F88: 40000 | G88: 14.45 | H88: BSE
A89: 2019-03-27 | B89: 541444 | C89: PALMJEWELS | D89: MANOHARLAL BANSILAL KANJANI | E89: BUY | F89: 40000 | G89: 14.45 | H89: BSE
A90: 2019-03-27 | B90: 541444 | C90: PALMJEWELS | D90: RESHMA MANOHARLAL KANJANI | E90: BUY | F90: 40000 | G90: 14.45 | H90: BSE
A91: 2019-03-27 | B91: 541444 | C91: PALMJEWELS | D91: DIPESH MANOHARLAL KANJANI | E91: BUY | F91: 40000 | G91: 14.45 | H91: BSE
A92: 2019-03-27 | B92: 541444 | C92: PALMJEWELS | D92: SNEHAL MANOHARLAL KANJANI | E92: BUY | F92: 60000 | G92: 14.45 | H92: BSE
A93: 2019-03-27 | B93: 541444 | C93: PALMJEWELS | D93: KANJANI DIPESH MANOHARLAL (HUF) | E93: BUY | F93: 80000 | G93: 14.45 | H93: BSE
A94: 2019-03-27 | B94: 541444 | C94: PALMJEWELS | D94: AMRAPALI FINCAP PVT LTD | E94: SELL | F94: 72000 | G94: 14.45 | H94: BSE
A95: 2019-03-27 | B95: 541444 | C95: PALMJEWELS | D95: CHIRAG YASHVANTBHAI THAKKAR | E95: SELL | F95: 144000 | G95: 14.45 | H95: BSE
A96: 2019-03-27 | B96: 541444 | C96: PALMJEWELS | D96: SUNNY RASHMIKANT THAKKAR | E96: SELL | F96: 144000 | G96: 14.45 | H96: BSE
A97: 2019-03-27 | B97: 541444 | C97: PALMJEWELS | D97: JIGNESH LALBHAI SHAH HUF | E97: BUY | F97: 52000 | G97: 14.45 | H97: BSE
A98: 2019-03-27 | B98: 541444 | C98: PALMJEWELS | D98: DHIRAJLAL KASALCHAND SHAH | E98: BUY | F98: 100000 | G98: 14.45 | H98: BSE
A99: 2019-03-27 | B99: 541444 | C99: PALMJEWELS | D99: KAMLESH BALCHAND SHAH HUF | E99: BUY | F99: 100000 | G99: 14.45 | H99: BSE
A100: 2019-03-27 | B100: 517258 | C100: PRECISIO | D100: HARDEEP SINGH BANGA | E100: BUY | F100: 178409 | G100: 33.93 | H100: BSE
A101: 2019-03-27 | B101: 517258 | C101: PRECISIO | D101: VEENA KANODIA | E101: SELL | F101: 80000 | G101: 33.95 | H101: BSE
A102: 2019-03-27 | B102: 517258 | C102: PRECISIO | D102: NIKHIL KANODIA | E102: SELL | F102: 90000 | G102: 33.95 | H102: BSE
A103: 2019-03-27 | B103: 532866 | C103: QUINTEGRA | D103: ROHAN RAMESH MORBIA | E103: BUY | F103: 161390 | G103: 0.36 | H103: BSE
A104: 2019-03-27 | B104: 539814 | C104: RADHEY | D104: ZODIAC VANIJYA PRIVATE LIMITED | E104: SELL | F104: 31900 | G104: 14.56 | H104: BSE
A105: 2019-03-27 | B105: 541945 | C105: RANJEET | D105: JIGNESH BABULAL SHAH H.U.F | E105: SELL | F105: 72000 | G105: 39.49 | H105: BSE
A106: 2019-03-27 | B106: 541945 | C106: RANJEET | D106: BEELINE BROKING LIMITED | E106: BUY | F106: 72000 | G106: 36.1 | H106: BSE
A107: 2019-03-27 | B107: 541945 | C107: RANJEET | D107: BEELINE BROKING LIMITED | E107: SELL | F107: 6000 | G107: 35 | H107: BSE
A108: 2019-03-27 | B108: 531952 | C108: RIBATEX | D108: REKHA DAGAR | E108: BUY | F108: 108096 | G108: 87.67 | H108: BSE
A109: 2019-03-27 | B109: 531952 | C109: RIBATEX | D109: REKHA DAGAR | E109: SELL | F109: 107496 | G109: 87.62 | H109: BSE
A110: 2019-03-27 | B110: 540082 | C110: RSTL | D110: VEERAM VENDORS PRIVATELIMITED | E110: SELL | F110: 72000 | G110: 12.2 | H110: BSE
A111: 2019-03-27 | B111: 539660 | C111: SAHYOGMULT | D111: PRIYANKA GUPTA | E111: BUY | F111: 60000 | G111: 29.2 | H111: BSE
A112: 2019-03-27 | B112: 539660 | C112: SAHYOGMULT | D112: SEEMA GARG | E112: SELL | F112: 110000 | G112: 29.16 | H112: BSE
A113: 2019-03-27 | B113: 539660 | C113: SAHYOGMULT | D113: JAGAN NATH | E113: BUY | F113: 49067 | G113: 29.15 | H113: BSE
A114: 2019-03-27 | B114: 521222 | C114: SANBLUE | D114: SANJIV DHIRESHBHAI SHAH | E114: BUY | F114: 77100 | G114: 7.22 | H114: BSE
A115: 2019-03-27 | B115: 531797 | C115: SCANPRO | D115: ALKA CHANDRA | E115: BUY | F115: 64775 | G115: 3.39 | H115: BSE
A116: 2019-03-27 | B116: 531797 | C116: SCANPRO | D116: SANJAY SHARMA | E116: SELL | F116: 26900 | G116: 3.39 | H116: BSE
A117: 2019-03-27 | B117: 531797 | C117: SCANPRO | D117: PRIYANKA BADALIA | E117: SELL | F117: 23900 | G117: 3.39 | H117: BSE
A118: 2019-03-27 | B118: 540737 | C118: SGRL | D118: NNM SECURITIES PVT LTD | E118: BUY | F118: 3000 | G118: 58 | H118: BSE
A119: 2019-03-27 | B119: 540737 | C119: SGRL | D119: NNM SECURITIES PVT LTD | E119: SELL | F119: 81000 | G119: 68.65 | H119: BSE
A120: 2019-03-27 | B120: 540737 | C120: SGRL | D120: GIRRAJ KISHOR AGARWAL (HUF) | E120: BUY | F120: 78000 | G120: 68.92 | H120: BSE
A121: 2019-03-27 | B121: 539520 | C121: SHAILJA | D121: HIMANSHU SHAH | E121: BUY | F121: 35000 | G121: 18.27 | H121: BSE
A122: 2019-03-27 | B122: 539520 | C122: SHAILJA | D122: KUSUM AGARWAL | E122: SELL | F122: 20000 | G122: 18.25 | H122: BSE
A123: 2019-03-27 | B123: 541967 | C123: SKYGOLD | D123: SAJANKUMAR RAMESHWARLAL BAJAJ | E123: SELL | F123: 44000 | G123: 181.5 | H123: BSE
A124: 2019-03-27 | B124: 538943 | C124: SONAL | D124: VISHAL SHARMA | E124: SELL | F124: 82525 | G124: 7.89 | H124: BSE
A125: 2019-03-27 | B125: 540084 | C125: SPICY | D125: CHAUHAN VIJAY | E125: BUY | F125: 100000 | G125: 12 | H125: BSE
A126: 2019-03-27 | B126: 540079 | C126: SPRAYKING | D126: BABU RAMESH SALUNKHE | E126: BUY | F126: 24000 | G126: 19.2 | H126: BSE
A127: 2019-03-27 | B127: 530419 | C127: SUMEDHA | D127: VAKHARIA JASHWANTLAL | E127: SELL | F127: 70000 | G127: 18 | H127: BSE
A128: 2019-03-27 | B128: 540955 | C128: TDSL | D128: ATUL KANODIA | E128: BUY | F128: 210000 | G128: 18.72 | H128: BSE
A129: 2019-03-27 | B129: 540955 | C129: TDSL | D129: MADHU KANODIA | E129: SELL | F129: 210000 | G129: 18.71 | H129: BSE
A130: 2019-03-27 | B130: 538607 | C130: TOYAMIND | D130: HANIF AMIR MANJEE | E130: BUY | F130: 1202440 | G130: 4.8 | H130: BSE
A131: 2019-03-27 | B131: 538607 | C131: TOYAMIND | D131: HANIF AMIR MANJEE | E131: SELL | F131: 1211891 | G131: 4.66 | H131: BSE
A132: 2019-03-27 | B132: 506808 | C132: TUTIALKA | D132: DELHI IRON AND STEEL COMPANY PRIVATE LIMITED | E132: BUY | F132: 331191 | G132: 3.96 | H132: BSE
A133: 2019-03-27 | B133: 506808 | C133: TUTIALKA | D133: VIJAY KUMAR AGGARWAL | E133: SELL | F133: 331867 | G133: 3.96 | H133: BSE
A134: 2019-03-27 | B134: 532478 | C134: UBL | D134: HEINEKEN INTERNATIONAL B V | E134: BUY | F134: 7404932 | G134: 1361.35 | H134: BSE
A135: 2019-03-27 | B135: 532478 | C135: UBL | D135: RECOVERY OFFICER I DRT II | E135: SELL | F135: 7404932 | G135: 1361.35 | H135: BSE
A136: 2019-03-27 | B136: 511764 | C136: UPASAFN | D136: JILESH NAVIN CHHEDA | E136: BUY | F136: 22000 | G136: 59.6 | H136: BSE
A137: 2019-03-27 | B137: 511764 | C137: UPASAFN | D137: JILESH NAVIN CHHEDA | E137: SELL | F137: 22000 | G137: 59.59 | H137: BSE
A138: 2019-03-27 | B138: 542046 | C138: VIEL | D138: CHIRAG YASHVANTBHAI THAKKAR | E138: SELL | F138: 76000 | G138: 21.35 | H138: BSE
A139: 2019-03-27 | B139: 542046 | C139: VIEL | D139: SUNNY RASHMIKANT THAKKAR | E139: SELL | F139: 76000 | G139: 21.35 | H139: BSE
A140: 2019-03-27 | B140: 542046 | C140: VIEL | D140: AMRAPALI FINCAP PVT LTD | E140: SELL | F140: 228000 | G140: 21.35 | H140: BSE
A141: 2019-03-27 | B141: 542046 | C141: VIEL | D141: KAMLESH BALCHAND SHAH HUF | E141: BUY | F141: 50000 | G141: 21.35 | H141: BSE
A142: 2019-03-27 | B142: 542046 | C142: VIEL | D142: SHAH DHIRAJLAL KASALCHAND HUF | E142: BUY | F142: 80000 | G142: 21.35 | H142: BSE
A143: 2019-03-27 | B143: 533427 | C143: VMS | D143: MANOJKUMAR JAIN | E143: SELL | F143: 99575 | G143: 17.89 | H143: BSE
A144: 2019-03-27 | B144: 541445 | C144: WAA | D144: MINABEN HASMUKHLAL SHAH | E144: SELL | F144: 35200 | G144: 28.5 | H144: BSE
A145: 2019-03-27 | B145: 541445 | C145: WAA | D145: TAPASYA KAMALKUMAR SHETH | E145: SELL | F145: 48000 | G145: 28.52 | H145: BSE
A146: 2019-03-27 | B146: 504220 | C146: WSIND | D146: EAST SAIL | E146: SELL | F146: 1128895 | G146: 0.79 | H146: BSE
A147: 2019-03-27 | B147: 504220 | C147: WSIND | D147: M/S VRANDAVAN ASSOCIATES | E147: BUY | F147: 200000 | G147: 0.79 | H147: BSE
A148: 2019-03-27 | B148: 504220 | C148: WSIND | D148: SWETA KAMLESH SHAH | E148: BUY | F148: 300000 | G148: 0.79 | H148: BSE
A149: 2019-03-27 | B149: 504220 | C149: WSIND | D149: M/S VRANDAVAN ASSOCIATES | E149: BUY | F149: 300000 | G149: 0.79 | H149: BSE
A150: 2019-03-27 | B150: 522209 | C150: YOGISUNG | D150: EUROPLUS ONE REALITY PRIVATE LIMITED | E150: SELL | F150: 114823 | G150: 2.53 | H150: BSE
A151: 2019-03-27 | B151: 522209 | C151: YOGISUNG | D151: SHIVA SHAKTI ENCLAVES PRIVATE LIMITED | E151: BUY | F151: 118000 | G151: 2.53 | H151: BSE
A152: 2019-03-27 | B152: 522108 | C152: YUKEN | D152: SHAZIA SULTANA | E152: BUY | F152: 210000 | G152: 645.25 | H152: BSE
A153: 2019-03-27 | B153: 522108 | C153: YUKEN | D153: FAZAL NABI SHAIK | E153: SELL | F153: 210000 | G153: 645.25 | H153: BSE
A154: 2019-03-27 | B154: AAKASH | C154: Aakash Exploration Ser L | D154: RIDDHESHKUMAR GIRISHBHAI BHANDARI | E154: BUY | F154: 140000 | G154: 18 | H154: NSE
A155: 2019-03-27 | B155: ADFFOODS | C155: ADF Foods Limited | D155: NISARG AJAYKUMAR VAKHARIA | E155: BUY | F155: 108000 | G155: 242.2 | H155: NSE
A156: 2019-03-27 | B156: AGARIND | C156: Agarwal Inds Corp Ltd. | D156: NISHU FINLEASE PVT LTD | E156: BUY | F156: 63500 | G156: 158.25 | H156: NSE
A157: 2019-03-27 | B157: AGROPHOS | C157: Agro Phos India Limited | D157: KESHAV SHARES & STOCKS LTD. | E157: BUY | F157: 138617 | G157: 77.96 | H157: NSE
A158: 2019-03-27 | B158: AIRAN | C158: Airan Limited | D158: KHANDWALA ENTERPRISE (P)TD. | E158: BUY | F158: 750000 | G158: 62.3 | H158: NSE
A159: 2019-03-27 | B159: BRNL | C159: Bharat Road Network Ltd | D159: GMR BUSINESS & CONSULTANCY LLP | E159: BUY | F159: 1150000 | G159: 91.25 | H159: NSE
A160: 2019-03-27 | B160: FELIX | C160: Felix Industries Ltd. | D160: SILKON TRADES LLP | E160: BUY | F160: 108000 | G160: 18 | H160: NSE
A161: 2019-03-27 | B161: JETAIRWAYS | C161: Jet Airways (India) Ltd. | D161: A.P.T. PORTFOLIO PRIVATE LIMITED | E161: BUY | F161: 822119 | G161: 279.71 | H161: NSE
A162: 2019-03-27 | B162: JETAIRWAYS | C162: Jet Airways (India) Ltd. | D162: TOWER RESEARCH CAPITAL MARKETS INDIA PRIVATE LIMITED | E162: BUY | F162: 1770352 | G162: 279.98 | H162: NSE
A163: 2019-03-27 | B163: JINDCOT | C163: Jindal Cotex Ltd | D163: SAPAN ANIL SHAH | E163: BUY | F163: 840000 | G163: 3.9 | H163: NSE
A164: 2019-03-27 | B164: KHADIM | C164: Khadim India Limited | D164: UTI MUTUAL FUND | E164: BUY | F164: 192029 | G164: 436.7 | H164: NSE
A165: 2019-03-27 | B165: KHAITANELE | C165: Khaitan Electricals Ltd | D165: JINTAN INVESTMENT ADVISORY PRIVATE LIMITED | E165: BUY | F165: 150000 | G165: 7 | H165: NSE
A166: 2019-03-27 | B166: KRIDHANINF | C166: Kridhan Infra Limited | D166: THE INDIAMAN FUND MAURITIUS LIMITED | E166: BUY | F166: 3160156 | G166: 40.94 | H166: NSE
A167: 2019-03-27 | B167: PGEL | C167: PG Electroplast Ltd | D167: SHREE MALLIKARJUN TRAD INVEST PRIVATE LIMITED | E167: BUY | F167: 112382 | G167: 80.07 | H167: NSE
A168: 2019-03-27 | B168: RELCAPITAL | C168: Reliance Capital Limited | D168: TOWER RESEARCH CAPITAL MARKETS INDIA PRIVATE LIMITED | E168: BUY | F168: 1290382 | G168: 203.73 | H168: NSE
A169: 2019-03-27 | B169: RMDRIP | C169: R M Drip & Sprink Sys Ltd | D169: ARVIND SHANTILAL SHAH | E169: BUY | F169: 50000 | G169: 52.14 | H169: NSE
A170: 2019-03-27 | B170: SURANI | C170: Surani Steel Tubes Ltd. | D170: BHAVIK KIRITKUMAR SHAH | E170: BUY | F170: 104000 | G170: 51.82 | H170: NSE
A171: 2019-03-27 | B171: SURANI | C171: Surani Steel Tubes Ltd. | D171: BHAVIK KIRITKUMAR SHAH HUF | E171: BUY | F171: 50000 | G171: 46.3 | H171: NSE
A172: 2019-03-27 | B172: SUZLON | C172: Suzlon Energy Limited | D172: SHARE INDIA SECURITIES LIMITED | E172: BUY | F172: 31580853 | G172: 6.72 | H172: NSE
A173: 2019-03-27 | B173: UNITEDPOLY | C173: United Polyfab Guj. Ltd. | D173: DHANSHREE BARTER PVT LTD | E173: BUY | F173: 189000 | G173: 14.5 | H173: NSE
A174: 2019-03-27 | B174: VISESHINFO | C174: Visesh Infotecnics Limite | D174: BP FINTRADE PRIVATE LIMITED | E174: BUY | F174: 60195113 | G174: 0.1 | H174: NSE
A175: 2019-03-27 | B175: WINDMACHIN | C175: Windsor Machines Limited | D175: AVTAR INSTALMENTS PRIVATE LIMITED | E175: BUY | F175: 205405 | G175: 67.12 | H175: NSE
A176: 2019-03-27 | B176: AAKASH | C176: Aakash Exploration Ser L | D176: PUNI SANGHAVI | E176: SELL | F176: 146000 | G176: 18.02 | H176: NSE
A177: 2019-03-27 | B177: ADFFOODS | C177: ADF Foods Limited | D177: ABHINANDAN LEASING AND FINANCE PRIVATE LIMITED | E177: SELL | F177: 108000 | G177: 242.2 | H177: NSE
A178: 2019-03-27 | B178: AGARIND | C178: Agarwal Inds Corp Ltd. | D178: GARNET INTERNATIONAL LIMITED | E178: SELL | F178: 60000 | G178: 158.25 | H178: NSE
A179: 2019-03-27 | B179: AGROPHOS | C179: Agro Phos India Limited | D179: KESHAV SHARES & STOCKS LTD. | E179: SELL | F179: 138617 | G179: 75.09 | H179: NSE
A180: 2019-03-27 | B180: AIRAN | C180: Airan Limited | D180: SONAL R KHANDWALA | E180: SELL | F180: 750000 | G180: 62.3 | H180: NSE
A181: 2019-03-27 | B181: AROGRANITE | C181: Aro Granite Industries Li | D181: SUREFIN FINANCIAL CONSULTANTS PVT LTD. | E181: SELL | F181: 84894 | G181: 49.83 | H181: NSE
A182: 2019-03-27 | B182: BRNL | C182: Bharat Road Network Ltd | D182: GMR ENTERPRISES PRIVATE LIMITED | E182: SELL | F182: 1150000 | G182: 91.25 | H182: NSE
A183: 2019-03-27 | B183: DYNAMATECH | C183: Dynamatic Tech. Ltd. | D183: UDAYANT JAYANT MALHOUTRA | E183: SELL | F183: 44772 | G183: 1530 | H183: NSE
A184: 2019-03-27 | B184: FELIX | C184: Felix Industries Ltd. | D184: SHAKUNTALA J PATEL | E184: SELL | F184: 100000 | G184: 18 | H184: NSE
A185: 2019-03-27 | B185: JETAIRWAYS | C185: Jet Airways (India) Ltd. | D185: A.P.T. PORTFOLIO PRIVATE LIMITED | E185: SELL | F185: 822119 | G185: 279.84 | H185: NSE
A186: 2019-03-27 | B186: JETAIRWAYS | C186: Jet Airways (India) Ltd. | D186: TOWER RESEARCH CAPITAL MARKETS INDIA PRIVATE LIMITED | E186: SELL | F186: 1770352 | G186: 280.02 | H186: NSE
A187: 2019-03-27 | B187: JINDCOT | C187: Jindal Cotex Ltd | D187: SHAH GIRABEN ATULBHAI | E187: SELL | F187: 840000 | G187: 3.9 | H187: NSE
A188: 2019-03-27 | B188: KHAITANELE | C188: Khaitan Electricals Ltd | D188: GLAXO FINANCE PRIVATE LIMITED | E188: SELL | F188: 200544 | G188: 7 | H188: NSE
A189: 2019-03-27 | B189: KRIDHANINF | C189: Kridhan Infra Limited | D189: AQUARIUS CAPITAL MAURITIUS LIMITED | E189: SELL | F189: 2273358 | G189: 41 | H189: NSE
A190: 2019-03-27 | B190: KRIDHANINF | C190: Kridhan Infra Limited | D190: AQUARIUS CAPITAL MAURITIUS LIMITED | E190: SELL | F190: 886798 | G190: 40.8 | H190: NSE
A191: 2019-03-27 | B191: PGEL | C191: PG Electroplast Ltd | D191: REAL MARKETING PVT LTD | E191: SELL | F191: 120183 | G191: 80.02 | H191: NSE
A192: 2019-03-27 | B192: PGEL | C192: PG Electroplast Ltd | D192: SHREE MALLIKARJUN TRAD INVEST PRIVATE LIMITED | E192: SELL | F192: 112382 | G192: 80.42 | H192: NSE
A193: 2019-03-27 | B193: RELCAPITAL | C193: Reliance Capital Limited | D193: TOWER RESEARCH CAPITAL MARKETS INDIA PRIVATE LIMITED | E193: SELL | F193: 1290382 | G193: 204.06 | H193: NSE
A194: 2019-03-27 | B194: SURANI | C194: Surani Steel Tubes Ltd. | D194: BHAVIK KIRITKUMAR SHAH | E194: SELL | F194: 102000 | G194: 46.37 | H194: NSE
A195: 2019-03-27 | B195: SURANI | C195: Surani Steel Tubes Ltd. | D195: BHAVIK KIRITKUMAR SHAH HUF | E195: SELL | F195: 30000 | G195: 52.2 | H195: NSE
A196: 2019-03-27 | B196: SUZLON | C196: Suzlon Energy Limited | D196: SHARE INDIA SECURITIES LIMITED | E196: SELL | F196: 32082467 | G196: 6.71 | H196: NSE
A197: 2019-03-27 | B197: UNITEDPOLY | C197: United Polyfab Guj. Ltd. | D197: AANAND HARIKISHAN CHAUDHARY | E197: SELL | F197: 189000 | G197: 14.5 | H197: NSE
A198: 2019-03-27 | B198: VISESHINFO | C198: Visesh Infotecnics Limite | D198: ALPHA LEON ENTERPRISES LLP | E198: SELL | F198: 60195113 | G198: 0.1 | H198: NSE
A199: 2019-03-27 | B199: WINDMACHIN | C199: Windsor Machines Limited | D199: AVTAR INSTALMENTS PRIVATE LIMITED | E199: SELL | F199: 350405 | G199: 66.94 | H199: NSE

Sheet Call Tracker (Equity & F&O)
M5: Back To Main Page
A6: Retail Research Technical Calls & Fundamental Performance Report for the month of March -2019
M7: =Main!B10 -> 2019-03-28
B8: Positional Call
A9: Sr.no | B9: Date | D9: Company | E9: Rec | F9: Rec Price | G9: Stop Loss*** | H9: Call Closed At | I9: Target | J9: Remark | K9: Profit / Loss per Share | L9: Gain / Loss % | M9: Status | N9: Closed Date | O9: NSE Closed Price
A10: 1 | B10: 2019-01-24 | D10: ITC | E10: Buy | F10: 280 | G10: 268 | H10: 292 | I10: 305 | J10: Profit of Rs.12/- | K10: =H10-F10 -> 12 | L10: =K10/F10 -> 4.29% | M10: Successful | N10: 2019-03-08 | R10: R
A11: 2 | B11: 2019-03-01 | D11: UPL | E11: Sell | F11: 881.5 | G11: 922.2 | H11: 922.2 | I11: 800 | J11: Loss of Rs.40.7/- | K11: =F11-H11 -> -40.7 | L11: -4.62% | M11: UnSuccessful | N11: 2019-03-15 | R11: R
A12: 3 | B12: 2019-03-01 | D12: BEL | E12: Buy | F12: 83 | G12: 78.5 | H12: 86.25 | I12: 92 | J12: Profit of Rs.3.25/- | K12: 3.25 | L12: =K12/F12 -> 3.92% | M12: Successful | N12: 2019-03-05 | R12: H
A13: 4 | B13: 2019-03-01 | D13: ZEEL | E13: Sell | F13: 478.5 | G13: 507.3 | H13: 458.5 | I13: 435-425 | J13: Profit of Rs.20/- | K13: =F13-H13 -> 20 | L13: =K13/F13 -> 4.18% | M13: Successful | N13: 2019-03-07 | R13: R
A14: 5 | B14: 2019-03-06 | D14: MARUTI | E14: Buy | F14: 7025 | G14: 6700 | H14: 6955 | I14: 7500-7600 | J14: Loss of Rs.70/- | K14: -70 | L14: -1.00% | M14: UnSuccessful | N14: 2019-03-20 | R14: H
A15: 6 | B15: 2019-03-07 | D15: BPCL | E15: Sell | F15: 376.5 | G15: 395.6 | H15: 385.75 | I15: 345-335 | J15: Loss of Rs.9.25/- | K15: =F15-H15 -> -9.25 | L15: =K15/F15 -> -2.46% | M15: UnSuccessful | N15: 2019-03-18 | R15: R
A16: 7 | B16: 2019-03-07 | D16: RAYMOND | E16: Sell | F16: 825-830 | G16: 888.8 | I16: 720-730 | J16: Open | O16: =VLOOKUP(D16,Sheet2!A16:M1811,6,0) -> 798.95 | R16: R
A17: 8 | B17: 2019-03-08 | D17: BHEL | E17: Sell | F17: 67.5 | G17: 70.5 | H17: 70.5 | I17: 63-61 | J17: Loss of Rs.3/- | K17: =F17-H17 -> -3 | L17: =K17/F17 -> -4.44% | M17: UnSuccessful | N17: 2019-03-12 | R17: H
A18: 9 | B18: 2019-03-13 | D18: DLF | E18: Sell | F18: 192-194 | G18: 206.6 | I18: 164-168 | J18: Open | O18: =VLOOKUP(D18,Sheet2!A18:M1813,6,0) -> 190.4 | R18: R
A19: 10 | B19: 2019-03-15 | D19: OFSS | E19: Buy | F19: 3380-3410 | G19: 3250 | I19: 3650-3700 | J19: Open | O19: =VLOOKUP(D19,Sheet2!A19:M1814,6,0) -> 3370.3 | R19: H
A20: 11 | B20: 2019-03-18 | D20: BANKBARODA | E20: Sell | F20: 121 | G20: 127.3 | H20: 116.75 | I20: 110-108 | J20: Part Profit of Rs.4.25/- | K20: =F20-H20 -> 4.25 | L20: =K20/F20 -> 3.51% | M20: Successful | N20: 2019-03-25 | R20: R
A21: 12 | B21: 2019-03-19 | D21: ONGC | E21: Sell | F21: 160 | G21: 168.8 | H21: 153 | I21: 146 -144 | J21: Profit of Rs.7/- | K21: =F21-H21 -> 7 | L21: =K21/F21 -> 4.38% | M21: Successful | N21: 2019-03-20 | R21: R
A22: 13 | B22: 2019-03-20 | D22: HEROMOTOCO | E22: Buy | F22: 2610-2630 | G22: 2490 | I22: 2850-2900 | J22: Open | O22: =VLOOKUP(D22,Sheet2!A22:M1817,6,0) -> 2543.2 | R22: H
A23: 14 | B23: 2019-03-25 | D23: MARUTI | E23: Buy | F23: 6590-6610 | G23: 6290 | I23: 7000-7100 | J23: Open | O23: =VLOOKUP(D23,Sheet2!A23:M1818,6,0) -> 6518 | R23: R
A24: 15 | B24: 2019-03-25 | D24: NTPC | E24: Sell | F24: 136.30-137.30 | G24: 144 | I24: 125-120 | J24: Open | O24: =VLOOKUP(D24,Sheet2!A24:M1819,6,0) -> 137 | R24: H
A25: 16 | B25: 2019-03-26 | D25: ONGC | E25: Sell | F25: 160-162 | G25: 169.8 | I25: 146 -144 | J25: Open | O25: =VLOOKUP(D25,Sheet2!A25:M1820,6,0) -> 160.1 | R25: R
A32: CLBS = Closing Basis *** | F32: Reinitiated $
A33: Dividend adjusted <> | F33: Revised stoploss #
A34: Part book {}
A35: Master Trade High Risk
A36: Sr.no | B36: Date | D36: Company | E36: Rec | F36: Rec Price | G36: Stop Loss | H36: Call Closed At | I36: Target | J36: Remark | K36: Profit / Loss per share | L36: Gain / Loss per Lot | M36: Lot | N36: Status | O36: Closed Date
A37: 1 | B37: 2019-03-01 | D37: BATAINDIA MAR FUT | E37: Sell | F37: 1288 | G37: 1335 | H37: 1322 | I37: 1240 | J37: Loss of Rs.21/- | K37: =F37-H37 -> -34 | L37: =-M37*21 -> -11550 | M37: 550 | N37: UnSuccessful | O37: 2019-03-06 | R37: H
D38: BATAINDIA MAR 1240 PE | E38: Sell | F38: 23.5 | H38: 10.5 | K38: 13 | R38: H
A39: 2 | B39: 2019-03-05 | D39: NIFTY MAR | E39: Sell | F39: 10940 | G39: 11166.6 | H39: 11065 | I39: 10700 | J39: Loss of Rs.125/- | K39: -125 | L39: =M39*K39 -> -9375 | M39: 75 | N39: UnSuccessful | O39: 2019-03-06 | R39: R
A40: 3 | B40: 2019-03-08 | D40: ULTRACEMCO MAR FUT | E40: Sell | F40: 3925 | G40: 4030 | H40: 4025 | I40: 3780 | J40: Loss of Rs.69.5/- | K40: -100 | L40: =M40*-69.5 -> -13900 | M40: 200 | N40: UnSuccessful | O40: 2019-03-11 | R40: H
D41: ULTRACEMCO MAR 3800 PE | E41: Sell | F41: 57.5 | H41: 27 | K41: 30.5 | R41: H
A42: 4 | B42: 2019-03-15 | D42: BANKNIFTY MAR FUT | E42: Sell | F42: 29390 | G42: 29650 | H42: 29775 | J42: Loss of Rs.305/- | K42: -385 | L42: =-20*305 -> -6100 | M42: 20 | N42: UnSuccessful | O42: 2019-03-18 | R42: H
D43: BANKNIFTY 28-MAR 29000 PE | E43: Sell | F43: 207.5 | H43: 127.5 | K43: 80 | R43: H
A44: 5 | B44: 2019-03-19 | D44: CENTURYTEX | E44: Sell | F44: 920 | G44: 946.5 | H44: 905.5 | I44: 870 | J44: Profit of Rs.14.5/- | K44: =F44-H44 -> 14.5 | L44: =K44*M44 -> 8700 | M44: 600 | N44: Successful | O44: 2019-03-19 | R44: R
A45: 6 | B45: 2019-03-19 | D45: TECHM MAR FUT | E45: Buy | F45: 792.5 | G45: 779 | H45: 800.5 | I45: 815 | J45: Profit of Rs.8/- | K45: =H45-F45 -> 8 | L45: =K45*M45 -> 9600 | M45: 1200 | N45: Successful | O45: 2019-03-19 | R45: N
A46: 7 | B46: 2019-03-26 | D46: NIFTY APR | E46: Sell | F46: 11470 | G46: 11611 | H46: 11611 | I46: 11200 | J46: Loss of Rs.141/- | K46: =F46-H46 -> -141 | L46: =M46*K46 -> -10575 | M46: 75 | N46: UnSuccessful | O46: 2019-03-27 | R46: R
A51: Master Trade Medium Risk
A52: Sr.no | B52: Date | D52: Company | E52: Rec | F52: Rec Price | G52: Stop Loss | H52: Call Closed At | I52: Target | J52: Remark | K52: Profit/ Loss per lot | L52: Gain / Loss per Lot | M52: Lot | N52: Status | O52: Closed Date
A53: 1 | B53: 2019-03-01 | D53: LT Mar 1320 CE | E53: Buy | F53: 25 | H53: 34.5 | J53: Profit of Rs.5/- | K53: =H53-F53 -> 9.5 | L53: =5*M53 -> 1875 | M53: 375 | N53: Successful | O53: 2019-03-07 | R53: H
D54: LT Mar 1360 CE | E54: Sell | F54: 12 | H54: 16.5 | K54: =F54-H54 -> -4.5 | R54: H
A55: 2 | B55: 2019-03-05 | D55: NIFTY 07-Mar 10850 PE | E55: Buy | F55: 52 | H55: 0 | I55: 80-100 | J55: Loss of Rs.52/- | K55: =H55-F55 -> -52 | L55: =M55*K55 -> -3900 | M55: 75 | N55: UnSuccessful | O55: 2019-03-07 | R55: R
A56: 3 | B56: 2019-03-06 | D56: HDFCBANK MAR 2100 CE | E56: Buy | F56: 35 | G56: 18 | H56: 42.5 | I56: 60 | J56: Profit of Rs.7.5/- | K56: =H56-F56 -> 7.5 | L56: =K56*M56 -> 1875 | M56: 250 | N56: Successful | O56: 2019-03-07 | R56: H
A57: 4 | B57: 2019-03-07 | D57: ASHOKLEY 90 PE MAR | E57: Buy | F57: 2.5 | G57: 1.2 | H57: 2.95 | I57: 5 | J57: Profit of Rs.0.45/- | K57: =H57-F57 -> 0.45 | L57: =K57*M57 -> 1800 | M57: 4000 | N57: Successful | O57: 2019-03-07 | R57: R
A58: 5 | B58: 2019-03-08 | D58: GAIL 320 PE MAR | E58: Buy | F58: 2.3 | G58: 1.1 | H58: 1.5 | I58: 5 | J58: Loss of Rs.0.8/- | K58: =H58-F58 -> -0.8 | L58: =M58*K58 -> -2133.6 | M58: 2667 | N58: UnSuccessful | O58: 2019-03-08 | R58: H
A59: 6 | B59: 2019-03-08 | D59: LT 1340 PE MAR | E59: Buy | F59: 25 | G59: 14 | H59: 31 | I59: 45-50 | J59: Profit of Rs.6/- | K59: =H59-F59 -> 6 | L59: =K59*M59 -> 2250 | M59: 375 | N59: Successful | O59: 2019-03-08 | R59: H
A60: 7 | B60: 2019-03-11 | D60: LT 1340 PE MAR | E60: Buy | F60: 25 | G60: 13 | H60: 13 | I60: 45-50 | J60: Loss of Rs.12/- | K60: =H60-F60 -> -12 | L60: =M60*K60 -> -4500 | M60: 375 | N60: UnSuccessful | O60: 2019-03-12 | R60: H
A61: 8 | B61: 2019-03-11 | D61: NIFTY 14-Mar 11150 PE | E61: Buy | F61: 48 | H61: 0 | I61: 80-100 | J61: Loss of Rs.48/- | K61: =H61-F61 -> -48 | L61: -3600 | M61: 75 | N61: UnSuccessful | O61: 2019-03-14 | R61: H
A62: 9 | B62: 2019-03-14 | D62: NIFTY 14-Mar 11350 PE | E62: Buy | F62: 14 | H62: 31 | I62: 80-100 | J62: Profit of Rs.17/- | K62: =H62-F62 -> 17 | L62: =K62*M62 -> 1275 | M62: 75 | N62: Successful | O62: 2019-03-14 | R62: A
A63: 10 | B63: 2019-03-15 | D63: NIFTY 20-MAR 11300 PE | E63: Buy | F63: 31 | H63: 0 | I63: 70 | J63: Loss of Rs.31/- | K63: =H63-F63 -> -31 | L63: =M63*K63 -> -2325 | M63: 75 | N63: UnSuccessful | O63: 2019-03-20 | R63: H
A64: 11 | B64: 2019-03-19 | D64: TCS 2050 CE MAR | E64: Buy | F64: 22 | G64: 6.7 | H64: 31 | I64: 45.5 | J64: Profit of Rs.9/- | K64: =H64-F64 -> 9 | L64: =K64*M64 -> 2250 | M64: 250 | N64: Successful | O64: 2019-03-19 | R64: H
A65: 12 | B65: 2019-03-20 | D65: NIFTY 20-Mar 11500 PE | E65: Buy | F65: 8 | H65: 0 | I65: 30 | J65: Loss of Rs.8/- | K65: =H65-F65 -> -8 | L65: =M65*K65 -> -600 | M65: 75 | N65: UnSuccessful | O65: 2019-03-20 | R65: A
A66: 13 | B66: 2019-03-20 | D66: TATASTEEL 510 PE MAR | E66: Buy | F66: 4.75 | G66: 1.7 | H66: 6.6 | I66: 10 | J66: Profit of Rs.1.85/- | K66: =H66-F66 -> 1.85 | L66: =K66*M66 -> 1962.85 | M66: 1061 | N66: Successful | O66: 2019-03-20 | R66: H
A67: 14 | B67: 2019-03-22 | D67: TCS 2000 CE MAR | E67: Buy | F67: 28-30 | I67: 60 | J67: Open | R67: H
D68: TCS 2050 CE | E68: Sell | F68: 12.5-13.5 | R68: H
A69: 15 | B69: 2019-03-25 | D69: KOTAKBANK 1320 CE MAR | E69: Buy | F69: 9 | H69: 13 | J69: Profit of Rs.4/- | K69: =H69-F69 -> 4 | L69: =5*M69 -> 4000 | M69: 800 | N69: Successful | O69: 2019-03-26 | R69: N
D70: KOTAKBANK 1340 CE | E70: Sell | F70: 5 | H70: 5 | K70: =F70-H70 -> 0 | R70: N
B74: Smart Delivery Trade
A75: Sr.no | B75: Date | D75: Company | E75: Rec | F75: Rec Price | G75: Stop Loss*** | H75: Call Closed At | I75: Target | J75: Remark | K75: Profit / Loss per Share | L75: Gain / Loss % | M75: Status | N75: Closed Date | O75: NSE Closed Price
A76: 1 | B76: 2019-02-21 | D76: ICICIBANK | E76: Buy | F76: 351.5 | G76: 339 | H76: 360.5 | I76: 370-375 | J76: Profit of Rs.9/- | K76: =H76-F76 -> 9 | L76: =K76/F76 -> 2.56% | M76: Successful | N76: 2019-03-05 | R76: H
A77: 2 | B77: 2019-02-22 | D77: HDFC | E77: Buy | F77: 1880 | G77: 1819 | H77: 1935.5 | I77: 2000 | J77: Profit of Rs.55.5/- | K77: 55.5 | L77: 2.95% | M77: Successful | N77: 2019-03-12 | R77: H
A78: 3 | B78: 2019-02-27 | D78: CONCOR | E78: Buy | F78: 474.5 | G78: 458.7 | H78: 486 | I78: 500-510 | J78: Profit of Rs.11.5/- | K78: =H78-F78 -> 11.5 | L78: =K78/F78 -> 2.42% | M78: Successful | N78: 2019-03-05 | R78: R
A79: 4 | B79: 2019-03-01 | D79: MINDTREE | E79: Buy | F79: 916 | G79: 888.8 | H79: 933.5 | I79: 970 | J79: Profit of Rs.17.5/- | K79: =H79-F79 -> 17.5 | L79: =K79/F79 -> 1.91% | M79: Successful | N79: 2019-03-01 | R79: R
A80: 5 | B80: 2019-03-05 | D80: TATACHEM | E80: Buy | F80: 576 | G80: 548 | H80: 591 | I80: 620 | J80: Profit of Rs.15/- | K80: 15 | L80: 2.60% | M80: Successful | N80: 2019-03-08 | R80: H
A81: 6 | B81: 2019-03-06 | D81: DLF | E81: Buy | F81: 174 | G81: 167 | H81: 178.5 | I81: 182 | J81: Profit of Rs.4.5/- | K81: =H81-F81 -> 4.5 | L81: =K81/F81 -> 2.59% | M81: Successful | N81: 2019-03-06 | R81: H
A82: 7 | B82: 2019-03-06 | D82: DISHTV | E82: Sell | F82: 41.25 | G82: 43.2 | H82: 39.85 | I82: 38-37 | J82: Profit of Rs.1.4/- | K82: =F82-H82 -> 1.4 | L82: 3.39% | M82: Successful | N82: 2019-03-07 | R82: H
A83: 8 | B83: 2019-03-08 | D83: TITAN | E83: Sell | F83: 1047.5 | G83: 1077.7 | H83: 1077.7 | I83: 990-980 | J83: Loss of Rs.30.2/- | K83: =F83-H83 -> -30.2 | L83: =K83/F83 -> -2.88% | M83: UnSuccessful | N83: 2019-03-12 | R83: R
A84: 9 | B84: 2019-03-08 | D84: NIITTECH | E84: Sell | F84: 1318-1322 | G84: 1361.6 | I84: 1250-1240 | J84: Open | O84: =VLOOKUP(D84,Sheet2!A84:M1579,6,0) -> 1315.65 | R84: R
A85: 10 | B85: 2019-03-08 | D85: RADICO | E85: Sell | F85: 393.5 | G85: 406.6 | H85: 406.6 | I85: 375-370 | J85: Loss of Rs. -13.1/- | K85: =F85-H85 -> -13.1 | L85: =K85/F85 -> -3.33% | M85: UnSuccessful | N85: 2019-03-19 | R85: R
A86: 11 | B86: 2019-03-08 | D86: TORNTPHARM | E86: Buy | F86: 1775 | G86: 1717.7 | H86: 1823 | I86: 1860-1880 | J86: Profit of Rs.48/- | K86: =H86-F86 -> 48 | L86: =K86/F86 -> 2.70% | M86: Successful | N86: 2019-03-12 | R86: R
A87: 12 | B87: 2019-03-11 | D87: INDUSINDBK | E87: Buy | F87: 1505 | G87: 1449 | H87: 1541 | I87: 1600-1620 | J87: Profit of Rs.36/- | K87: =H87-F87 -> 36 | L87: =K87/F87 -> 2.39% | M87: Successful | N87: 2019-03-12 | R87: H
A88: 13 | B88: 2019-03-12 | D88: INDIANB | E88: Sell | F88: 270 | G88: 278.7 | H88: 263.25 | I88: 257-255 | J88: Profit of Rs.6.75/- | K88: =F88-H88 -> 6.75 | L88: =K88/F88 -> 2.50% | M88: Successful | N88: 2019-03-13 | R88: R
A89: 14 | B89: 2019-03-13 | D89: INFY | E89: Buy | F89: 713 | G89: 688 | H89: 731 | I89: 740-750 | J89: Profit of Rs.18/- | K89: =H89-F89 -> 18 | L89: 2.52% | M89: Successful | N89: 2019-03-20 | R89: H
A90: 15 | B90: 2019-03-13 | D90: DIVISLAB | E90: Sell | F90: 1694 | G90: 1752 | H90: 1651 | I90: 1590 | J90: Profit of Rs.43/- | K90: =F90-H90 -> 43 | L90: =K90/F90 -> 2.54% | M90: Successful | N90: 2019-03-25 | R90: H
A91: 16 | B91: 2019-03-13 | D91: IDFC | E91: Sell | F91: 41.25 | G91: 42.6 | H91: 42.7 | I91: 39-38 | J91: Loss of Rs.1.45/- | K91: =F91-H91 -> -1.45 | L91: =K91/F91 -> -3.52% | M91: UnSuccessful | N91: 2019-03-15 | R91: H
A92: 17 | B92: 2019-03-14 | D92: ICICIBANK | E92: Sell | F92: 390-393 | G92: 405 | I92: 375-370 | J92: Open | O92: =VLOOKUP(D92,Sheet2!A92:M1587,6,0) -> 393.2 | R92: H
A93: 18 | B93: 2019-03-15 | D93: INDIANB | E93: Sell | F93: 271.5 | G93: 281.7 | H93: 265.5 | I93: 255-252 | J93: Profit of Rs.6/- | K93: =F93-H93 -> 6 | L93: =K93/F93 -> 2.21% | M93: Successful | N93: 2019-03-15 | R93: R
A94: 19 | B94: 2019-03-18 | D94: BHARATFORG | E94: Buy | F94: 522 | G94: 503.3 | H94: 503.3 | I94: 550 - 555 | J94: Profit of Rs.18/- | K94: =H94-F94 -> -18.7 | L94: -3.58% | M94: UnSuccessful | N94: 2019-03-20 | R94: R
A95: 20 | B95: 2019-03-18 | D95: CADILAHC | E95: Buy | F95: 338.50-341.50 | G95: 327 | I95: 365 | J95: Open | O95: =VLOOKUP(D95,Sheet2!A95:M1590,6,0) -> 330 | R95: H
A96: 21 | B96: 2019-03-22 | D96: TATAGLOBAL | E96: Buy | F96: 199-201 | G96: 193.7 | I96: 210-214 | J96: Open | O96: =VLOOKUP(D96,Sheet2!A96:M1591,6,0) -> 196.6 | R96: R
A97: 22 | B97: 2019-03-25 | D97: IBULHSGFIN | E97: Buy | F97: 718 | G97: 697 | H97: 738.5 | I97: 750-760 | J97: Profit of Rs.20.5/- | K97: =H97-F97 -> 20.5 | L97: =K97/F97 -> 2.86% | M97: Successful | N97: 2019-03-27 | O97: =VLOOKUP(D97,Sheet2!A97:M1592,6,0) -> 750.4 | R97: H
A98: 23 | B98: 2019-03-25 | D98: POWERGRID | E98: Sell | F98: 200-202 | G98: 207.7 | I98: 190-187 | J98: Open | O98: =VLOOKUP(D98,Sheet2!A98:M1593,6,0) -> 200.2 | R98: R
A99: 24 | B99: 2019-03-25 | D99: HINDUNILVR | E99: Buy | F99: 1664-1674 | G99: 1618 | I99: 1750 | J99: Open | O99: =VLOOKUP(D99,Sheet2!A99:M1594,6,0) -> 1680.8 | R99: H
A106: CLBS = Closing Basis *** | F106: Reinitiated $
A107: Dividend adjusted <> | F107: Revised stoploss #
B110: Momentum Call
A111: Sr.no | B111: Date | D111: Company | E111: Rec | F111: Rec Price | G111: Stop Loss | H111: Call Closed At | I111: Target | J111: Remark | K111: Profit / Loss per Share/Lot | L111: Gain / Loss % | M111: Gain / Loss per Lot | N111: Lot | O111: Status | P111: Closed Date
A112: 1 | B112: 2019-02-26 | D112: INDUSINDBK MAR FUT | E112: Buy | F112: 1492.5 | G112: 1455 | H112: 1511 | I112: 1550-1560 | J112: Profit of Rs.18.5/- | K112: =H112-F112 -> 18.5 | M112: =N112*K112 -> 5550 | N112: 300 | O112: Successful | P112: 2019-03-01 | R112: H
A113: 2 | B113: 2019-03-01 | D113: TORNTPHARM MAR FUT | E113: Buy | F113: 1802.5 | G113: 1780 | H113: 1780 | I113: 1840 | J113: Loss of Rs 22.5/- | K113: -22.5 | M113: -11250 | N113: 500 | O113: UnSuccessful | P113: 2019-03-05 | R113: N
A114: 3 | B114: 2019-03-05 | D114: TATAMOTORS MAR FUT | E114: Sell | F114: 185.5 | G114: 192 | H114: 192 | I114: 173 | J114: Loss of Rs 6.5/- | K114: =F114-H114 -> -6.5 | M114: =N114*K114 -> -13000 | N114: 2000 | O114: UnSuccessful | P114: 2019-03-05 | R114: R
A115: 4 | B115: 2019-03-05 | D115: ASIANPAINT MAR FUT | E115: Buy | F115: 1398 | G115: 1378 | H115: 1409 | I115: 1430 | J115: Profit of Rs.11/- | K115: =H115-F115 -> 11 | M115: 6600 | N115: 600 | O115: Successful | P115: 2019-03-05 | R115: N
A116: 5 | B116: 2019-03-05 | D116: COLPAL MAR FUT | E116: Buy | F116: 1249 | G116: 1233 | H116: 1260 | I116: 1275 | J116: Profit of Rs.11/- | K116: 11 | M116: 7700 | N116: 700 | O116: Successful | P116: 2019-03-06 | R116: N
A117: 6 | B117: 2019-03-06 | D117: PIDILITIND MAR FUT | E117: Buy | F117: 1157 | G117: 1135 | H117: 1135 | I117: 1200 | J117: Loss of Rs 22/- | K117: -22 | M117: -11000 | N117: 500 | O117: UnSuccessful | P117: 2019-03-08 | R117: N
A118: 7 | B118: 2019-03-06 | D118: SUNPHARMA MAR FUT | E118: Buy | F118: 460 | G118: 448 | H118: 469.5 | I118: 480 | J118: Profit of Rs.9.5/- | K118: =H118-F118 -> 9.5 | M118: =N118*K118 -> 11400 | N118: 1200 | O118: Successful | P118: 2019-03-06 | R118: H
A119: 8 | B119: 2019-03-06 | D119: ASIANPAINT MAR FUT | E119: Buy | F119: 1398 | G119: 1378 | H119: 1412 | I119: 1430 | J119: Profit of Rs.14/- | K119: 14 | M119: 8400 | N119: 600 | O119: Successful | P119: 2019-03-07 | R119: N
A120: 9 | B120: 2019-03-07 | D120: HINDUNILVR MAR FUT | E120: Buy | F120: 1720.5 | G120: 1695 | H120: 1721 | I120: 1760 | J120: Neutral | K120: =H120-F120 -> 0.5 | M120: =N120*K120 -> 300 | N120: 600 | O120: Neutral | P120: 2019-03-11 | R120: H
A121: 10 | B121: 2019-03-07 | D121: BSOFT MAR FUT | E121: Buy | F121: 112.5 | G121: 108 | H121: 108 | I121: 120 | J121: Loss of Rs 4.5/- | K121: =H121-F121 -> -4.5 | M121: =N121*K121 -> -10125 | N121: 2250 | O121: UnSuccessful | P121: 2019-03-08 | R121: H
A122: 11 | B122: 2019-03-07 | D122: SUNPHARMA | E122: Buy | F122: 457.5 | G122: 445 | H122: 467.5 | I122: 485 | J122: Profit of Rs.10/- | K122: 10 | L122: =K122/F122 -> 2.19% | O122: Successful | P122: 2019-03-12 | R122: H
A123: 12 | B123: 2019-03-08 | D123: AMARAJABAT MAR FUT | E123: Buy | F123: 740 | G123: 724 | H123: 752.5 | I123: 770 | J123: Profit of Rs.12.5/- | K123: =H123-F123 -> 12.5 | M123: =N123*K123 -> 8750 | N123: 700 | O123: Successful | P123: 2019-01-11 | R123: N
A124: 13 | B124: 2019-03-08 | D124: ASIANPAINT MAR FUT | E124: Buy | F124: 1390 | G124: 1370 | H124: 1401.5 | I124: 1425 | J124: Profit of Rs11.5/- | K124: 11.5 | M124: 6900 | N124: 600 | O124: Successful | P124: 2019-01-11 | R124: N
A125: 14 | B125: 2019-03-08 | D125: TATACHEM MAR FUT | E125: Buy | F125: 576 | G125: 559 | H125: 585 | I125: 600 | J125: Profit of Rs.9/- | K125: =H125-F125 -> 9 | M125: =N125*K125 -> 6750 | N125: 750 | O125: Successful | P125: 2019-01-11 | R125: H
A126: 15 | B126: 2019-03-08 | D126: AMBUJACEM MAR FUT | E126: Sell | F126: 227.5 | G126: 233.3 | H126: 233.3 | I126: 218-220 | J126: Loss of Rs 5.8/- | K126: =F126-H126 -> -5.8 | M126: -14500 | N126: 2500 | O126: UnSuccessful | P126: 2019-01-11 | R126: R
A127: 16 | B127: 2019-03-11 | D127: INFY MAR FUT | E127: Sell | F127: 720 | G127: 732 | H127: 713.5 | I127: 700-695 | J127: Profit of Rs.6.5/- | K127: =F127-H127 -> 6.5 | M127: =N127*K127 -> 7800 | N127: 1200 | O127: Successful | P127: 2019-01-11 | R127: H
A128: 17 | B128: 2019-03-11 | D128: UBL MAR FUT | E128: Buy | F128: 1391 | G128: 1375 | H128: 1398.5 | I128: 1425 | J128: Profit of Rs.7.5/- | K128: =H128-F128 -> 7.5 | M128: 5250 | N128: 700 | O128: Successful | P128: 2019-03-12 | R128: N
A129: 18 | B129: 2019-03-12 | D129: HCLTECH MAR FUT | E129: Buy | F129: 1018 | G129: 1000 | H129: 1029.5 | I129: 1050 | J129: Profit of Rs.11.5/- | K129: =H129-F129 -> 11.5 | M129: =N129*K129 -> 8050 | N129: 700 | O129: Successful | P129: 2019-03-13 | R129: N
A130: 19 | B130: 2019-03-12 | D130: APOLLOHOSP MAR FUT | E130: Buy | F130: 1195 | G130: 1170 | H130: 1170 | I130: 1235 | J130: Loss of Rs 25/- | K130: =H130-F130 -> -25 | M130: =N130*K130 -> -12500 | N130: 500 | O130: UnSuccessful | P130: 2019-03-12 | R130: N
A131: 20 | B131: 2019-03-12 | D131: ZEEL | E131: Buy | F131: 461 | G131: 447.7 | H131: 470.5 | I131: 485 | J131: Profit of Rs.9.5/- | K131: 9.5 | L131: =K131/F131 -> 2.06% | O131: Successful | P131: 2019-03-12 | R131: R
A132: 21 | B132: 2019-03-12 | D132: AMARAJABAT MAR FUT | E132: Buy | F132: 753 | G132: 736 | H132: 763 | I132: 785 | J132: Profit of Rs.10/- | K132: 10 | M132: =N132*K132 -> 7000 | N132: 700 | O132: Successful | P132: 2019-03-13 | R132: N
A133: 22 | B133: 2019-03-13 | D133: MINDTREE MAR FUT | E133: Buy | F133: 925 | G133: 905 | H133: 937.5 | I133: 955 | J133: Profit of Rs.12.5/- | K133: =H133-F133 -> 12.5 | M133: =N133*K133 -> 7500 | N133: 600 | O133: Successful | P133: 2019-03-13 | R133: N
A134: 23 | B134: 2019-03-13 | D134: CEATLTD MAR FUT | E134: Buy | F134: 1147 | G134: 1117 | H134: 1172 | I134: 1195 | J134: Profit of Rs.25/- | K134: 25 | M134: 10000 | N134: 400 | O134: Successful | P134: 2019-03-15 | R134: N
A135: 24 | B135: 2019-03-13 | D135: HAVELLS MAR FUT | E135: Buy | F135: 766 | G135: 754 | H135: 773 | I135: 780 | J135: Profit of Rs.7/- | K135: =H135-F135 -> 7 | M135: =N135*K135 -> 7000 | N135: 1000 | O135: Successful | P135: 2019-03-14 | R135: N
A136: 25 | B136: 2019-03-14 | D136: HCLTECH MAR FUT | E136: Buy | F136: 1013 | G136: 998 | H136: 1022.5 | I136: 1050 | J136: Profit of Rs.9.5/- | K136: =H136-F136 -> 9.5 | M136: =N136*K136 -> 6650 | N136: 700 | O136: Successful | P136: 2019-03-15 | R136: N
A137: 26 | B137: 2019-03-14 | D137: INDIGO MAR FUT | E137: Sell | F137: 1302 | G137: 1325 | H137: 1325 | I137: 1260 | J137: Loss of Rs 23/- | K137: =F137-H137 -> -23 | M137: -13800 | N137: 600 | O137: UnSuccessful | P137: 2019-03-18 | R137: R
A138: 27 | B138: 2019-03-14 | D138: MINDTREE | E138: Buy | F138: 944 | G138: 917 | H138: 969 | I138: 990 | J138: Profit of Rs.25/- | K138: =H138-F138 -> 25 | L138: =K138/F138 -> 2.65% | O138: Successful | P138: 2019-03-18 | R138: H
A139: 28 | B139: 2019-03-15 | D139: MCDOWELL-N | E139: Buy | F139: 584.5 | G139: 568 | H139: 566.5 | I139: 610-620 | J139: Loss of Rs 18/- | K139: -18 | L139: -3.08% | O139: UnSuccessful | P139: 2019-03-22 | R139: H
A140: 29 | B140: 2019-03-15 | D140: BIOCON MAR FUT | E140: Buy | F140: 627 | G140: 615 | H140: 634.75 | I140: 650 | J140: Profit of Rs.7.75/- | K140: =H140-F140 -> 7.75 | M140: =N140*K140 -> 6975 | N140: 900 | O140: Successful | P140: 2019-03-19 | R140: N
A141: 30 | B141: 2019-03-15 | D141: ACC MAR FUT | E141: Buy | F141: 1534.5 | G141: 1502 | H141: 1554.5 | I141: 1585 | J141: Profit of Rs.20/- | K141: =H141-F141 -> 20 | M141: 8000 | N141: 400 | O141: Successful | P141: 2019-03-18 | R141: R
A142: 31 | B142: 2019-03-15 | D142: TVSMOTOR MAR FUT | E142: Buy | F142: 496 | G142: 484 | H142: 484 | I142: 520 | J142: Loss of Rs 12/- | K142: -12 | M142: -12000 | N142: 1000 | O142: UnSuccessful | P142: 2019-03-18 | R142: H
A143: 32 | B143: 2019-03-15 | D143: AMARAJABAT MAR FUT | E143: Buy | F143: 749 | G143: 734 | H143: 734 | I143: 775 | J143: Loss of Rs 15/- | K143: =H143-F143 -> -15 | M143: =N143*K143 -> -10500 | N143: 700 | O143: UnSuccessful | P143: 2019-03-19 | R143: N
A144: 33 | B144: 2019-03-18 | D144: HDFC MAR FUT | E144: Sell | F144: 1982.5 | H144: 1968.5 | I144: 1940 | J144: Profit of Rs.14/- | K144: =F144-H144 -> 14 | M144: =N144*K144 -> 7000 | N144: 500 | O144: Successful | P144: 2019-03-18 | R144: H
A145: 34 | B145: 2019-03-19 | D145: Nifty MAR FUT | E145: Sell | F145: 11510 | G145: 11610 | H145: 11452.5 | I145: 11300 | J145: Profit of Rs.57.5/- | K145: =F145-H145 -> 57.5 | M145: =N145*K145 -> 4312.5 | N145: 75 | O145: Successful | P145: 2019-03-22 | R145: H
A146: 35 | B146: 2019-03-19 | D146: SBIN | E146: Sell | F146: 300.5 | G146: 310 | H146: 293 | I146: 285 -280 | J146: Profit of Rs.7.5/- | K146: =F146-H146 -> 7.5 | L146: =K146/F146 -> 2.50% | O146: Successful | P146: 2019-03-25 | R146: H
A147: 36 | B147: 2019-03-19 | D147: HINDUNILVR MAR FUT | E147: Buy | F147: 1713.5 | G147: 1694 | H147: 1694 | I147: 1750 | J147: Loss of Rs 19.5/- | K147: =H147-F147 -> -19.5 | M147: =N147*K147 -> -11700 | N147: 600 | O147: UnSuccessful | P147: 2019-03-20 | R147: N
A148: 37 | B148: 2019-03-19 | D148: BPCL MAR FUT | E148: Sell | F148: 404.5 | G148: 411 | H148: 409.5 | I148: 394 | J148: Loss of Rs 5/- | K148: =F148-H148 -> -5 | M148: =N148*K148 -> -9000 | N148: 1800 | O148: UnSuccessful | P148: 2019-03-19 | R148: H
A149: 38 | B149: 2019-03-20 | D149: CEATLTD MAR FUT | E149: Buy | F149: 1141.5 | G149: 1112 | H149: 1112 | I149: 1190 | J149: Loss of Rs 29.5/- | K149: -29.5 | M149: =N149*K149 -> -11800 | N149: 400 | O149: UnSuccessful | P149: 2019-03-22 | R149: N
A150: 39 | B150: 2019-03-20 | D150: IBULHSGFIN MAR FUT | E150: Buy | F150: 716 | G150: 695 | H150: 728.5 | I150: 745 | J150: Profit of Rs.12.5/- | K150: =H150-F150 -> 12.5 | M150: =N150*K150 -> 6250 | N150: 500 | O150: Successful | P150: 2019-03-20 | R150: H
A151: 40 | B151: 2019-03-20 | D151: AUROPHARMA MAR FUT | E151: Buy | F151: 782 | G151: 771 | H151: 788.5 | I151: 800 | J151: Profit of Rs.6.5/- | K151: =H151-F151 -> 6.5 | M151: =N151*K151 -> 6500 | N151: 1000 | O151: Successful | P151: 2019-03-22 | R151: N
A152: 41 | B152: 2019-03-20 | D152: HDFC MAR FUT | E152: Sell | F152: 2000.5 | G152: 2021 | H152: 1991 | I152: 1950 | J152: Profit of Rs.9.5/- | K152: =F152-H152 -> 9.5 | M152: =N152*K152 -> 4750 | N152: 500 | O152: Successful | P152: 2019-03-20 | R152: H
A153: 42 | B153: 2019-03-22 | D153: HCLTECH MAR FUT | E153: Buy | F153: 1033 | G153: 1017 | H153: 1017 | I153: 1060 | J153: Loss of Rs 16/- | K153: =H153-F153 -> -16 | M153: -11200 | N153: 700 | O153: UnSuccessful | P153: 2019-03-26 | R153: N
A154: 43 | B154: 2019-03-25 | D154: ENGINERSIN MAR FUT | E154: Sell | F154: 113.2 | G154: 116.2 | H154: 115.9 | I154: 106 | J154: Loss of Rs 2.7/- | K154: =F154-H154 -> -2.7 | M154: -11070 | N154: 4100 | O154: UnSuccessful | P154: 2019-03-27 | R154: N
A155: 44 | B155: 2019-03-25 | D155: BIOCON MAR FUT | E155: Buy | F155: 612.50-613.50 | G155: 600 | I155: 635 | J155: Open | R155: N
A156: 45 | B156: 2019-03-26 | D156: BATAINDIA APR FUT | E156: Buy | F156: 1351 | G156: 1327 | H156: 1363 | I156: 1385 | J156: Profit of Rs.12/- | K156: =H156-F156 -> 12 | M156: =N156*K156 -> 6600 | N156: 550 | O156: Successful | P156: 2019-03-27 | R156: N
A160: CLBS = Closing Basis ***
A161: Dividend adjusted <> | F161: Reinitiated $
F162: Revised stoploss #
B163: Quick Pick Intraday
A164: Sr.no | B164: Date | D164: Company | E164: Rec | F164: Rec Price | G164: Stop Loss*** | H164: Call Closed At | I164: Target | J164: Remark | K164: Profit / Loss per Share | L164: Status | M164: Closed Date
A178: Techno -Funda (positional)
A179: Sr.no | B179: Date | D179: Company | E179: Rec | F179: Rec Price | G179: Stop Loss*** | H179: Call Closed At | I179: Target | J179: Remark | K179: Profit / Loss per Share | L179: Gain / Loss % | M179: Status | N179: Closed Date | O179: NSE Closed Price
A182: CLBS = Closing Basis *** | F182: Reinitiated $
A183: Dividend adjusted <> | F183: Revised stoploss #
B188: Investment Idea
A189: Sr.no | B189: Date | D189: Company | E189: Rec | F189: Rec Price | G189: Point of Review | H189: Close Rate | I189: Target | J189: Remark | K189: Profit / Loss per Share | L189: Gain / Loss % | M189: Status | N189: Closed Date
A190: 1 | B190: 2013-11-01 | D190: L&T Finance Holding | E190: Accu | F190: 82.00 | G190: - | H190: 100 | I190: 100.00 | J190: Target Achieved | K190: =H190-F190 -> 18.00 | L190: =K190/F190 -> 21.95% | M190: Successful | N190: 2016-10-14
A191: 2 | B191: 2014-06-04 | D191: Finolex Inds | E191: Buy | F191: 257.00 | G191: - | H191: 300 | I191: 300.00 | J191: Target Achieved | K191: =H191-F191 -> 43.00 | L191: 16.73% | M191: Successful | N191: 2014-07-02
A192: =1+A191 -> 3 | B192: 2014-07-08 | D192: JK Cement | E192: Buy | F192: 393.00 | G192: - | H192: 468 | I192: 468.00 | J192: Target Achieved | K192: =H192-F192 -> 75.00 | L192: 19.08% | M192: Successful | N192: 2014-08-12
A193: 4 | B193: 2014-08-06 | D193: Finolex Cables | E193: Buy | F193: 205.00 | G193: - | H193: 275 | I193: 250.00 | J193: Target Achieved | K193: 70.00 | L193: 34.15% | M193: Successful | N193: 2014-11-19
A194: 5 | B194: 2014-09-04 | D194: Exide Inds | E194: Buy | F194: 162.00 | G194: - | H194: 190 | I194: 190.00 | J194: Target Achieved | K194: 28.00 | L194: 17.28% | M194: Successful | N194: 2015-01-02
A195: 6 | B195: 2014-09-04 | D195: Deepak Nitrite | E195: Buy | F195: 75.00 | G195: - | H195: 91.5 | I195: 95-100 | J195: Profit of Rs.16.50/- | K195: 16.50 | L195: 22.00% | M195: Successful | N195: 2014-11-11
A196: 7 | B196: 2014-10-01 | D196: Mercks | E196: Buy | F196: 850.00 | G196: - | H196: 982.5 | I196: 1050.00 | J196: Profit of Rs.132.50/- | K196: 132.50 | L196: 15.59% | M196: Successful | N196: 2015-02-04
A197: 8 | B197: 2014-10-01 | D197: Grindwell Norton | E197: Buy | F197: 475.00 | G197: - | H197: 515 | I197: 600.00 | J197: Profit of Rs.40/- | K197: 40.00 | L197: 8.42% | M197: Successful | N197: 2014-10-27
A198: 9 | B198: 2014-10-01 | D198: Snowman Logistics | E198: Buy | F198: 86.00 | G198: - | H198: 99 | I198: 140.00 | J198: Profit of Rs.13.00/- | K198: 13.00 | L198: 15.12% | M198: Successful | N198: 2014-10-27
A199: 10 | B199: 2014-10-14 | D199: Birla Corp | E199: Buy | F199: 496.60 | G199: - | H199: 621 | I199: 580.00 | J199: Target Achieved | K199: 124.40 | L199: 25.05% | M199: Successful | N199: 2016-08-23
A200: 11 | B200: 2014-10-14 | D200: Ultratech Cem | E200: Buy | F200: 2481.90 | G200: - | H200: 2840 | I200: 2870.00 | J200: Profit of Rs.358.10/- | K200: 358.10 | L200: 14.43% | M200: Successful | N200: 2015-01-13
A201: =1+A198 -> 10 | B201: 2014-10-16 | D201: Sintex Inds | E201: Buy | F201: 84.50 | G201: - | H201: 93 | I201: 110.00 | J201: Profit of Rs.8.50/- | K201: 8.50 | L201: 10.06% | M201: Successful | N201: 2014-10-27
A202: =1+A201 -> 11 | B202: 2014-10-16 | D202: HSIL | E202: Buy | F202: 401.00 | G202: - | H202: 428 | I202: 450.00 | J202: Profit of Rs.27.00/- | K202: 27.00 | L202: 6.73% | M202: Successful | N202: 2015-01-16
A203: 12 | B203: 2014-10-16 | D203: Eveready Inds | E203: Buy | F203: 101.00 | G203: - | H203: 112 | I203: 120.00 | J203: Profit of Rs.11.00/- | K203: 11.00 | L203: 10.89% | M203: Successful | N203: 2014-10-27
A204: 13 | B204: 2014-11-11 | D204: Pennar Inds | E204: Buy | F204: 59.00 | G204: - | H204: 76 | I204: 76.00 | J204: Target Achieved | K204: 17.00 | L204: 28.81% | M204: Successful | N204: 2017-10-24
A205: 14 | B205: 2014-11-11 | D205: Snowman Logistics | E205: Buy | F205: 99.00 | G205: - | H205: 120 | I205: 120.00 | J205: Profit of Rs.21/- | K205: 21.00 | L205: 21.21% | M205: Successful | N205: 2014-11-17
A206: 15 | B206: 2014-11-13 | D206: Dharamsi Morarji Chem | E206: Buy | F206: 22.00 | G206: - | H206: 33.55 | I206: 32.00 | J206: Profit of Rs 11.55/- | K206: 11.55 | L206: 52.50% | M206: Successful | N206: 2015-07-03
A207: 16 | B207: 2014-12-03 | D207: Tatachem | E207: Buy | F207: 440.00 | G207: - | H207: 520 | I207: 520.00 | J207: Profit of Rs 80.00/- | K207: 80.00 | L207: 18.18% | M207: Successful | N207: 2015-07-23
A208: 17 | B208: 2014-12-03 | D208: Advanta | E208: Buy | F208: 360.00 | G208: - | H208: 427 | I208: 425.00 | J208: Profit of Rs.67.00/- | K208: 67.00 | L208: 18.61% | M208: Successful | N208: 2015-02-23
A209: 18 | B209: 2015-01-08 | D209: GDL | E209: Buy | F209: 360.00 | G209: - | H209: 455 | I209: 420.00 | J209: Profit of Rs.95.00/- | K209: 95.00 | L209: 26.39% | M209: Successful | N209: 2015-01-20
A210: 19 | B210: 2015-01-08 | D210: NRB Bearing | E210: Buy | F210: 130.00 | H210: 175.5 | I210: 165.00 | J210: Profit of Rs 45.50/- | K210: 45.50 | L210: 35.00% | M210: Successful | N210: 2017-12-19
A211: 20 | B211: 2015-02-05 | D211: GSFC | E211: Accu | F211: 98.00 | H211: 120 | I211: 120.00 | J211: Target Achieved | K211: 22.00 | L211: 22.45% | M211: Successful | N211: 2017-01-18
A212: 21 | B212: 2015-02-05 | D212: Sundrmfast | E212: Accu | F212: 196.00 | H212: 262 | I212: 255.00 | J212: Target Achieved | K212: 66.00 | L212: 33.67% | M212: Successful | N212: 2016-08-17
A213: 22 | B213: 2015-03-04 | D213: GPPL | E213: Accu | F213: 235 | H213: 77.00 | I213: 280-285 | J213: Loss of Rs.158/- | K213: =H213-F213 -> -158.00 | L213: -67.23% | M213: Unsuccessful | N213: 2019-02-26
A214: 23 | B214: 2015-03-04 | D214: ORIENTCEM | E214: Accu | F214: 185.00 | H214: 224 | I214: 220-225 | J214: Target Achieved | K214: 39.00 | L214: =K214/F214 -> 21.08% | M214: Successful | N214: 2016-10-04
A215: 24 | B215: 2015-03-27 | D215: PFS | E215: Accu | F215: 49-50 | I215: 67.00 | J215: Open
A216: 25 | B216: 2015-03-30 | D216: Walchandnagar Ind Ltd | E216: Accu | F216: 183.50 | H216: 219 | I216: 218.00 | J216: Profit of Rs.35.50/- | K216: 35.50 | L216: =K216/F216 -> 19.35% | M216: Successful | N216: 2015-04-09
A217: 26 | B217: 2015-04-20 | D217: Kalpataru Power Transmission Ltd | E217: Accu | F217: =(227+237)/2 -> 232.00 | H217: 298 | I217: 298.00 | J217: Target Achieved | K217: 66.00 | L217: 28.45% | M217: Successful | N217: 2017-03-29
A218: 27 | B218: 2015-05-04 | D218: Mastek Ltd | E218: Buy | F218: 385.00 | H218: =212.5+331 -> 543.5 | I218: 510.00 | J218: Profit of Rs 158.50/- | K218: 158.50 | L218: 41.17% | M218: Successful | N218: 2015-08-19
A219: 28 | B219: 2015-05-04 | D219: Suprajit Eng | E219: Buy | F219: 115.50 | H219: 146 | I219: 142.00 | J219: Profit of Rs 30.50/- | K219: 30.50 | L219: 26.41% | M219: Successful | N219: 2015-07-17
A220: 29 | B220: 2015-05-27 | D220: TCI | E220: Buy | F220: 237.50 | H220: 279.5 | I220: 278.00 | J220: Target Achieved | K220: 42.00 | L220: 17.68% | M220: Successful | N220: 2015-08-06
A221: 30 | B221: 2015-06-19 | D221: HSIL | E221: Accu | F221: 340.00 | H221: 448 | I221: 448.00 | J221: Target Achieved | K221: 108.00 | L221: 31.76% | M221: Successful | N221: 2017-10-10
A222: 31 | B222: 2015-07-06 | D222: Capital First | E222: Accu | F222: 390.00 | H222: 460 | I222: 460.00 | J222: Target Achieved | K222: 70.00 | L222: 17.95% | M222: Successful | N222: 2016-04-18
A223: 32 | B223: 2015-07-10 | D223: Dolphin OffShore | E223: Accu | F223: 122.5 | H223: 61.00 | I223: 172.00 | J223: Loss of Rs.61.50/- | K223: -61.50 | L223: -50.20% | M223: Unsuccessful | N223: 2018-08-21
A224: 33 | B224: 2015-08-03 | D224: Allcargo logistics | E224: Accu | F224: 297.50 | H224: 350 | I224: 360.00 | J224: Profit of Rs 52.50/- | K224: 52.50 | L224: =K224/F224 -> 17.65% | M224: Successful | N224: 2015-08-16
A225: 34 | B225: 2015-08-03 | D225: Camline Fine | E225: Accu | F225: 115.50 | H225: 149 | I225: 140.00 | J225: Profit of Rs 33.50/- | K225: 33.50 | L225: 29.00% | M225: Successful | N225: 2017-01-05
A226: 35 | B226: 2015-09-04 | D226: TCI | E226: Accu | F226: 226.00 | H226: 292 | I226: 292.00 | J226: Target Achieved | K226: 66.00 | L226: 29.20% | M226: Successful | N226: 2015-10-09
A227: 36 | B227: 2015-09-07 | D227: Kalpataru Power Transmission Ltd | E227: Accu | F227: 232.50 | H227: 312.5 | I227: 310.00 | J227: Target Achieved | K227: 80.00 | L227: 34.41% | M227: Successful | N227: 2017-03-29
A228: 37 | B228: 2015-09-21 | D228: LLOYD ELECTRIC & ENG LTD | E228: Accu | F228: 196.50 | H228: 238 | I228: 238.00 | J228: Target Achieved | K228: 41.50 | L228: 21.12% | M228: Successful | N228: 2015-10-14
A229: 38 | B229: 2015-09-24 | D229: L&T Finance Holding | E229: Accu | F229: 65.00 | H229: 82 | I229: 82.00 | J229: Target Achieved | K229: 17.00 | L229: 26.15% | M229: Successful | N229: 2016-07-27
A230: 39 | B230: 2015-10-14 | D230: KEC International ltd | E230: Accu | F230: 144.00 | H230: 182.5 | I230: 181.00 | J230: Target Achieved | K230: 38.50 | L230: 26.74% | M230: Successful | N230: 2017-03-23
A231: 40 | B231: 2015-10-14 | D231: Gruh Finance | E231: Accu | F231: 264.00 | H231: 311 | I231: 311.00 | J231: Target Achieved | K231: 47.00 | L231: 17.80% | M231: Successful | N231: 2016-08-22
A232: 41 | B232: 2015-11-10 | D232: Pidilitind | E232: Buy | F232: 549.50 | H232: 630 | I232: 630.00 | J232: Target Achieved | K232: 80.50 | L232: 14.65% | M232: Successful | N232: 2016-02-19
A233: 42 | B233: 2015-12-04 | D233: Zensar Technology | E233: Accu | F233: 1027.50 | H233: 1315 | I233: 1250.00 | J233: Target Achieved | K233: =H233-F233 -> 287.50 | L233: 27.98% | M233: Successful | N233: 2018-05-24
A234: 43 | B234: 2015-12-29 | D234: Vinati Organics Ltd | E234: Accu | F234: 465.00 | H234: 540 | I234: 540.00 | J234: Target Achieved | K234: 75.00 | L234: =K234/F234 -> 16.13% | M234: Successful | N234: 2016-06-09
A235: 44 | B235: 2016-01-11 | D235: GSFC | E235: Buy | F235: 81.00 | H235: 110 | I235: 110.00 | J235: Target Achieved | K235: 29.00 | L235: 35.80% | M235: Successful | N235: 2017-01-10
A236: 45 | B236: 2016-01-13 | D236: SSWL | E236: Buy | F236: 417.50 | H236: 547 | I236: 535.00 | J236: Target Achieved | K236: 129.50 | L236: 31.02% | M236: Successful | N236: 2016-07-27
A237: 46 | B237: 2016-02-08 | D237: Persistent System Ltd | E237: Accu | F237: 650.00 | H237: 800 | I237: 800.00 | J237: Target Achieved | K237: 150.00 | L237: 23.08% | M237: Successful | N237: 2018-02-23
A238: 47 | B238: 2016-03-04 | D238: UPL | E238: Accu | F238: 437.50 | H238: 504.5 | I238: 522.00 | J238: Profit of Rs.67/- | K238: 67.00 | L238: 15.31% | M238: Successful | N238: 2016-04-20
A239: 48 | B239: 2016-03-09 | D239: Ashoka Buildcon Ltd | E239: Accu | F239: 189.50 | H239: 218 | I239: 218.00 | J239: Target Achieved | K239: 28.50 | L239: 15.04% | M239: Successful | N239: 2017-10-26
A240: 49 | B240: 2016-04-11 | D240: PTC INDIA FIN SERV LTD | E240: Accu | F240: 36-37 | I240: 60.00 | J240: Open
A241: 50 | B241: 2016-04-12 | D241: CAMLINFINE $ | E241: Accu | F241: 93.00 | H241: 149 | I241: 140.00 | J241: Profit of Rs 56/- | K241: 56.00 | L241: =K241/F241 -> 60.22% | M241: Successful | N241: 2017-01-05
A242: 51 | B242: 2016-04-12 | D242: Greaves Cotton Ltd. | E242: Accu | F242: 130.00 | H242: 150 | I242: 150-155 | J242: Target Achieved | K242: 20.00 | L242: 15.38% | M242: Successful | N242: 2016-07-13
A243: 52 | B243: 2016-04-13 | D243: DHFL | E243: Accu | F243: 196.00 | H243: 299 | I243: 299.00 | J243: Target Achieved | K243: 103.00 | L243: 52.55% | M243: Successful | N243: 2016-09-07
A244: 53 | B244: 2016-04-13 | D244: Magma | E244: Accu | F244: 88.00 | H244: 103 | I244: 103.00 | J244: Target Achieved | K244: 15.00 | L244: 17.05% | M244: Successful | N244: 2016-06-09
A245: 54 | B245: 2016-05-02 | D245: KEC International ltd $ | E245: Accu | F245: 127.50 | H245: 148 | I245: 148-150 | J245: Target Achieved | K245: 20.50 | L245: 16.08% | M245: Successful | N245: 2016-07-13
A246: 55 | B246: 2016-05-03 | D246: Mindtree | E246: Accu | F246: 675.00 | H246: 815 | I246: 790-800 | J246: Target Achieved | K246: 140.00 | L246: 20.74% | M246: Successful | N246: 2018-02-23
A247: 56 | B247: 2016-06-01 | D247: Atulauto | E247: Accu | F247: 495-505 | I247: 565-570 | J247: Open
... 91 more rows

Sheet Sheet2 (hidden)
A1: SYMBOL | B1: SERIES | C1: OPEN | D1: HIGH | E1: LOW | F1: CLOSE | G1: LAST | H1: PREVCLOSE | I1: TOTTRDQTY | J1: TOTTRDVAL | K1: TIMESTAMP | L1: TOTALTRADES | M1: ISIN | N1: ISIN
A2: 20MICRONS | B2: EQ | C2: 38.25 | D2: 39.5 | E2: 34 | F2: 37.05 | G2: 37.05 | H2: 38.75 | I2: 111782 | J2: 4072957.5 | K2: 2019-03-27 | L2: 1183 | M2: INE144J01027
A3: 21STCENMGM | B3: EQ | C3: 18.55 | D3: 18.55 | E3: 18.2 | F3: 18.55 | G3: 18.55 | H3: 18.55 | I3: 1797 | J3: 32958.65 | K3: 2019-03-27 | L3: 16 | M3: INE253B01015
A4: 3IINFOTECH | B4: EQ | C4: 3.9 | D4: 3.9 | E4: 3.75 | F4: 3.75 | G4: 3.8 | H4: 3.8 | I4: 2791767 | J4: 10692986.3 | K4: 2019-03-27 | L4: 730 | M4: INE748C01020
A5: 3MINDIA | B5: EQ | C5: 23949.6 | D5: 24187.85 | E5: 23661 | F5: 23777.85 | G5: 23756 | H5: 23949.5 | I5: 7457 | J5: 177876878.4 | K5: 2019-03-27 | L5: 873 | M5: INE470A01017
A6: 3PLAND | B6: EQ | C6: 10.9 | D6: 11.75 | E6: 10.8 | F6: 11.75 | G6: 11.75 | H6: 11.35 | I6: 1201 | J6: 13097.25 | K6: 2019-03-27 | L6: 14 | M6: INE105C01023
A7: 5PAISA | B7: EQ | C7: 234.5 | D7: 234.5 | E7: 227 | F7: 228.75 | G7: 229 | H7: 231.25 | I7: 1473 | J7: 339454.55 | K7: 2019-03-27 | L7: 90 | M7: INE618L01018
A8: 63MOONS | B8: EQ | C8: 79.15 | D8: 79.8 | E8: 77.6 | F8: 78.05 | G8: 77.75 | H8: 78.65 | I8: 132342 | J8: 10419922.3 | K8: 2019-03-27 | L8: 1839 | M8: INE111B01023
A9: 8KMILES | B9: EQ | C9: 94 | D9: 95 | E9: 88.35 | F9: 89.4 | G9: 89.1 | H9: 93 | I9: 472225 | J9: 42480151.45 | K9: 2019-03-27 | L9: 5032 | M9: INE650K01021
A10: A2ZINFRA | B10: BE | C10: 17.95 | D10: 17.95 | E10: 17 | F10: 17.1 | G10: 17.4 | H10: 17.6 | I10: 680275 | J10: 11775257.75 | K10: 2019-03-27 | L10: 437 | M10: INE619I01012
A11: AARTIDRUGS | B11: EQ | C11: 672 | D11: 677.7 | E11: 655 | F11: 662.3 | G11: 662.8 | H11: 671.4 | I11: 59808 | J11: 39799164.75 | K11: 2019-03-27 | L11: 4733 | M11: INE767A01016
A12: AARTIIND | B12: EQ | C12: 1530 | D12: 1594.95 | E12: 1530 | F12: 1590.5 | G12: 1586 | H12: 1524.8 | I12: 321655 | J12: 506215256.4 | K12: 2019-03-27 | L12: 22241 | M12: INE769A01020
A13: AARVEEDEN | B13: EQ | C13: 23.55 | D13: 23.95 | E13: 23.05 | F13: 23.1 | G13: 23.05 | H13: 23.05 | I13: 8189 | J13: 189979.1 | K13: 2019-03-27 | L13: 76 | M13: INE273D01019
A14: AAVAS | B14: EQ | C14: 1167.55 | D14: 1174.8 | E14: 1136.3 | F14: 1143.4 | G14: 1138.5 | H14: 1150.55 | I14: 15595 | J14: 18014898.05 | K14: 2019-03-27 | L14: 714 | M14: INE216P01012
A15: ABAN | B15: BE | C15: 59.4 | D15: 60.6 | E15: 56.65 | F15: 57.6 | G15: 58.45 | H15: 58.6 | I15: 103634 | J15: 6066249.25 | K15: 2019-03-27 | L15: 1100 | M15: INE421A01028
A16: ABB | B16: EQ | C16: 1335 | D16: 1348 | E16: 1319.95 | F16: 1326.45 | G16: 1321.3 | H16: 1330.95 | I16: 182854 | J16: 243562665.3 | K16: 2019-03-27 | L16: 6655 | M16: INE117A01022
A17: ABBOTINDIA | B17: EQ | C17: 7399 | D17: 7399 | E17: 7209.95 | F17: 7227.35 | G17: 7230 | H17: 7346.45 | I17: 4519 | J17: 32834456.75 | K17: 2019-03-27 | L17: 1657 | M17: INE358A01014
A18: ABCAPITAL | B18: EQ | C18: 102 | D18: 103.25 | E18: 99.5 | F18: 100.9 | G18: 100.7 | H18: 101.65 | I18: 5005683 | J18: 507179255.2 | K18: 2019-03-27 | L18: 31247 | M18: INE674K01013
A19: ABFRL | B19: EQ | C19: 217.5 | D19: 225.65 | E19: 217 | F19: 223.5 | G19: 223 | H19: 217.95 | I19: 990443 | J19: 220535701.6 | K19: 2019-03-27 | L19: 6048 | M19: INE647O01011
A20: ABSLNN50ET | B20: EQ | C20: 328 | D20: 328.45 | E20: 320 | F20: 320 | G20: 320 | H20: 332.45 | I20: 109 | J20: 35472.4 | K20: 2019-03-27 | L20: 6 | M20: INF209KB1B87
A21: ACC | B21: EQ | C21: 1584 | D21: 1614 | E21: 1568.85 | F21: 1602.55 | G21: 1597.6 | H21: 1570.85 | I21: 1328748 | J21: 2119966128 | K21: 2019-03-27 | L21: 53675 | M21: INE012A01025
A22: ACCELYA | B22: EQ | C22: 917.2 | D22: 927.95 | E22: 912 | F22: 919.05 | G22: 920 | H22: 917.1 | I22: 4972 | J22: 4559815.75 | K22: 2019-03-27 | L22: 693 | M22: INE793A01012
A23: ACE | B23: EQ | C23: 97 | D23: 105.75 | E23: 97 | F23: 104.65 | G23: 104.95 | H23: 96.95 | I23: 740099 | J23: 76310910.8 | K23: 2019-03-27 | L23: 7050 | M23: INE731H01025
A24: ADANIENT | B24: EQ | C24: 138.55 | D24: 140.95 | E24: 136.25 | F24: 137.5 | G24: 138 | H24: 138.3 | I24: 2778662 | J24: 384904349.6 | K24: 2019-03-27 | L24: 17700 | M24: INE423A01024
A25: ADANIGAS | B25: EQ | C25: 116.15 | D25: 118.4 | E25: 115 | F25: 115.5 | G25: 116.1 | H25: 116.15 | I25: 273625 | J25: 31817042 | K25: 2019-03-27 | L25: 1898 | M25: INE399L01023
A26: ADANIGREEN | B26: EQ | C26: 36.1 | D26: 36.7 | E26: 35.15 | F26: 35.55 | G26: 35.35 | H26: 35.95 | I26: 366621 | J26: 13212184.7 | K26: 2019-03-27 | L26: 1799 | M26: INE364U01010
A27: ADANIPORTS | B27: EQ | C27: 367.2 | D27: 371.7 | E27: 364.2 | F27: 366.3 | G27: 366.25 | H27: 368.6 | I27: 2965654 | J27: 1092927620 | K27: 2019-03-27 | L27: 51772 | M27: INE742F01042
A28: ADANIPOWER | B28: EQ | C28: 48.1 | D28: 48.45 | E28: 46.5 | F28: 46.9 | G28: 46.65 | H28: 47.8 | I28: 7826448 | J28: 373517770.4 | K28: 2019-03-27 | L28: 12602 | M28: INE814H01011
A29: ADANITRANS | B29: EQ | C29: 217.85 | D29: 219.2 | E29: 210.6 | F29: 212 | G29: 211.95 | H29: 216.95 | I29: 113065 | J29: 24363256.5 | K29: 2019-03-27 | L29: 2138 | M29: INE931S01010
A30: ADFFOODS | B30: EQ | C30: 238 | D30: 242.75 | E30: 238 | F30: 239.4 | G30: 238.1 | H30: 238.8 | I30: 123191 | J30: 29813431.55 | K30: 2019-03-27 | L30: 783 | M30: INE982B01019
A31: ADHUNIK | B31: BE | C31: 2.8 | D31: 2.8 | E31: 2.65 | F31: 2.75 | G31: 2.8 | H31: 2.7 | I31: 100888 | J31: 280733.3 | K31: 2019-03-27 | L31: 82 | M31: INE400H01019
A32: ADHUNIKIND | B32: EQ | C32: 55 | D32: 56 | E32: 54.7 | F32: 55.5 | G32: 55.05 | H32: 54.65 | I32: 9531 | J32: 528537.2 | K32: 2019-03-27 | L32: 70 | M32: INE452L01012
A33: ADLABS | B33: EQ | C33: 9.1 | D33: 9.1 | E33: 8.8 | F33: 8.8 | G33: 8.8 | H33: 9.25 | I33: 590103 | J33: 5205681.85 | K33: 2019-03-27 | L33: 674 | M33: INE172N01012
A34: ADORWELD | B34: EQ | C34: 328.85 | D34: 331.9 | E34: 321.1 | F34: 329.9 | G34: 330 | H34: 325.9 | I34: 5380 | J34: 1764833 | K34: 2019-03-27 | L34: 260 | M34: INE045A01017
A35: ADROITINFO | B35: BE | C35: 17.15 | D35: 18 | E35: 16.4 | F35: 18 | G35: 18 | H35: 17.15 | I35: 882 | J35: 15014.9 | K35: 2019-03-27 | L35: 14 | M35: INE737B01033
A36: ADSL | B36: EQ | C36: 13.2 | D36: 14.4 | E36: 13.2 | F36: 13.45 | G36: 13.5 | H36: 13.45 | I36: 21900 | J36: 295205.05 | K36: 2019-03-27 | L36: 75 | M36: INE102I01027
A37: ADVANIHOTR | B37: EQ | C37: 69.95 | D37: 72 | E37: 69.1 | F37: 70.65 | G37: 70.8 | H37: 69.3 | I37: 11900 | J37: 842320.3 | K37: 2019-03-27 | L37: 219 | M37: INE199C01026
A38: ADVENZYMES | B38: EQ | C38: 173 | D38: 175 | E38: 169 | F38: 170.2 | G38: 170 | H38: 172.9 | I38: 112410 | J38: 19305698.1 | K38: 2019-03-27 | L38: 2070 | M38: INE837H01020
A39: AEGISCHEM | B39: EQ | C39: 202.45 | D39: 205.1 | E39: 201.25 | F39: 203.55 | G39: 203 | H39: 200.4 | I39: 275925 | J39: 56069741.7 | K39: 2019-03-27 | L39: 9428 | M39: INE208C01025
A40: AGARIND | B40: EQ | C40: 160.5 | D40: 160.5 | E40: 151.75 | F40: 153.8 | G40: 152 | H40: 157.7 | I40: 66215 | J40: 10469356.7 | K40: 2019-03-27 | L40: 77 | M40: INE204E01012
A41: AGCNET | B41: EQ | C41: 115 | D41: 116.4 | E41: 111 | F41: 111.75 | G41: 115 | H41: 115 | I41: 4368 | J41: 491234.65 | K41: 2019-03-27 | L41: 52 | M41: INE676A01019
A42: AGLSL | B42: EQ | C42: 59.05 | D42: 59.9 | E42: 57.4 | F42: 58 | G42: 57.65 | H42: 58.7 | I42: 30753 | J42: 1800755.35 | K42: 2019-03-27 | L42: 72 | M42: INE517U01013
A43: AGRITECH | B43: EQ | C43: 51 | D43: 51.95 | E43: 49 | F43: 49.7 | G43: 50.45 | H43: 50.55 | I43: 7982 | J43: 399282.15 | K43: 2019-03-27 | L43: 127 | M43: INE449G01018
A44: AGROPHOS | B44: EQ | C44: 78.6 | D44: 78.6 | E44: 72.05 | F44: 74 | G44: 72.05 | H44: 77.85 | I44: 426490 | J44: 32588877.6 | K44: 2019-03-27 | L44: 583 | M44: INE740V01019
A45: AHLEAST | B45: EQ | C45: 239 | D45: 249.75 | E45: 238 | F45: 239.25 | G45: 238 | H45: 241.05 | I45: 552 | J45: 132476.25 | K45: 2019-03-27 | L45: 30 | M45: INE926K01017
A46: AHLUCONT | B46: EQ | C46: 321.05 | D46: 334.9 | E46: 319.05 | F46: 329.5 | G46: 330 | H46: 321.8 | I46: 26054 | J46: 8508129.2 | K46: 2019-03-27 | L46: 1057 | M46: INE758C01029
A47: AHLWEST | B47: EQ | C47: 343.1 | D47: 345.05 | E47: 340.2 | F47: 345 | G47: 345 | H47: 340 | I47: 122 | J47: 41789.8 | K47: 2019-03-27 | L47: 10 | M47: INE915K01010
A48: AIAENG | B48: EQ | C48: 1708.95 | D48: 1774.75 | E48: 1686.05 | F48: 1762.9 | G48: 1760 | H48: 1710.15 | I48: 13924 | J48: 24293926.85 | K48: 2019-03-27 | L48: 1771 | M48: INE212H01026
A49: AIFL | B49: BE | C49: 12 | D49: 12.6 | E49: 11.4 | F49: 12.6 | G49: 12.6 | H49: 12 | I49: 71555 | J49: 854455.55 | K49: 2019-03-27 | L49: 270 | M49: INE428O01016
A50: AIONJSW | B50: EQ | C50: 23.4 | D50: 23.7 | E50: 23 | F50: 23.45 | G50: 23.4 | H50: 23.45 | I50: 64322 | J50: 1513622.9 | K50: 2019-03-27 | L50: 385 | M50: INE743C01021
A51: AJANTPHARM | B51: EQ | C51: 1014.8 | D51: 1024 | E51: 979.1 | F51: 1000.95 | G51: 1002.4 | H51: 1010.95 | I51: 322229 | J51: 325324881.1 | K51: 2019-03-27 | L51: 9687 | M51: INE031B01049
A52: AJMERA | B52: EQ | C52: 184.75 | D52: 186.45 | E52: 180.1 | F52: 182.2 | G52: 181.3 | H52: 184.35 | I52: 95611 | J52: 17507311.85 | K52: 2019-03-27 | L52: 2007 | M52: INE298G01027
A53: AKSHARCHEM | B53: EQ | C53: 336.7 | D53: 336.95 | E53: 324 | F53: 324.6 | G53: 324 | H53: 334.1 | I53: 4844 | J53: 1583277.1 | K53: 2019-03-27 | L53: 304 | M53: INE542B01011
A54: AKSHOPTFBR | B54: EQ | C54: 18.75 | D54: 19.45 | E54: 18.6 | F54: 19.25 | G54: 19.45 | H54: 18.75 | I54: 928672 | J54: 17615929.75 | K54: 2019-03-27 | L54: 1509 | M54: INE523B01011
A55: AKZOINDIA | B55: EQ | C55: 1784 | D55: 1784 | E55: 1747.55 | F55: 1767.2 | G55: 1760.8 | H55: 1778.9 | I55: 8992 | J55: 15870907.5 | K55: 2019-03-27 | L55: 740 | M55: INE133A01011
A56: ALANKIT | B56: EQ | C56: 31.3 | D56: 31.8 | E56: 30.2 | F56: 31.5 | G56: 30.6 | H56: 31.1 | I56: 768753 | J56: 23839467.05 | K56: 2019-03-27 | L56: 2895 | M56: INE914E01040
A57: ALBERTDAVD | B57: EQ | C57: 394.15 | D57: 398 | E57: 387 | F57: 391.05 | G57: 387 | H57: 394.15 | I57: 9389 | J57: 3693974.15 | K57: 2019-03-27 | L57: 178 | M57: INE155C01010
A58: ALBK | B58: EQ | C58: 51.6 | D58: 52.6 | E58: 51 | F58: 52.35 | G58: 52.4 | H58: 50.95 | I58: 8744407 | J58: 454787729.1 | K58: 2019-03-27 | L58: 20811 | M58: INE428A01015
A59: ALCHEM | B59: BE | C59: 1.9 | D59: 1.9 | E59: 1.9 | F59: 1.9 | G59: 1.9 | H59: 1.9 | I59: 4160 | J59: 7904 | K59: 2019-03-27 | L59: 5 | M59: INE964B01033
A60: ALEMBICLTD | B60: EQ | C60: 42.45 | D60: 42.9 | E60: 41.75 | F60: 42.1 | G60: 41.9 | H60: 42.15 | I60: 428165 | J60: 18084052.45 | K60: 2019-03-27 | L60: 1412 | M60: INE426A01027
A61: ALICON | B61: EQ | C61: 609.95 | D61: 609.95 | E61: 586.3 | F61: 593.8 | G61: 591.25 | H61: 603 | I61: 3352 | J61: 1993849.25 | K61: 2019-03-27 | L61: 179 | M61: INE062D01024
A62: ALKALI | B62: EQ | C62: 42 | D62: 42.3 | E62: 39.9 | F62: 40.25 | G62: 40 | H62: 41.5 | I62: 13005 | J62: 533271.65 | K62: 2019-03-27 | L62: 218 | M62: INE773I01017
A63: ALKEM | B63: EQ | C63: 1775 | D63: 1780.4 | E63: 1749 | F63: 1750.35 | G63: 1750 | H63: 1775.35 | I63: 45278 | J63: 79643819.3 | K63: 2019-03-27 | L63: 5750 | M63: INE540L01014
A64: ALKYLAMINE | B64: EQ | C64: 803 | D64: 854 | E64: 785.45 | F64: 847.4 | G64: 854 | H64: 799.35 | I64: 9762 | J64: 8157121 | K64: 2019-03-27 | L64: 899 | M64: INE150B01021
A65: ALLCARGO | B65: EQ | C65: 112.1 | D65: 114 | E65: 111 | F65: 113.6 | G65: 113.4 | H65: 112.1 | I65: 167132 | J65: 18864549.5 | K65: 2019-03-27 | L65: 2443 | M65: INE418H01029
A66: ALLSEC | B66: EQ | C66: 291.9 | D66: 294.6 | E66: 288 | F66: 289.85 | G66: 288 | H66: 293.2 | I66: 52312 | J66: 15226546.4 | K66: 2019-03-27 | L66: 854 | M66: INE835G01018
A67: ALMONDZ | B67: EQ | C67: 24.1 | D67: 24.1 | E67: 21.25 | F67: 22 | G67: 22.4 | H67: 22.65 | I67: 7665 | J67: 168661.55 | K67: 2019-03-27 | L67: 72 | M67: INE326B01027
A68: ALOKTEXT | B68: EQ | C68: 5.25 | D68: 5.25 | E68: 5.25 | F68: 5.25 | G68: 5.25 | H68: 5.5 | I68: 538306 | J68: 2826106.5 | K68: 2019-03-27 | L68: 525 | M68: INE270A01011
A69: ALPA | B69: EQ | C69: 24.4 | D69: 30.4 | E69: 24.4 | F69: 27.35 | G69: 27.15 | H69: 25.35 | I69: 130209 | J69: 3651713.05 | K69: 2019-03-27 | L69: 1237 | M69: INE385I01010
A70: ALPHAGEO | B70: EQ | C70: 472.1 | D70: 540 | E70: 472.1 | F70: 516.45 | G70: 514.2 | H70: 472.1 | I70: 13757 | J70: 6895933.8 | K70: 2019-03-27 | L70: 1522 | M70: INE137C01018
A71: AMARAJABAT | B71: EQ | C71: 709.65 | D71: 729.75 | E71: 705.35 | F71: 721.4 | G71: 720.9 | H71: 709.7 | I71: 1489075 | J71: 1066220787 | K71: 2019-03-27 | L71: 27130 | M71: INE885A01032
A72: AMBER | B72: EQ | C72: 785.7 | D72: 805.8 | E72: 779.65 | F72: 791.15 | G72: 796 | H72: 779.65 | I72: 310086 | J72: 243169603.7 | K72: 2019-03-27 | L72: 5085 | M72: INE371P01015
A73: AMBIKCO | B73: EQ | C73: 1128.95 | D73: 1130 | E73: 1125 | F73: 1127.85 | G73: 1126 | H73: 1126.6 | I73: 2508 | J73: 2828858.5 | K73: 2019-03-27 | L73: 190 | M73: INE540G01014
A74: AMBUJACEM | B74: EQ | C74: 233 | D74: 238.25 | E74: 230.4 | F74: 232.25 | G74: 231.6 | H74: 231.4 | I74: 4639012 | J74: 1086839932 | K74: 2019-03-27 | L74: 78130 | M74: INE079A01024
A75: AMDIND | B75: EQ | C75: 20.45 | D75: 20.85 | E75: 19.5 | F75: 19.65 | G75: 19.85 | H75: 20.1 | I75: 10820 | J75: 214520.05 | K75: 2019-03-27 | L75: 101 | M75: INE005I01014
A76: AMJLAND | B76: EQ | C76: 19.45 | D76: 20.4 | E76: 19.4 | F76: 19.9 | G76: 20.2 | H76: 19.05 | I76: 8464 | J76: 167366 | K76: 2019-03-27 | L76: 75 | M76: INE606A01024
A77: AMRUTANJAN | B77: EQ | C77: 312.05 | D77: 318.8 | E77: 305.4 | F77: 308 | G77: 308.5 | H77: 309.85 | I77: 48985 | J77: 15253305.4 | K77: 2019-03-27 | L77: 1549 | M77: INE098F01031
A78: ANANTRAJ | B78: EQ | C78: 33.5 | D78: 33.85 | E78: 32.5 | F78: 32.95 | G78: 33 | H78: 33.6 | I78: 504837 | J78: 16755273.95 | K78: 2019-03-27 | L78: 1634 | M78: INE242C01024
A79: ANDHRABANK | B79: EQ | C79: 25.7 | D79: 27.2 | E79: 25.7 | F79: 27.1 | G79: 27.2 | H79: 25.7 | I79: 2413946 | J79: 64317352.15 | K79: 2019-03-27 | L79: 6084 | M79: INE434A01013
A80: ANDHRACEMT | B80: BE | C80: 4.9 | D80: 4.95 | E80: 4.55 | F80: 4.9 | G80: 4.95 | H80: 4.75 | I80: 62223 | J80: 296477 | K80: 2019-03-27 | L80: 135 | M80: INE666E01012
A81: ANDHRSUGAR | B81: EQ | C81: 344.15 | D81: 346 | E81: 339 | F81: 342.75 | G81: 339.5 | H81: 344.25 | I81: 28944 | J81: 9900504.3 | K81: 2019-03-27 | L81: 977 | M81: INE715B01013
A82: ANGIND | B82: BE | C82: 0.95 | D82: 0.95 | E82: 0.95 | F82: 0.95 | G82: 0.95 | H82: 0.95 | I82: 106 | J82: 100.7 | K82: 2019-03-27 | L82: 3 | M82: INE017D01010
A83: ANIKINDS | B83: EQ | C83: 16.85 | D83: 16.85 | E83: 15.75 | F83: 15.75 | G83: 15.75 | H83: 16.05 | I83: 1716 | J83: 27360.35 | K83: 2019-03-27 | L83: 14 | M83: INE087B01017
A84: ANKITMETAL | B84: BE | C84: 0.45 | D84: 0.55 | E84: 0.45 | F84: 0.55 | G84: 0.55 | H84: 0.5 | I84: 102387 | J84: 52620.2 | K84: 2019-03-27 | L84: 40 | M84: INE106I01010
A85: ANSALAPI | B85: EQ | C85: 11.05 | D85: 11.1 | E85: 10.8 | F85: 10.9 | G85: 11 | H85: 11.05 | I85: 139632 | J85: 1530261.95 | K85: 2019-03-27 | L85: 273 | M85: INE436A01026
A86: ANSALHSG | B86: BE | C86: 12 | D86: 12.4 | E86: 11.65 | F86: 12 | G86: 12.05 | H86: 12.2 | I86: 31169 | J86: 375362.45 | K86: 2019-03-27 | L86: 120 | M86: INE880B01015
A87: ANTGRAPHIC | B87: BE | C87: 0.45 | D87: 0.5 | E87: 0.45 | F87: 0.5 | G87: 0.5 | H87: 0.5 | I87: 46414 | J87: 21011.85 | K87: 2019-03-27 | L87: 14 | M87: INE414B01021
A88: ANUP | B88: EQ | C88: 554.75 | D88: 554.75 | E88: 531 | F88: 532.45 | G88: 532.5 | H88: 548.85 | I88: 40155 | J88: 21587241.7 | K88: 2019-03-27 | L88: 3262 | M88: INE294Z01018
A89: APARINDS | B89: EQ | C89: 663.15 | D89: 668.75 | E89: 660 | F89: 660.95 | G89: 660 | H89: 664.15 | I89: 9896 | J89: 6575975.35 | K89: 2019-03-27 | L89: 415 | M89: INE372A01015
A90: APCL | B90: EQ | C90: 116.9 | D90: 122 | E90: 116.05 | F90: 118.2 | G90: 118.8 | H90: 120 | I90: 6822 | J90: 806649.15 | K90: 2019-03-27 | L90: 95 | M90: INE071F01012
A91: APCOTEXIND | B91: EQ | C91: 515.1 | D91: 524.8 | E91: 515.1 | F91: 519.8 | G91: 517 | H91: 515.8 | I91: 23950 | J91: 12453587.1 | K91: 2019-03-27 | L91: 404 | M91: INE116A01024
A92: APEX | B92: EQ | C92: 310.9 | D92: 316.8 | E92: 309 | F92: 313.8 | G92: 313.2 | H92: 308.4 | I92: 183179 | J92: 57427161.3 | K92: 2019-03-27 | L92: 4332 | M92: INE346W01013
A93: APLAPOLLO | B93: EQ | C93: 1420 | D93: 1439 | E93: 1400 | F93: 1434.15 | G93: 1434.95 | H93: 1419.25 | I93: 14588 | J93: 20773008.95 | K93: 2019-03-27 | L93: 968 | M93: INE702C01019
A94: APLLTD | B94: EQ | C94: 530 | D94: 539 | E94: 525.1 | F94: 529.1 | G94: 528 | H94: 530 | I94: 46898 | J94: 25081880.9 | K94: 2019-03-27 | L94: 2800 | M94: INE901L01018
A95: APOLLO | B95: EQ | C95: 104.4 | D95: 104.4 | E95: 100.5 | F95: 101.1 | G95: 101 | H95: 103.35 | I95: 23239 | J95: 2370770.45 | K95: 2019-03-27 | L95: 586 | M95: INE713T01010
A96: APOLLOHOSP | B96: EQ | C96: 1163 | D96: 1178.1 | E96: 1150.05 | F96: 1153.75 | G96: 1155 | H96: 1151.9 | I96: 486185 | J96: 566542206.5 | K96: 2019-03-27 | L96: 16938 | M96: INE437A01024
A97: APOLLOTYRE | B97: EQ | C97: 214.8 | D97: 217.5 | E97: 213.05 | F97: 214 | G97: 213.5 | H97: 213.45 | I97: 1548540 | J97: 333556503.1 | K97: 2019-03-27 | L97: 16856 | M97: INE438A01022
A98: APOLSINHOT | B98: BE | C98: 924.65 | D98: 924.65 | E98: 875 | F98: 900 | G98: 900 | H98: 889 | I98: 1050 | J98: 944678.7 | K98: 2019-03-27 | L98: 34 | M98: INE451F01024
A99: APTECHT | B99: EQ | C99: 175.45 | D99: 182.25 | E99: 174.2 | F99: 180.8 | G99: 180.6 | H99: 174.1 | I99: 358305 | J99: 63765093.45 | K99: 2019-03-27 | L99: 5631 | M99: INE266F01018
A100: ARCHIDPLY | B100: EQ | C100: 40.9 | D100: 40.9 | E100: 38.5 | F100: 39.2 | G100: 38.5 | H100: 40 | I100: 16566 | J100: 658574.55 | K100: 2019-03-27 | L100: 296 | M100: INE877I01016
A101: ARCHIES | B101: EQ | C101: 24.5 | D101: 24.8 | E101: 22.6 | F101: 23.8 | G101: 23.8 | H101: 24.65 | I101: 47323 | J101: 1137146.2 | K101: 2019-03-27 | L101: 303 | M101: INE731A01020
A102: ARCOTECH | B102: BE | C102: 5.75 | D102: 5.75 | E102: 5.5 | F102: 5.55 | G102: 5.5 | H102: 5.75 | I102: 114155 | J102: 640349.4 | K102: 2019-03-27 | L102: 164 | M102: INE574I01035
A103: ARIES | B103: EQ | C103: 85.65 | D103: 88.5 | E103: 85.65 | F103: 87.5 | G103: 88.3 | H103: 85.15 | I103: 87612 | J103: 7647672.25 | K103: 2019-03-27 | L103: 850 | M103: INE298I01015
A104: ARIHANT | B104: EQ | C104: 27.45 | D104: 29.9 | E104: 27.45 | F104: 27.7 | G104: 27.7 | H104: 28.7 | I104: 361 | J104: 10358.95 | K104: 2019-03-27 | L104: 9 | M104: INE413D01011
A105: ARIHANTSUP | B105: BE | C105: 54.45 | D105: 55.75 | E105: 52.2 | F105: 54 | G105: 55.75 | H105: 53.2 | I105: 132566 | J105: 7125065.05 | K105: 2019-03-27 | L105: 52 | M105: INE643K01018
A106: ARMANFIN | B106: EQ | C106: 368.75 | D106: 383.9 | E106: 360 | F106: 372.6 | G106: 383.9 | H106: 368.7 | I106: 4054 | J106: 1507584.35 | K106: 2019-03-27 | L106: 121 | M106: INE109C01017
A107: AROGRANITE | B107: EQ | C107: 50.55 | D107: 51 | E107: 49.4 | F107: 49.6 | G107: 49.4 | H107: 50.6 | I107: 94440 | J107: 4706062.2 | K107: 2019-03-27 | L107: 150 | M107: INE210C01013
A108: ARROWGREEN | B108: BE | C108: 76.9 | D108: 76.9 | E108: 73.05 | F108: 74.3 | G108: 74.05 | H108: 74.6 | I108: 4062 | J108: 303143.9 | K108: 2019-03-27 | L108: 84 | M108: INE570D01018
A109: ARROWTEX | B109: EQ | C109: 18.2 | D109: 19 | E109: 17.7 | F109: 17.85 | G109: 17.7 | H109: 18.6 | I109: 28561 | J109: 509302.75 | K109: 2019-03-27 | L109: 136 | M109: INE933J01015
A110: ARSHIYA | B110: EQ | C110: 28 | D110: 28.1 | E110: 26.55 | F110: 27.15 | G110: 27.25 | H110: 27.65 | I110: 51058 | J110: 1395309.4 | K110: 2019-03-27 | L110: 408 | M110: INE968D01022
A111: ARSSINFRA | B111: EQ | C111: 42.9 | D111: 43.8 | E111: 40.15 | F111: 40.9 | G111: 40.2 | H111: 41.95 | I111: 34943 | J111: 1448655.15 | K111: 2019-03-27 | L111: 183 | M111: INE267I01010
A112: ARVIND | B112: EQ | C112: 90.65 | D112: 91.15 | E112: 86.9 | F112: 87.95 | G112: 88.4 | H112: 89.65 | I112: 4318703 | J112: 383017250.4 | K112: 2019-03-27 | L112: 23576 | M112: INE034A01011
A113: ARVINDFASN | B113: EQ | C113: 1013 | D113: 1035.1 | E113: 995 | F113: 1004.15 | G113: 1001 | H113: 1017.4 | I113: 284798 | J113: 286826014.1 | K113: 2019-03-27 | L113: 12803 | M113: INE955V01021
A114: ARVSMART | B114: EQ | C114: 121.2 | D114: 123.55 | E114: 118.5 | F114: 119.8 | G114: 119 | H114: 121.8 | I114: 23903 | J114: 2892188 | K114: 2019-03-27 | L114: 535 | M114: INE034S01021
A115: ASAHIINDIA | B115: EQ | C115: 260.15 | D115: 264.2 | E115: 255 | F115: 255.75 | G115: 255.15 | H115: 260.1 | I115: 5540 | J115: 1431341.95 | K115: 2019-03-27 | L115: 254 | M115: INE439A01020
A116: ASAHISONG | B116: EQ | C116: 158 | D116: 161.3 | E116: 156.1 | F116: 160.1 | G116: 159.8 | H116: 156.15 | I116: 17558 | J116: 2809004.9 | K116: 2019-03-27 | L116: 146 | M116: INE228I01012
A117: ASAL | B117: EQ | C117: 52.1 | D117: 56.5 | E117: 52.1 | F117: 55.85 | G117: 55 | H117: 52.4 | I117: 7461 | J117: 411926.2 | K117: 2019-03-27 | L117: 112 | M117: INE900C01027
A118: ASHAPURMIN | B118: EQ | C118: 28.6 | D118: 29.9 | E118: 27.75 | F118: 28.05 | G118: 28 | H118: 29.3 | I118: 70046 | J118: 2011967.7 | K118: 2019-03-27 | L118: 362 | M118: INE348A01023
A119: ASHIANA | B119: EQ | C119: 121 | D119: 121 | E119: 116 | F119: 117.7 | G119: 117 | H119: 121.05 | I119: 28973 | J119: 3412846.55 | K119: 2019-03-27 | L119: 558 | M119: INE365D01021
A120: ASHIMASYN | B120: BE | C120: 11.95 | D120: 12 | E120: 11.3 | F120: 11.3 | G120: 11.3 | H120: 11.85 | I120: 165090 | J120: 1887285.65 | K120: 2019-03-27 | L120: 188 | M120: INE440A01010
A121: ASHOKA | B121: EQ | C121: 127 | D121: 131.65 | E121: 124.55 | F121: 130.95 | G121: 130.4 | H121: 125.85 | I121: 473263 | J121: 60583670.1 | K121: 2019-03-27 | L121: 12713 | M121: INE442H01029
A122: ASHOKLEY | B122: EQ | C122: 86.7 | D122: 87.75 | E122: 85.1 | F122: 85.45 | G122: 85.6 | H122: 86.3 | I122: 25086886 | J122: 2155309212 | K122: 2019-03-27 | L122: 75693 | M122: INE208A01029
A123: ASIANHOTNR | B123: EQ | C123: 137.1 | D123: 139.8 | E123: 135.5 | F123: 138.6 | G123: 138.6 | H123: 139 | I123: 797 | J123: 110354.65 | K123: 2019-03-27 | L123: 37 | M123: INE363A01022
A124: ASIANPAINT | B124: EQ | C124: 1494 | D124: 1496.95 | E124: 1463.5 | F124: 1472.05 | G124: 1471.5 | H124: 1485.05 | I124: 1387002 | J124: 2046577823 | K124: 2019-03-27 | L124: 56183 | M124: INE021A01026
A125: ASIANTILES | B125: EQ | C125: 227 | D125: 233.05 | E125: 226.55 | F125: 229.45 | G125: 227.9 | H125: 227.5 | I125: 94069 | J125: 21609261.65 | K125: 2019-03-27 | L125: 998 | M125: INE022I01019
A126: ASPINWALL | B126: EQ | C126: 180 | D126: 180 | E126: 156.95 | F126: 168.95 | G126: 168 | H126: 173 | I126: 3525 | J126: 580225.45 | K126: 2019-03-27 | L126: 109 | M126: INE991I01015
A127: ASSAMCO | B127: BE | C127: 2.15 | D127: 2.15 | E127: 2.05 | F127: 2.1 | G127: 2.1 | H127: 2.1 | I127: 73420 | J127: 153887.6 | K127: 2019-03-27 | L127: 95 | M127: INE442A01024
A128: ASTEC | B128: EQ | C128: 529 | D128: 539.9 | E128: 525.35 | F128: 535.3 | G128: 533.3 | H128: 522.45 | I128: 14893 | J128: 7945401.1 | K128: 2019-03-27 | L128: 731 | M128: INE563J01010
A129: ASTERDM | B129: EQ | C129: 155.75 | D129: 161.15 | E129: 155.05 | F129: 156.1 | G129: 155.25 | H129: 156.55 | I129: 54220 | J129: 8565015.45 | K129: 2019-03-27 | L129: 2460 | M129: INE914M01019
A130: ASTRAL | B130: EQ | C130: 1120 | D130: 1154 | E130: 1098.1 | F130: 1138.5 | G130: 1150 | H130: 1110.5 | I130: 310239 | J130: 350009792.8 | K130: 2019-03-27 | L130: 11470 | M130: INE006I01046
A131: ASTRAMICRO | B131: EQ | C131: 102.9 | D131: 105.75 | E131: 101.25 | F131: 103.7 | G131: 103.45 | H131: 103.6 | I131: 939091 | J131: 97261122.45 | K131: 2019-03-27 | L131: 5970 | M131: INE386C01029
A132: ASTRAZEN | B132: EQ | C132: 1980 | D132: 1983 | E132: 1935.4 | F132: 1952.25 | G132: 1970.85 | H132: 1975.6 | I132: 9790 | J132: 19197878 | K132: 2019-03-27 | L132: 1083 | M132: INE203A01020
A133: ASTRON | B133: EQ | C133: 105.9 | D133: 107.95 | E133: 103 | F133: 104.9 | G133: 103 | H133: 105.2 | I133: 214654 | J133: 22877502.15 | K133: 2019-03-27 | L133: 1477 | M133: INE646X01014
A134: ATFL | B134: EQ | C134: 575.05 | D134: 584.5 | E134: 572.95 | F134: 579.05 | G134: 582 | H134: 578.9 | I134: 11775 | J134: 6821297.05 | K134: 2019-03-27 | L134: 239 | M134: INE209A01019
A135: ATLANTA | B135: EQ | C135: 19.3 | D135: 19.35 | E135: 18.5 | F135: 18.7 | G135: 18.8 | H135: 18.9 | I135: 302765 | J135: 5671530.35 | K135: 2019-03-27 | L135: 426 | M135: INE285H01022
A136: ATLASCYCLE | B136: BE | C136: 87.8 | D136: 87.8 | E136: 80 | F136: 83.35 | G136: 83.1 | H136: 83.65 | I136: 2890 | J136: 244252.95 | K136: 2019-03-27 | L136: 44 | M136: INE446A01025
A137: ATUL | B137: EQ | C137: 3464.95 | D137: 3581.45 | E137: 3412.7 | F137: 3527.3 | G137: 3500 | H137: 3394.4 | I137: 20490 | J137: 71528901.25 | K137: 2019-03-27 | L137: 2712 | M137: INE100A01010
A138: ATULAUTO | B138: EQ | C138: 337.05 | D138: 340 | E138: 332.65 | F138: 334.25 | G138: 333.5 | H138: 337.05 | I138: 7724 | J138: 2606366.75 | K138: 2019-03-27 | L138: 669 | M138: INE951D01028
A139: AUBANK | B139: EQ | C139: 555.1 | D139: 578.5 | E139: 555.1 | F139: 574.55 | G139: 578.5 | H139: 556.25 | I139: 959730 | J139: 547138858.5 | K139: 2019-03-27 | L139: 26676 | M139: INE949L01017
A140: AURIONPRO | B140: EQ | C140: 133.8 | D140: 137.45 | E140: 129.1 | F140: 130.35 | G140: 129.1 | H140: 134.7 | I140: 24127 | J140: 3193355.7 | K140: 2019-03-27 | L140: 932 | M140: INE132H01018
A141: AUROPHARMA | B141: EQ | C141: 783 | D141: 788.7 | E141: 769.4 | F141: 775.05 | G141: 771.15 | H141: 781.9 | I141: 1732033 | J141: 1350430205 | K141: 2019-03-27 | L141: 31970 | M141: INE406A01037
A142: AUSOMENT | B142: EQ | C142: 35.75 | D142: 36.35 | E142: 35.75 | F142: 35.85 | G142: 35.85 | H142: 36.85 | I142: 1300 | J142: 46688.5 | K142: 2019-03-27 | L142: 22 | M142: INE218C01016
A143: AUTOAXLES | B143: EQ | C143: 1246 | D143: 1275 | E143: 1216 | F143: 1255.65 | G143: 1275 | H143: 1231.15 | I143: 19320 | J143: 23948307.5 | K143: 2019-03-27 | L143: 1692 | M143: INE449A01011
A144: AUTOIND | B144: EQ | C144: 52 | D144: 52.5 | E144: 51 | F144: 51.9 | G144: 51.3 | H144: 52.25 | I144: 16291 | J144: 845767.75 | K144: 2019-03-27 | L144: 146 | M144: INE718H01014
A145: AUTOLITIND | B145: EQ | C145: 40.05 | D145: 40.5 | E145: 36.45 | F145: 38.15 | G145: 37.55 | H145: 39.8 | I145: 32910 | J145: 1286820.15 | K145: 2019-03-27 | L145: 306 | M145: INE448A01013
A146: AVADHSUGAR | B146: EQ | C146: 465.35 | D146: 478 | E146: 462.1 | F146: 474.1 | G146: 477 | H146: 463.1 | I146: 86724 | J146: 40769039.2 | K146: 2019-03-27 | L146: 2374 | M146: INE349W01017
A147: AVANTIFEED | B147: EQ | C147: 393.4 | D147: 423.55 | E147: 393.35 | F147: 420.1 | G147: 422 | H147: 391.2 | I147: 1687643 | J147: 693100802 | K147: 2019-03-27 | L147: 38196 | M147: INE871C01038
A148: AVTNPL | B148: EQ | C148: 27.5 | D148: 27.6 | E148: 26.5 | F148: 27.05 | G148: 27.3 | H148: 27.25 | I148: 47380 | J148: 1276572.1 | K148: 2019-03-27 | L148: 246 | M148: INE488D01021
A149: AXISBANK | B149: EQ | C149: 761.3 | D149: 770 | E149: 755.85 | F149: 759.3 | G149: 760.5 | H149: 757.1 | I149: 7456768 | J149: 5694555717 | K149: 2019-03-27 | L149: 126211 | M149: INE238A01034
A150: AXISCADES | B150: EQ | C150: 61.9 | D150: 64.1 | E150: 60.25 | F150: 62.9 | G150: 63 | H150: 60.3 | I150: 57664 | J150: 3565328.6 | K150: 2019-03-27 | L150: 737 | M150: INE555B01013
A151: AXISGOLD | B151: EQ | C151: 2837 | D151: 2838 | E151: 2804.7 | F151: 2812.8 | G151: 2814.05 | H151: 2812.2 | I151: 85 | J151: 239730.7 | K151: 2019-03-27 | L151: 21 | M151: INF846K01347
A152: AXISNIFTY | B152: EQ | C152: 1185 | D152: 1185 | E152: 1164.09 | F152: 1164.59 | G152: 1164.09 | H152: 1169.25 | I152: 272 | J152: 316827.48 | K152: 2019-03-27 | L152: 6 | M152: INF846K01ZL0
A153: AYMSYNTEX | B153: EQ | C153: 37.2 | D153: 37.25 | E153: 34.9 | F153: 36.1 | G153: 36.85 | H153: 36 | I153: 26568 | J153: 949153.8 | K153: 2019-03-27 | L153: 125 | M153: INE193B01039
A154: BAFNAPHARM | B154: EQ | C154: 10.1 | D154: 10.1 | E154: 9.6 | F154: 9.65 | G154: 9.65 | H154: 9.85 | I154: 18267 | J154: 179424.55 | K154: 2019-03-27 | L154: 86 | M154: INE878I01014
A155: BAGFILMS | B155: EQ | C155: 4.75 | D155: 4.85 | E155: 4.6 | F155: 4.7 | G155: 4.65 | H155: 4.75 | I155: 149744 | J155: 706010.4 | K155: 2019-03-27 | L155: 211 | M155: INE116D01028
A156: BAJAJ-AUTO | B156: EQ | C156: 2965 | D156: 2995 | E156: 2950 | F156: 2980.1 | G156: 2985 | H156: 2952.8 | I156: 402423 | J156: 1197246118 | K156: 2019-03-27 | L156: 25610 | M156: INE917I01010
A157: BAJAJCON | B157: EQ | C157: 318.6 | D157: 320.9 | E157: 315.5 | F157: 316.8 | G157: 316 | H157: 318.45 | I157: 160139 | J157: 51003084.95 | K157: 2019-03-27 | L157: 7043 | M157: INE933K01021
A158: BAJAJELEC | B158: EQ | C158: 538 | D158: 567 | E158: 535.15 | F158: 559.5 | G158: 561.5 | H158: 534.35 | I158: 745455 | J158: 413176740 | K158: 2019-03-27 | L158: 23449 | M158: INE193E01025
A159: BAJAJFINSV | B159: EQ | C159: 7000 | D159: 7079 | E159: 6951.35 | F159: 6980.35 | G159: 6969.75 | H159: 6987.85 | I159: 444893 | J159: 3125505125 | K159: 2019-03-27 | L159: 43011 | M159: INE918I01018
A160: BAJAJHIND | B160: EQ | C160: 8 | D160: 8.15 | E160: 7.95 | F160: 8 | G160: 7.95 | H160: 7.95 | I160: 966787 | J160: 7757606.95 | K160: 2019-03-27 | L160: 863 | M160: INE306A01021
A161: BAJAJHLDNG | B161: EQ | C161: 3294.95 | D161: 3324.2 | E161: 3250 | F161: 3273.75 | G161: 3261 | H161: 3250.25 | I161: 45199 | J161: 148469601.7 | K161: 2019-03-27 | L161: 6769 | M161: INE118A01012
A162: BAJFINANCE | B162: EQ | C162: 2950 | D162: 3014.15 | E162: 2932.5 | F162: 2945.25 | G162: 2943 | H162: 2934.35 | I162: 2419656 | J162: 7188779539 | K162: 2019-03-27 | L162: 113120 | M162: INE296A01024
A163: BALAJITELE | B163: EQ | C163: 83.2 | D163: 85.5 | E163: 81.55 | F163: 84.1 | G163: 84.05 | H163: 83.15 | I163: 124943 | J163: 10489987.2 | K163: 2019-03-27 | L163: 1364 | M163: INE794B01026
A164: BALAMINES | B164: EQ | C164: 460 | D164: 504 | E164: 460 | F164: 498.9 | G164: 499 | H164: 456.95 | I164: 147387 | J164: 72189671.7 | K164: 2019-03-27 | L164: 5738 | M164: INE050E01027
A165: BALAXI | B165: EQ | C165: 34.5 | D165: 34.5 | E165: 34.5 | F165: 34.5 | G165: 34.5 | H165: 32.9 | I165: 1 | J165: 34.5 | K165: 2019-03-27 | L165: 1 | M165: INE618N01014
A166: BALKRISHNA | B166: EQ | C166: 37.95 | D166: 37.95 | E166: 36.5 | F166: 36.8 | G166: 36.95 | H166: 36.95 | I166: 20327 | J166: 756082.25 | K166: 2019-03-27 | L166: 260 | M166: INE875R01011
A167: BALKRISIND | B167: EQ | C167: 963.35 | D167: 972 | E167: 955.05 | F167: 962.85 | G167: 955.5 | H167: 954.8 | I167: 599798 | J167: 578003590.5 | K167: 2019-03-27 | L167: 24252 | M167: INE787D01026
A168: BALLARPUR | B168: EQ | C168: 3.05 | D168: 3.05 | E168: 2.85 | F168: 2.9 | G168: 2.9 | H168: 2.95 | I168: 1795806 | J168: 5275906.15 | K168: 2019-03-27 | L168: 806 | M168: INE294A01037
A169: BALMLAWRIE | B169: EQ | C169: 185.2 | D169: 186.75 | E169: 184.35 | F169: 185.7 | G169: 184.7 | H169: 184.95 | I169: 28417 | J169: 5267487.35 | K169: 2019-03-27 | L169: 750 | M169: INE164A01016
A170: BALPHARMA | B170: EQ | C170: 71.9 | D170: 71.9 | E170: 68.25 | F170: 69.25 | G170: 69.35 | H170: 70.15 | I170: 12986 | J170: 905531 | K170: 2019-03-27 | L170: 290 | M170: INE083D01012
A171: BALRAMCHIN | B171: EQ | C171: 133.25 | D171: 135.75 | E171: 132 | F171: 134.7 | G171: 134.25 | H171: 132.8 | I171: 1682686 | J171: 225691564 | K171: 2019-03-27 | L171: 9396 | M171: INE119A01028
A172: BANARBEADS | B172: EQ | C172: 44.2 | D172: 49.45 | E172: 41 | F172: 48.45 | G172: 49.4 | H172: 41.9 | I172: 7366 | J172: 339477.85 | K172: 2019-03-27 | L172: 208 | M172: INE655B01011
A173: BANARISUG | B173: EQ | C173: 1570.05 | D173: 1580.05 | E173: 1500.1 | F173: 1518.9 | G173: 1550 | H173: 1539.1 | I173: 2177 | J173: 3316746.8 | K173: 2019-03-27 | L173: 392 | M173: INE459A01010
A174: BANCOINDIA | B174: EQ | C174: 157 | D174: 158 | E174: 152 | F174: 152.85 | G174: 152.1 | H174: 156.7 | I174: 54478 | J174: 8418479.6 | K174: 2019-03-27 | L174: 874 | M174: INE213C01025
A175: BANDHANBNK | B175: EQ | C175: 490 | D175: 498.3 | E175: 484.15 | F175: 492.7 | G175: 496.9 | H175: 487.8 | I175: 586002 | J175: 288679246 | K175: 2019-03-27 | L175: 16201 | M175: INE545U01014
A176: BANG | B176: EQ | C176: 32.4 | D176: 32.45 | E176: 29.4 | F176: 30.65 | G176: 30.1 | H176: 31.7 | I176: 124494 | J176: 3862055.45 | K176: 2019-03-27 | L176: 1203 | M176: INE863I01016
A177: BANKBARODA | B177: EQ | C177: 122.4 | D177: 123.45 | E177: 120.3 | F177: 121.55 | G177: 121.15 | H177: 120.8 | I177: 16800819 | J177: 2047862318 | K177: 2019-03-27 | L177: 54084 | M177: INE028A01039
A178: BANKBEES | B178: EQ | C178: 3059 | D178: 3100 | E178: 2928 | F178: 3070.55 | G178: 3072.56 | H178: 3050.02 | I178: 40757 | J178: 125116380.7 | K178: 2019-03-27 | L178: 1059 | M178: INF732E01078
A179: BANKINDIA | B179: EQ | C179: 102.4 | D179: 103.7 | E179: 101.55 | F179: 103.15 | G179: 102.95 | H179: 101.85 | I179: 11566973 | J179: 1187358438 | K179: 2019-03-27 | L179: 34920 | M179: INE084A01016
A180: BANSWRAS | B180: EQ | C180: 66.5 | D180: 69.9 | E180: 65.4 | F180: 67 | G180: 67 | H180: 66.95 | I180: 4381 | J180: 296627.2 | K180: 2019-03-27 | L180: 57 | M180: INE629D01012
A181: BARTRONICS | B181: EQ | C181: 6.55 | D181: 6.75 | E181: 6.3 | F181: 6.3 | G181: 6.3 | H181: 6.5 | I181: 78293 | J181: 509553.7 | K181: 2019-03-27 | L181: 190 | M181: INE855F01034
A182: BASF | B182: EQ | C182: 1470 | D182: 1473.85 | E182: 1398.75 | F182: 1441.55 | G182: 1448.95 | H182: 1462.15 | I182: 41955 | J182: 60102572.7 | K182: 2019-03-27 | L182: 3176 | M182: INE373A01013
A183: BASML | B183: EQ | C183: 185 | D183: 189.9 | E183: 180.35 | F183: 180.65 | G183: 180.35 | H183: 190.55 | I183: 1603 | J183: 300677.35 | K183: 2019-03-27 | L183: 48 | M183: INE186H01014
A184: BATAINDIA | B184: EQ | C184: 1359.25 | D184: 1387 | E184: 1358 | F184: 1371.55 | G184: 1371.55 | H184: 1352.75 | I184: 898728 | J184: 1233698069 | K184: 2019-03-27 | L184: 41666 | M184: INE176A01028
A185: BAYERCROP | B185: EQ | C185: 4352.2 | D185: 4368 | E185: 4320.1 | F185: 4351.85 | G185: 4350 | H185: 4360.6 | I185: 8876 | J185: 38608447.2 | K185: 2019-03-27 | L185: 3440 | M185: INE462A01022
A186: BBL | B186: EQ | C186: 1080 | D186: 1099 | E186: 1071.05 | F186: 1092.85 | G186: 1088 | H186: 1068.05 | I186: 4830 | J186: 5217520.65 | K186: 2019-03-27 | L186: 540 | M186: INE464A01028
A187: BBTC | B187: EQ | C187: 1264 | D187: 1298 | E187: 1257.6 | F187: 1285.85 | G187: 1292 | H187: 1256.2 | I187: 288399 | J187: 368456131.8 | K187: 2019-03-27 | L187: 12657 | M187: INE050A01025
A188: BCG | B188: BE | C188: 3.05 | D188: 3.05 | E188: 2.85 | F188: 2.85 | G188: 2.85 | H188: 2.95 | I188: 563250 | J188: 1656625.4 | K188: 2019-03-27 | L188: 262 | M188: INE425B01027
A189: BDL | B189: EQ | C189: 281.15 | D189: 301.9 | E189: 277.55 | F189: 286.15 | G189: 286.9 | H189: 281.35 | I189: 188642 | J189: 54541030.8 | K189: 2019-03-27 | L189: 6463 | M189: INE171Z01018
A190: BEARDSELL | B190: EQ | C190: 15.75 | D190: 16 | E190: 15.1 | F190: 15.7 | G190: 16 | H190: 15.1 | I190: 4314 | J190: 68007 | K190: 2019-03-27 | L190: 34 | M190: INE520H01022
A191: BEDMUTHA | B191: EQ | C191: 18.7 | D191: 18.7 | E191: 17.25 | F191: 17.25 | G191: 17.25 | H191: 17.7 | I191: 9757 | J191: 174199.6 | K191: 2019-03-27 | L191: 31 | M191: INE844K01012
A192: BEL | B192: EQ | C192: 92.9 | D192: 94.2 | E192: 91.55 | F192: 92.1 | G192: 91.85 | H192: 92.4 | I192: 9098118 | J192: 847288640.1 | K192: 2019-03-27 | L192: 41205 | M192: INE263A01024
A193: BEML | B193: EQ | C193: 978 | D193: 991.25 | E193: 955.2 | F193: 965.75 | G193: 962 | H193: 977.25 | I193: 1587339 | J193: 1552352148 | K193: 2019-03-27 | L193: 36193 | M193: INE258A01016
A194: BEPL | B194: EQ | C194: 72.5 | D194: 74.2 | E194: 71.5 | F194: 73.1 | G194: 73.1 | H194: 72.15 | I194: 900324 | J194: 65444048.7 | K194: 2019-03-27 | L194: 5976 | M194: INE922A01025
A195: BERGEPAINT | B195: EQ | C195: 321.9 | D195: 325.5 | E195: 319.15 | F195: 323.85 | G195: 324 | H195: 321.7 | I195: 928485 | J195: 300285307.8 | K195: 2019-03-27 | L195: 13803 | M195: INE463A01038
A196: BFINVEST | B196: EQ | C196: 264.7 | D196: 269 | E196: 260.8 | F196: 264.9 | G196: 265.5 | H196: 260.75 | I196: 51724 | J196: 13669371.7 | K196: 2019-03-27 | L196: 1325 | M196: INE878K01010
A197: BFUTILITIE | B197: EQ | C197: 194 | D197: 196.6 | E197: 190.5 | F197: 194.2 | G197: 194.05 | H197: 192.6 | I197: 491056 | J197: 94823721.15 | K197: 2019-03-27 | L197: 8351 | M197: INE243D01012
A198: BGLOBAL | B198: BE | C198: 2.4 | D198: 2.4 | E198: 2.4 | F198: 2.4 | G198: 2.4 | H198: 2.5 | I198: 5801 | J198: 13922.4 | K198: 2019-03-27 | L198: 4 | M198: INE224M01013
A199: BGRENERGY | B199: EQ | C199: 62.15 | D199: 63.8 | E199: 61.25 | F199: 62.8 | G199: 62.55 | H199: 62.7 | I199: 167694 | J199: 10490183.55 | K199: 2019-03-27 | L199: 1706 | M199: INE661I01014
A200: BHAGERIA | B200: EQ | C200: 274.85 | D200: 274.85 | E200: 266 | F200: 266.65 | G200: 267.8 | H200: 269.55 | I200: 4016 | J200: 1075883.4 | K200: 2019-03-27 | L200: 259 | M200: INE354C01027
... 1441 more rows

Sheet Sheet1 (hidden)

Sheet Sheet3 (hidden)

Sheet Sheet4 (hidden)
